Body Name,Date Paid,Transaction Number,Amount,Supplier Name,Supplier Type,Expense Area,Cost Centre Description,Expense Type
Cambridgeshire County Council,01-Nov-23,51302078943,-900.74,NHS CAMBRIDGESHIRE&PETERBOROUGH ICB,CARE ESTABLISHMENT,Community Support Service,Community Support Service ECF,Childcare Costs
Cambridgeshire County Council,01-Nov-23,51302092835,-601.38,Paragon Locums Ltd t/a Paragon Social Care,CARE ESTABLISHMENT,LAC Placements,Placements - supported accommodation,Agency Placements - In County
Cambridgeshire County Council,01-Nov-23,51302092837,-501.14,Paragon Locums Ltd t/a Paragon Social Care,CARE ESTABLISHMENT,LAC Placements,Placements - supported accommodation,Agency Placements - In County
Cambridgeshire County Council,01-Nov-23,51302092836,501.15,Paragon Locums Ltd t/a Paragon Social Care,CARE ESTABLISHMENT,LAC Placements,Placements - supported accommodation,Agency Placements - In County
Cambridgeshire County Council,01-Nov-23,51302093009,536.70,Redacted Personal Data,INDIVIDUAL,Children's Disability Direct Payments,CSC Direct Payments,Direct Payments
Cambridgeshire County Council,01-Nov-23,51302092776,546.70,Redacted Personal Data,INDIVIDUAL,OPPD - Cost of Care - Huntingdon - Over 65,Hunts OP Team - Care,Direct Payments
Cambridgeshire County Council,01-Nov-23,51302079950,550.00,ANDREWS RECOVERY LIMITED,TRADE SUPPLIER,PSHE,PSHE - Life Education,Professional Fees and Hired Services
Cambridgeshire County Council,01-Nov-23,51302093050,550.90,DUCKLINGS CHILDCARE (GODMANCHESTER) LTD,NURSERY,Early Years,SEND Specialist Services - SENIF,Care & Ed Partner Organisations
Cambridgeshire County Council,01-Nov-23,51302093056,573.77,Beaumont HEALTHCARE LTD,CARE ESTABLISHMENT,Commissioning - Dom Cars,Hunts - Dom Blocks,Domiciliary Care
Cambridgeshire County Council,01-Nov-23,51302093058,573.77,Beaumont HEALTHCARE LTD,CARE ESTABLISHMENT,Commissioning - Dom Cars,East Cambs - Dom Blocks,Domiciliary Care
Cambridgeshire County Council,01-Nov-23,51302093057,573.77,Beaumont HEALTHCARE LTD,CARE ESTABLISHMENT,Commissioning - Dom Cars,Fenland - Dom Blocks,Domiciliary Care
Cambridgeshire County Council,01-Nov-23,51302091947,578.00,HUNTINGDONSHIRE DISTRICT COUNCIL,OTHER PUBLIC BODIES,Education Safety & Wellbeing PE & Sports,Education Health Safety and Wellbeing: PE & Sport Advisor,Professional Fees and Hired Services
Cambridgeshire County Council,01-Nov-23,51302080856,583.50,OVER COMMUNITY ENTERPRISES LTD,LOCAL CLUBS & GROUPS,SEND Specialist Services - SEND Training,SEND Specialist Services - SEND Training,Casual hire of facilities
Cambridgeshire County Council,01-Nov-23,51302078975,588.00,Lyngsoe Systems Ltd,COMPANY,Libraries - Support,Support - IT,Computer hardware - maintenance
Cambridgeshire County Council,01-Nov-23,51302092877,589.00,FENLAND DISTRICT COUNCIL,OTHER PUBLIC BODIES,Waste Disposal incl PFI,Whittlesey HWRC,Business rates
Cambridgeshire County Council,01-Nov-23,51302092951,599.00,HUNTINGDONSHIRE DISTRICT COUNCIL,OTHER PUBLIC BODIES,Corporate Offices,Eaton Socon Children's Centre,Business rates
Cambridgeshire County Council,01-Nov-23,51302079543,600.00,ED2 LTD,TRADE SUPPLIER,Registrars,Registrars General,Computer software - purchase
Cambridgeshire County Council,01-Nov-23,51302092884,603.00,FENLAND DISTRICT COUNCIL,OTHER PUBLIC BODIES,Corporate Offices,March Community Centre (C&I),Business rates
Cambridgeshire County Council,01-Nov-23,51302093042,619.76,Busy Bees Preschool,NURSERY,Early Years,SEND Specialist Services - SENIF,Care & Ed Partner Organisations
Cambridgeshire County Council,01-Nov-23,51302093045,637.47,CHILDREN'S MONTESSORI NURSERY,NURSERY,Early Years,SEND Specialist Services - SENIF,Payments to Other Establishments
Cambridgeshire County Council,01-Nov-23,51302093035,660.00,BDP SOCIAL CARE LTD,TRADE SUPPLIER,Adolescent Team North,Adolescent Team North,Grants and Support for other Service Users
Cambridgeshire County Council,01-Nov-23,51302093052,661.08,FIRST STEPS CHILDCARE (CAMBS) LTD,NURSERY,Early Years,SEND Specialist Services - SENIF,Care & Ed Partner Organisations
Cambridgeshire County Council,01-Nov-23,51302093049,661.08,DUCKLINGS CHILDCARE (GODMANCHESTER) LTD,NURSERY,Early Years,SEND Specialist Services - SENIF,SEN Funding
Cambridgeshire County Council,01-Nov-23,51302092847,675.00,Vision Learning Therapeutic Farm,SOLETRADER,Early Years Specialist Support,SEND - Independent Therapy,Independent School Placements
Cambridgeshire County Council,01-Nov-23,51301994895,675.71,FLOCKTONS TVP LTD,COMPANY,Winter Maintenance,Central Winter Maintenance,Building Repair and Maintenance
Cambridgeshire County Council,01-Nov-23,51302081137,720.00,PS3 LIMITED,TRADE SUPPLIER,Local Safeguarding Children's Board,LSB -  Chairperson Budget,Consultancy
Cambridgeshire County Council,01-Nov-23,51302092873,747.00,FENLAND DISTRICT COUNCIL,OTHER PUBLIC BODIES,Waste Disposal incl PFI,March HWRC,Business rates
Cambridgeshire County Council,01-Nov-23,51302092914,749.00,HUNTINGDONSHIRE DISTRICT COUNCIL,OTHER PUBLIC BODIES,Corporate Offices,Stanton House,Business rates
Cambridgeshire County Council,01-Nov-23,51302092776,765.38,Redacted Personal Data,INDIVIDUAL,OPPD - Cost of Care - Huntingdon - Over 65,Hunts OP Team - Care,Direct Payments
Cambridgeshire County Council,01-Nov-23,51302092776,765.38,Redacted Personal Data,INDIVIDUAL,OPPD - Cost of Care - Huntingdon - Over 65,Hunts OP Team - Care,Direct Payments
Cambridgeshire County Council,01-Nov-23,51302092776,765.38,Redacted Personal Data,INDIVIDUAL,OPPD - Cost of Care - Huntingdon - Over 65,Hunts OP Team - Care,Direct Payments
Cambridgeshire County Council,01-Nov-23,51302092776,765.38,Redacted Personal Data,INDIVIDUAL,OPPD - Cost of Care - Huntingdon - Over 65,Hunts OP Team - Care,Direct Payments
Cambridgeshire County Council,01-Nov-23,51302092776,765.38,Redacted Personal Data,INDIVIDUAL,OPPD - Cost of Care - Huntingdon - Over 65,Hunts OP Team - Care,Direct Payments
Cambridgeshire County Council,01-Nov-23,51302092776,765.38,Redacted Personal Data,INDIVIDUAL,OPPD - Cost of Care - Huntingdon - Over 65,Hunts OP Team - Care,Direct Payments
Cambridgeshire County Council,01-Nov-23,51302092776,765.38,Redacted Personal Data,INDIVIDUAL,OPPD - Cost of Care - Huntingdon - Over 65,Hunts OP Team - Care,Direct Payments
Cambridgeshire County Council,01-Nov-23,51302092776,765.38,Redacted Personal Data,INDIVIDUAL,OPPD - Cost of Care - Huntingdon - Over 65,Hunts OP Team - Care,Direct Payments
Cambridgeshire County Council,01-Nov-23,51302092776,765.38,Redacted Personal Data,INDIVIDUAL,OPPD - Cost of Care - Huntingdon - Over 65,Hunts OP Team - Care,Direct Payments
Cambridgeshire County Council,01-Nov-23,51302092776,765.38,Redacted Personal Data,INDIVIDUAL,OPPD - Cost of Care - Huntingdon - Over 65,Hunts OP Team - Care,Direct Payments
Cambridgeshire County Council,01-Nov-23,51302092776,765.38,Redacted Personal Data,INDIVIDUAL,OPPD - Cost of Care - Huntingdon - Over 65,Hunts OP Team - Care,Direct Payments
Cambridgeshire County Council,01-Nov-23,51302092776,765.38,Redacted Personal Data,INDIVIDUAL,OPPD - Cost of Care - Huntingdon - Over 65,Hunts OP Team - Care,Direct Payments
Cambridgeshire County Council,01-Nov-23,51302092776,765.38,Redacted Personal Data,INDIVIDUAL,OPPD - Cost of Care - Huntingdon - Over 65,Hunts OP Team - Care,Direct Payments
Cambridgeshire County Council,01-Nov-23,51302092776,765.38,Redacted Personal Data,INDIVIDUAL,OPPD - Cost of Care - Huntingdon - Over 65,Hunts OP Team - Care,Direct Payments
Cambridgeshire County Council,01-Nov-23,51302092776,765.38,Redacted Personal Data,INDIVIDUAL,OPPD - Cost of Care - Huntingdon - Over 65,Hunts OP Team - Care,Direct Payments
Cambridgeshire County Council,01-Nov-23,51302092919,773.00,HUNTINGDONSHIRE DISTRICT COUNCIL,OTHER PUBLIC BODIES,Capital Receipts Expenses,Capital Receipts Expenses,Business rates
Cambridgeshire County Council,01-Nov-23,51302092874,799.00,FENLAND DISTRICT COUNCIL,OTHER PUBLIC BODIES,Waste Disposal incl PFI,Wisbech HWRC,Business rates
Cambridgeshire County Council,01-Nov-23,51302092761,805.85,Redacted Personal Data,INDIVIDUAL,LD - Young Adults Team,LD - Young Adults - Care,Direct Payments
Cambridgeshire County Council,01-Nov-23,51302093051,826.35,EARITH PRESCHOOL 7,NURSERY,Early Years,SEND Specialist Services - SENIF,SEN Funding
Cambridgeshire County Council,01-Nov-23,51302093041,826.35,BRIGHTFIELDS PRE SCHOOL,NURSERY,Early Years,SEND Specialist Services - SENIF,Care & Ed Partner Organisations
Cambridgeshire County Council,01-Nov-23,51302092970,851.00,HUNTINGDONSHIRE DISTRICT COUNCIL,OTHER PUBLIC BODIES,Corporate Offices,Eastfield House,Business rates
Cambridgeshire County Council,01-Nov-23,51302092971,861.00,HUNTINGDONSHIRE DISTRICT COUNCIL,OTHER PUBLIC BODIES,Corporate Offices,"Unit 7 Oak Court, St Ives",Business rates
Cambridgeshire County Council,01-Nov-23,51302081659,884.00,GD GREEN,SOLETRADER,County Farms,County Farms,County Farms Maintenance unplanned
Cambridgeshire County Council,01-Nov-23,51302092997,888.00,Sensory Childcare,CARE ESTABLISHMENT,Children's Disability Direct Payments,CSC Direct Payments,Direct Payments
Cambridgeshire County Council,01-Nov-23,51302079517,900.00,Shire Trees Ltd,COMPANY,Buildings and Capital,Grounds Management Service - Client,Tree Maintenance
Cambridgeshire County Council,01-Nov-23,51302092752,900.00,Sugarman Group,EDUCATION,Out of School Tuition,Out of School Provision EHCPs,Independent School Placements
Cambridgeshire County Council,01-Nov-23,51302092721,922.80,Redacted Personal Data,INDIVIDUAL,Insurance Fund,Liability,Insurance Claims Paid
Cambridgeshire County Council,01-Nov-23,51302081141,972.00,PS3 LIMITED,TRADE SUPPLIER,Local Safeguarding Children's Board,LSB -  Chairperson Budget,Consultancy
Cambridgeshire County Council,01-Nov-23,51302093105,972.30,MICROSOFT IRELAND OPERATIONS LTD,TRADE SUPPLIER,ICT Service,ICT Service Business Support,Computer software - purchase
Cambridgeshire County Council,01-Nov-23,51302093107,972.30,MICROSOFT IRELAND OPERATIONS LTD,TRADE SUPPLIER,ICT Service,ICT Service Business Support,Computer software - purchase
Cambridgeshire County Council,01-Nov-23,51302092912,990.00,HUNTINGDONSHIRE DISTRICT COUNCIL,OTHER PUBLIC BODIES,Waste Disposal incl PFI,Alconbury HWRC,Business rates
Cambridgeshire County Council,01-Nov-23,51302092676,999.00,Redacted Personal Data,PARENT/GUARDIAN,SEND High Needs Top Up,High Needs Top Up - Post 16,Independent School Placements
Cambridgeshire County Council,01-Nov-23,51302079403,"1,000.00",STRONGER PSYCHOLOGICAL SERVICES LTD,COMPANY,SEND Specialist Services - Education Psychology,SEND Specialist Services - Education Psychology,Professional Fees and Hired Services
Cambridgeshire County Council,01-Nov-23,51302092777,"1,038.00",Redacted Personal Data,INDIVIDUAL,OPPD - Cost of Care - East Cambs - Over 65,East Cambs - O P Team - Care,Direct Payments
Cambridgeshire County Council,01-Nov-23,51302092777,"1,038.00",Redacted Personal Data,INDIVIDUAL,OPPD - Cost of Care - East Cambs - Over 65,East Cambs - O P Team - Care,Direct Payments
Cambridgeshire County Council,01-Nov-23,51302092777,"1,038.00",Redacted Personal Data,INDIVIDUAL,OPPD - Cost of Care - East Cambs - Over 65,East Cambs - O P Team - Care,Direct Payments
Cambridgeshire County Council,01-Nov-23,51302092777,"1,038.00",Redacted Personal Data,INDIVIDUAL,OPPD - Cost of Care - East Cambs - Over 65,East Cambs - O P Team - Care,Direct Payments
Cambridgeshire County Council,01-Nov-23,51302092777,"1,038.00",Redacted Personal Data,INDIVIDUAL,OPPD - Cost of Care - East Cambs - Over 65,East Cambs - O P Team - Care,Direct Payments
Cambridgeshire County Council,01-Nov-23,51302092777,"1,038.00",Redacted Personal Data,INDIVIDUAL,OPPD - Cost of Care - East Cambs - Over 65,East Cambs - O P Team - Care,Direct Payments
Cambridgeshire County Council,01-Nov-23,51302092777,"1,038.00",Redacted Personal Data,INDIVIDUAL,OPPD - Cost of Care - East Cambs - Over 65,East Cambs - O P Team - Care,Direct Payments
Cambridgeshire County Council,01-Nov-23,51302092777,"1,038.00",Redacted Personal Data,INDIVIDUAL,OPPD - Cost of Care - East Cambs - Over 65,East Cambs - O P Team - Care,Direct Payments
Cambridgeshire County Council,01-Nov-23,51302092777,"1,038.00",Redacted Personal Data,INDIVIDUAL,OPPD - Cost of Care - East Cambs - Over 65,East Cambs - O P Team - Care,Direct Payments
Cambridgeshire County Council,01-Nov-23,51302092777,"1,038.00",Redacted Personal Data,INDIVIDUAL,OPPD - Cost of Care - East Cambs - Over 65,East Cambs - O P Team - Care,Direct Payments
Cambridgeshire County Council,01-Nov-23,51302093040,"1,062.45",ARBURY PRE-SCHOOL,NURSERY,Early Years,SEND Specialist Services - SENIF,Payments to Other Establishments
Cambridgeshire County Council,01-Nov-23,51302093054,"1,062.45",Hardwick and Cambourne Pre-School,NURSERY,Early Years,SEND Specialist Services - SENIF,Payments to Other Establishments
Cambridgeshire County Council,01-Nov-23,51302079075,"1,080.00",YOUNG PEOPLE MARCH LTD,LOCAL CLUBS & GROUPS,Out of School Tuition,Out of School Provision EHCPs,Independent School Placements
Cambridgeshire County Council,01-Nov-23,51302092901,"1,085.00",HUNTINGDONSHIRE DISTRICT COUNCIL,OTHER PUBLIC BODIES,BM - Corporate Offices,Building Maintenance,Business rates
Cambridgeshire County Council,01-Nov-23,51302076495,"1,121.02",SOFTCAT LTD,TRADE SUPPLIER,ICT Service,ICT Service Sales,Materials for resale
Cambridgeshire County Council,01-Nov-23,51302092660,"1,171.15",Redacted Personal Data,FOSTER PARENT,South Care Leaving,South Care Leaving,Leaving Care Grants
Cambridgeshire County Council,01-Nov-23,51302092876,"1,173.00",FENLAND DISTRICT COUNCIL,OTHER PUBLIC BODIES,Corporate Offices,Chatteris Library,Business rates
Cambridgeshire County Council,01-Nov-23,51302092760,"1,176.00",Redacted Personal Data,INDIVIDUAL,OPPD - Cost of Care - City South - Over 65,Older People - City & South - Care,Direct Payments
Cambridgeshire County Council,01-Nov-23,51302079977,"1,212.72",BALFOUR BEATTY LIVING PLACES LIMITED,COMPANY,Highways - LHIs,Highways - LHIs (Local Highways Improvements),Highways - Construction
Cambridgeshire County Council,01-Nov-23,51302093043,"1,239.53",Busy Bees Preschool,NURSERY,Early Years,SEND Specialist Services - SENIF,Care & Ed Partner Organisations
Cambridgeshire County Council,01-Nov-23,51302092775,"1,240.00",Redacted Personal Data,INDIVIDUAL,LD - Young Adults Team,LD - Young Adults - Care,Direct Payments
Cambridgeshire County Council,01-Nov-23,51302092701,"1,344.00",React2it (Building Refurbishments) Limited,COMPANY,Building Maintenance,Building Maintenance,"New Construction, Conversion and Renovation"
Cambridgeshire County Council,01-Nov-23,51302093046,"1,410.30",CLARENCE HOUSE NURSERY,NURSERY,Early Years,SEND Specialist Services - SENIF,Care & Ed Partner Organisations
Cambridgeshire County Council,01-Nov-23,51302081657,"1,416.00",GD GREEN,SOLETRADER,County Farms,County Farms,County Farms Maintenance
Cambridgeshire County Council,01-Nov-23,51302077911,"1,475.60",NHS CAMBRIDGESHIRE&PETERBOROUGH ICB,CARE ESTABLISHMENT,Community Support Service,Community Support Service ECF,Childcare Costs
Cambridgeshire County Council,01-Nov-23,51302092990,"1,500.00",Pathfinder Legal Services Limited,TRADE SUPPLIER,Early Years Specialist Support,"SEND - Legal, Tribunal & Mediation",Independent School Placements
Cambridgeshire County Council,01-Nov-23,51302092697,"1,524.00",React2it (Building Refurbishments) Limited,COMPANY,Investment in the CCC Asset Portfolio,Spokes - Roger Ascham,"New Construction, Conversion and Renovation"
Cambridgeshire County Council,01-Nov-23,51302079073,"1,560.00",YOUNG PEOPLE MARCH LTD,LOCAL CLUBS & GROUPS,Out of School Tuition,Out of School Provision EHCPs,Independent School Placements
Cambridgeshire County Council,01-Nov-23,51302081139,"1,584.00",PS3 LIMITED,TRADE SUPPLIER,Local Safeguarding Children's Board,LSB -  Chairperson Budget,Consultancy
Cambridgeshire County Council,01-Nov-23,51302092759,"1,602.00",Redacted Personal Data,SERVICE USER,LD - East Locality - Cost of Care,LD - East Cambs - Special Needs,Direct Payments
Cambridgeshire County Council,01-Nov-23,51302093047,"1,614.92",CRACKER JACKS DAY NURSERY,NURSERY,Early Years,SEND Specialist Services - SENIF,Payments to Other Establishments
Cambridgeshire County Council,01-Nov-23,51302092872,"1,622.00",FENLAND DISTRICT COUNCIL,OTHER PUBLIC BODIES,Corporate Offices,Whittlesey Library,Business rates
Cambridgeshire County Council,01-Nov-23,51302093048,"1,652.70",CYGNETS MILTON PRE SCHOOL,NURSERY,Early Years,SEND Specialist Services - SENIF,Formula Budget Allocation
Cambridgeshire County Council,01-Nov-23,51302092913,"1,722.00",HUNTINGDONSHIRE DISTRICT COUNCIL,OTHER PUBLIC BODIES,Waste Disposal incl PFI,Bluntisham HWRC,Business rates
Cambridgeshire County Council,01-Nov-23,51302092904,"1,896.00",HUNTINGDONSHIRE DISTRICT COUNCIL,OTHER PUBLIC BODIES,Corporate Offices,Lawrence Court,Business rates
Cambridgeshire County Council,01-Nov-23,51302092925,"1,921.00",HUNTINGDONSHIRE DISTRICT COUNCIL,OTHER PUBLIC BODIES,Corporate Offices,Ramsey Library,Business rates
Cambridgeshire County Council,01-Nov-23,51302092953,"1,951.00",HUNTINGDONSHIRE DISTRICT COUNCIL,OTHER PUBLIC BODIES,Corporate Offices,Vantage House,Business rates
Cambridgeshire County Council,01-Nov-23,51302092922,"1,971.00",HUNTINGDONSHIRE DISTRICT COUNCIL,OTHER PUBLIC BODIES,Corporate Offices,FM Amundsen Annexe,Business rates
Cambridgeshire County Council,01-Nov-23,51302092909,"2,058.00",HUNTINGDONSHIRE DISTRICT COUNCIL,OTHER PUBLIC BODIES,Corporate Offices,St Ives Library,Business rates
Cambridgeshire County Council,01-Nov-23,51302079111,"2,059.20",Pathfinder Legal Services Limited,TRADE SUPPLIER,Educations Systems,Educations System,IT Software
Cambridgeshire County Council,01-Nov-23,51302092902,"2,146.00",HUNTINGDONSHIRE DISTRICT COUNCIL,OTHER PUBLIC BODIES,Corporate Offices,St Neots Library,Business rates
Cambridgeshire County Council,01-Nov-23,51302092875,"2,181.00",FENLAND DISTRICT COUNCIL,OTHER PUBLIC BODIES,Corporate Offices,March Highways Depot,Business rates
Cambridgeshire County Council,01-Nov-23,51302092838,"2,209.37",Paragon Locums Ltd t/a Paragon Social Care,CARE ESTABLISHMENT,LAC Placements,Placements - supported accommodation,Agency Placements - In County
Cambridgeshire County Council,01-Nov-23,51302081140,"2,256.00",PS3 LIMITED,TRADE SUPPLIER,Local Safeguarding Children's Board,LSB -  Chairperson Budget,Consultancy
Cambridgeshire County Council,01-Nov-23,51302082407,"2,500.00",Sen Si Limited,COMPANY,North Child Looked After Team 1,North Child Looked After Team 1,Professional Fees and Hired Services
Cambridgeshire County Council,01-Nov-23,51302093013,"2,700.00",1-2 Achieve,EDUCATION,Out of School Tuition,Out of School Provision EHCPs,Independent School Placements
Cambridgeshire County Council,01-Nov-23,51302093014,"2,700.00",1-2 Achieve,EDUCATION,Out of School Tuition,Out of School Provision EHCPs,Independent School Placements
Cambridgeshire County Council,01-Nov-23,51302093015,"2,700.00",1-2 Achieve,EDUCATION,Out of School Tuition,Out of School Provision EHCPs,Independent School Placements
Cambridgeshire County Council,01-Nov-23,51302079949,"2,716.00",ANDREWS RECOVERY LIMITED,TRADE SUPPLIER,PSHE,PSHE - Life Education,Professional Fees and Hired Services
Cambridgeshire County Council,01-Nov-23,51302092746,"2,800.00",Charlotte Black Consulting,COMPANY,Executive Director AHC,"Executive Director - Adults, Health & Comissioning",Professional Fees and Hired Services
Cambridgeshire County Council,01-Nov-23,51302092984,"2,932.32",BEAUMONT HEALTHCARE LTD,CARE ESTABLISHMENT,Community Support Service,Community Support Service ECF,Grants to Voluntary Bodies
Cambridgeshire County Council,01-Nov-23,51302092687,"2,952.00",WEIGHTMANS LLP,TRADE SUPPLIER,Insurance Fund,Liability,Insurance Claims Paid
Cambridgeshire County Council,01-Nov-23,51302093019,"3,042.00",All seasons Children Play CIC,EDUCATION,Early Years Service - HAF,HAF Grant,Care & Ed Childcare Settings
Cambridgeshire County Council,01-Nov-23,51302092879,"3,072.00",FENLAND DISTRICT COUNCIL,OTHER PUBLIC BODIES,Corporate Offices,Wisbech Library,Business rates
Cambridgeshire County Council,01-Nov-23,51302092915,"3,072.00",HUNTINGDONSHIRE DISTRICT COUNCIL,OTHER PUBLIC BODIES,Corporate Offices,Stanton House,Business rates
Cambridgeshire County Council,01-Nov-23,51302093006,"3,145.17",Astraline (TEC) Ltd,TRADE SUPPLIER,Technology Enabled Care,Cambs Lifeline Project,Specialist Equipment For Service Delivery
Cambridgeshire County Council,01-Nov-23,51302092983,"3,309.86",BEAUMONT HEALTHCARE LTD,CARE ESTABLISHMENT,Community Support Service,Community Support Service ECF,Grants to Voluntary Bodies
Cambridgeshire County Council,01-Nov-23,51302092985,"3,448.30",BEAUMONT HEALTHCARE LTD,CARE ESTABLISHMENT,Community Support Service,Community Support Service ECF,Grants to Voluntary Bodies
Cambridgeshire County Council,01-Nov-23,51302077358,"3,497.33",CAMBRIDGESHIRE COMMUNITY SERVICES NHS TRUST,TRUST (OTHER),Head of Fostering & Supervised Contact,Head of Fostering & Supervised Contact,Professional Fees and Hired Services
Cambridgeshire County Council,01-Nov-23,51302092952,"3,563.00",HUNTINGDONSHIRE DISTRICT COUNCIL,OTHER PUBLIC BODIES,Corporate Offices,Vantage House,Business rates
Cambridgeshire County Council,01-Nov-23,51302092842,"3,866.40",Paragon Locums Ltd t/a Paragon Social Care,CARE ESTABLISHMENT,LAC Placements,Placements - supported accommodation,Agency Placements - In County
Cambridgeshire County Council,01-Nov-23,51302092846,"3,866.40",Paragon Locums Ltd t/a Paragon Social Care,CARE ESTABLISHMENT,LAC Placements,Placements - supported accommodation,Agency Placements - In County
Cambridgeshire County Council,01-Nov-23,51302092882,"3,917.00",FENLAND DISTRICT COUNCIL,OTHER PUBLIC BODIES,Commercial Activity,Cromwell Leisure Park,Business rates
Cambridgeshire County Council,01-Nov-23,51302092924,"3,968.00",HUNTINGDONSHIRE DISTRICT COUNCIL,OTHER PUBLIC BODIES,Corporate Offices,Speke House,Business rates
Cambridgeshire County Council,01-Nov-23,51302092911,"3,994.00",HUNTINGDONSHIRE DISTRICT COUNCIL,OTHER PUBLIC BODIES,Corporate Offices,Buttsgrove,Business rates
Cambridgeshire County Council,01-Nov-23,51302092881,"4,021.00",FENLAND DISTRICT COUNCIL,OTHER PUBLIC BODIES,Corporate Offices,Hereward Hall,Business rates
Cambridgeshire County Council,01-Nov-23,51302092729,"4,184.49",ARTHUR J GALLAGHER,TRADE SUPPLIER,Insurance Fund,Insurance General,Insurance Premiums
Cambridgeshire County Council,01-Nov-23,51302092917,"4,334.00",HUNTINGDONSHIRE DISTRICT COUNCIL,OTHER PUBLIC BODIES,Corporate Offices,Huntingdon Highways Depot,Business rates
Cambridgeshire County Council,01-Nov-23,51302092878,"4,454.00",FENLAND DISTRICT COUNCIL,OTHER PUBLIC BODIES,Corporate Offices,March Library,Business rates
Cambridgeshire County Council,01-Nov-23,51302092870,"4,813.00",FENLAND DISTRICT COUNCIL,OTHER PUBLIC BODIES,Corporate Offices,"Awdry House, Wisbech",Business rates
Cambridgeshire County Council,01-Nov-23,51302081325,"5,022.00",SLR Consulting Ltd,COMPANY,Waste Disposal incl PFI,Waste PFI,Professional Fees and Hired Services
Cambridgeshire County Council,01-Nov-23,51302092677,"5,400.00",Redacted Personal Data,INDIVIDUAL,Early Years Specialist Support,"SEND - Legal, Tribunal & Mediation",Independent School Placements
Cambridgeshire County Council,01-Nov-23,51302092923,"5,478.00",HUNTINGDONSHIRE DISTRICT COUNCIL,OTHER PUBLIC BODIES,Corporate Offices,Contact Centre - Amundsen House,Business rates
Cambridgeshire County Council,01-Nov-23,51302092758,"5,506.20",Redacted Personal Data,SERVICE USER,LD - Hunts Locality - Cost of Care,LD - Huntingdonshire - Care,Direct Payments
Cambridgeshire County Council,01-Nov-23,51302092921,"6,144.00",HUNTINGDONSHIRE DISTRICT COUNCIL,OTHER PUBLIC BODIES,Waste Disposal incl PFI,St.Neots HWRC,Business rates
Cambridgeshire County Council,01-Nov-23,51302093064,"6,250.61",Ackerman Pierce Limited,COMPANY,SEND - PEX support,SEND - Support for PEX without EHCP,Professional Fees and Hired Services
Cambridgeshire County Council,01-Nov-23,51302092851,"7,338.75",WCL UK LTD,TRADE SUPPLIER,ICT Service,ICT Service Sales,Materials for resale
Cambridgeshire County Council,01-Nov-23,51302092908,"7,389.00",HUNTINGDONSHIRE DISTRICT COUNCIL,OTHER PUBLIC BODIES,Grafham Water,Grafham Water Centre,Business rates
Cambridgeshire County Council,01-Nov-23,51302079521,"7,860.00",Idox Software Ltd,COMPANY,"County Planning, Minerals & Waste","County Planning, Minerals & Waste",Computer software - annual licence agreement
Cambridgeshire County Council,01-Nov-23,51302093112,"7,962.84",Ackerman Pierce Limited,COMPANY,SEND - PEX support,SEND - Support for PEX without EHCP,Professional Fees and Hired Services
Cambridgeshire County Council,01-Nov-23,51302082756,"8,333.00",RED BALLOON OF THE AIR,CARE ESTABLISHMENT,SEND High Needs Top Up,High Needs Top Up - Post 16,Independent School Placements
Cambridgeshire County Council,01-Nov-23,51302080478,"8,578.32",MOTT MACDONALD LTD,TRADE SUPPLIER,Emergency Active Travel Fund,Emergency Active Travel Fund,Construction - External Professional Fees
Cambridgeshire County Council,01-Nov-23,51302092803,"8,600.00",DSM Developments Limited,COMPANY,Highways Development Management,Section 278 Deposits,Developers Funds
Cambridgeshire County Council,01-Nov-23,51302082776,"9,999.67",RED BALLOON OF THE AIR,CARE ESTABLISHMENT,SEND High Needs Top Up,High Needs Top Up - Post 16,Independent School Placements
Cambridgeshire County Council,01-Nov-23,51302082772,"9,999.67",RED BALLOON OF THE AIR,CARE ESTABLISHMENT,SEND High Needs Top Up,High Needs Top Up - Post 16,Independent School Placements
Cambridgeshire County Council,01-Nov-23,51302082749,"9,999.67",RED BALLOON OF THE AIR,CARE ESTABLISHMENT,SEND High Needs Top Up,High Needs Top Up - Post 16,Independent School Placements
Cambridgeshire County Council,01-Nov-23,51302082755,"9,999.67",RED BALLOON OF THE AIR,CARE ESTABLISHMENT,SEND High Needs Top Up,High Needs Top Up - Post 16,Independent School Placements
Cambridgeshire County Council,01-Nov-23,51302081640,"9,999.67",RED BALLOON OF THE AIR,CARE ESTABLISHMENT,Out of School Tuition,Out of School Provision EHCPs,Independent School Placements
Cambridgeshire County Council,01-Nov-23,51302093097,"10,260.00",Redacted Personal Data,INDIVIDUAL,SEND High Needs Top Up,Personal Budgets,Independent School Placements
Cambridgeshire County Council,01-Nov-23,51302079760,"10,323.00",Paragon Customer Communications Limited,COMPANY,Capability Fund -  Fenland-Pboro' NCN63 & Update cycle maps in Cambs,Capability Fund-Update cycle maps in Cambridgeshire,Printing
Cambridgeshire County Council,01-Nov-23,51302092918,"10,342.00",HUNTINGDONSHIRE DISTRICT COUNCIL,OTHER PUBLIC BODIES,Corporate Offices,Scott House,Business rates
Cambridgeshire County Council,01-Nov-23,51302092920,"10,598.00",HUNTINGDONSHIRE DISTRICT COUNCIL,OTHER PUBLIC BODIES,Corporate Offices,Huntingdon Library,Business rates
Cambridgeshire County Council,01-Nov-23,51302092777,"10,676.57",Redacted Personal Data,INDIVIDUAL,OPPD - Cost of Care - East Cambs - Over 65,East Cambs - O P Team - Care,Direct Payments
Cambridgeshire County Council,01-Nov-23,51302082773,"11,666.33",RED BALLOON OF THE AIR,CARE ESTABLISHMENT,SEND High Needs Top Up,High Needs Top Up - Post 16,Independent School Placements
Cambridgeshire County Council,01-Nov-23,51302092853,"11,950.03",WCL UK LTD,TRADE SUPPLIER,ICT Service,ICT Service Sales,Materials for resale
Cambridgeshire County Council,01-Nov-23,51302092848,"12,860.35",WCL UK LTD,TRADE SUPPLIER,ICT Service,ICT Service Sales,Materials for resale
Cambridgeshire County Council,01-Nov-23,51302092730,"13,695.38",ARTHUR J GALLAGHER,TRADE SUPPLIER,Insurance Fund,Insurance General,Insurance Premiums
Cambridgeshire County Council,01-Nov-23,51302092742,"16,407.88",Keys PCE Ltd,CARE ESTABLISHMENT,SEN Placements,Independent Education Placements,Independent School Placements
Cambridgeshire County Council,01-Nov-23,51302093093,"17,575.99",Redacted Personal Data,INDIVIDUAL,Children's Disability Direct Payments,CSC Direct Payments,Direct Payments
Cambridgeshire County Council,01-Nov-23,51302093098,"19,980.00",CARING TOGETHER CHARITY,CARE ESTABLISHMENT,Adults Commissioning - Advocacy,Carers Commissioning,Supporting People
Cambridgeshire County Council,01-Nov-23,51302092695,"20,640.00",React2it (Building Refurbishments) Limited,COMPANY,Building Maintenance,Building Maintenance,"New Construction, Conversion and Renovation"
Cambridgeshire County Council,01-Nov-23,51302092738,"21,142.21",ARTHUR J GALLAGHER,TRADE SUPPLIER,Insurance Fund,Insurance General,Insurance Premiums
Cambridgeshire County Council,01-Nov-23,51302092727,"21,303.48",ARTHUR J GALLAGHER,TRADE SUPPLIER,Insurance Fund,Insurance General,Insurance Premiums
Cambridgeshire County Council,01-Nov-23,51302093095,"21,644.48",Prospero Group,EDUCATION,SEN Placements,Independent Education Placements,Independent School Placements
Cambridgeshire County Council,01-Nov-23,51302092972,"24,772.00",HUNTINGDONSHIRE DISTRICT COUNCIL,OTHER PUBLIC BODIES,Corporate Offices,Civic Headquarters � Alconbury Weald,Business rates
Cambridgeshire County Council,01-Nov-23,51302092833,"29,245.80",Serenity Welfare Limited,CARE ESTABLISHMENT,LAC Placements,Placements - supported accommodation,Agency Placements - In County
Cambridgeshire County Council,01-Nov-23,51302092722,"29,960.00",ARTHUR J GALLAGHER,TRADE SUPPLIER,Insurance Fund,Insurance General,Insurance Premiums
Cambridgeshire County Council,01-Nov-23,51302092731,"32,835.30",ARTHUR J GALLAGHER,TRADE SUPPLIER,Insurance Fund,Insurance General,Insurance Premiums
Cambridgeshire County Council,01-Nov-23,51302092834,"34,977.00",Serenity Welfare Limited,CARE ESTABLISHMENT,LAC Placements,Placements - supported accommodation,Agency Placements - In County
Cambridgeshire County Council,01-Nov-23,51302061964,"68,154.40",WSP UK Limited,COMPANY,GCP - Programme Management,GCP - Programme Management,Construction - External Professional Fees
Cambridgeshire County Council,01-Nov-23,51302061965,"86,110.72",WSP UK Limited,COMPANY,GCP - Programme Management,GCP - Programme Management,Construction - External Professional Fees
Cambridgeshire County Council,01-Nov-23,51302092728,"104,539.68",ARTHUR J GALLAGHER,TRADE SUPPLIER,Insurance Fund,Insurance General,Insurance Premiums
Cambridgeshire County Council,01-Nov-23,51302061967,"140,182.85",WSP UK Limited,COMPANY,GCP - Programme Management,GCP - Programme Management,Construction - External Professional Fees
Cambridgeshire County Council,01-Nov-23,51302091913,"332,286.24",Octavius Infrastructure Limited,COMPANY,March Broad Street FHSF/MATS,March Broad Street FHSF/MATS,Construction - External Professional Fees
Cambridgeshire County Council,01-Nov-23,51302092719,"556,259.20",ARTHUR J GALLAGHER,TRADE SUPPLIER,Insurance Fund,Insurance General,Insurance Premiums
Cambridgeshire County Council,02-Nov-23,51302032928,"-1,200.00",Paloma Systems Ltd,COMPANY,Domestic Violence & Sexual Violence,Victim Services Grant,Computer software - purchase
Cambridgeshire County Council,02-Nov-23,51302093007,-633.60,Pathfinder Legal Services Limited,TRADE SUPPLIER,Legal Proceedings,Legal Proceedings,External Legal Fees
Cambridgeshire County Council,02-Nov-23,51302081935,"1,828.50",RSP LTD,TRADE SUPPLIER,Safeguarding Hunts and Fenland,Family Safeguarding Hunts and Fenland,Concessions - payments to transport operators
Cambridgeshire County Council,03-Nov-23,65300040379,"-30,528.54",RAMSEY PLAYGROUP,NURSERY,Nursery Schools,Early Years - Funded 3s/4s,Care & Ed Childcare Settings
Cambridgeshire County Council,03-Nov-23,51302093956,"-2,874.17",SOCIAL CARE SOLUTIONS LTD,CARE ESTABLISHMENT,LD - Young Adults Team,LD - Young Adults - Care,Supported Living
Cambridgeshire County Council,03-Nov-23,51302093956,"-2,874.17",SOCIAL CARE SOLUTIONS LTD,CARE ESTABLISHMENT,LD - Young Adults Team,LD - Young Adults - Care,Supported Living
Cambridgeshire County Council,03-Nov-23,51302093956,"-2,874.17",SOCIAL CARE SOLUTIONS LTD,CARE ESTABLISHMENT,LD - Young Adults Team,LD - Young Adults - Care,Supported Living
Cambridgeshire County Council,03-Nov-23,51302093956,"-2,874.17",SOCIAL CARE SOLUTIONS LTD,CARE ESTABLISHMENT,LD - Young Adults Team,LD - Young Adults - Care,Supported Living
Cambridgeshire County Council,03-Nov-23,51302093956,"-2,874.17",SOCIAL CARE SOLUTIONS LTD,CARE ESTABLISHMENT,LD - Young Adults Team,LD - Young Adults - Care,Supported Living
Cambridgeshire County Council,03-Nov-23,51302093956,"-2,874.17",SOCIAL CARE SOLUTIONS LTD,CARE ESTABLISHMENT,LD - Young Adults Team,LD - Young Adults - Care,Supported Living
Cambridgeshire County Council,03-Nov-23,51302093828,"-2,679.29",CAPSTONE FOSTER CARE (SOUTH EAST) LTD,CARE ESTABLISHMENT,LAC Placements,Placements - independent fostering,Agency Placements - Out of  County
Cambridgeshire County Council,03-Nov-23,51302093613,"-2,503.80",Redacted Personal Data,PARENT/GUARDIAN,LD - Young Adults Team,LD - Young Adults - Care,Direct Payments
Cambridgeshire County Council,03-Nov-23,51302093613,"-2,503.80",Redacted Personal Data,PARENT/GUARDIAN,LD - Young Adults Team,LD - Young Adults - Care,Direct Payments
Cambridgeshire County Council,03-Nov-23,51302093613,"-2,503.80",Redacted Personal Data,PARENT/GUARDIAN,LD - Young Adults Team,LD - Young Adults - Care,Direct Payments
Cambridgeshire County Council,03-Nov-23,51302093613,"-2,503.80",Redacted Personal Data,PARENT/GUARDIAN,LD - Young Adults Team,LD - Young Adults - Care,Direct Payments
Cambridgeshire County Council,03-Nov-23,51302093613,"-2,503.80",Redacted Personal Data,PARENT/GUARDIAN,LD - Young Adults Team,LD - Young Adults - Care,Direct Payments
Cambridgeshire County Council,03-Nov-23,51302093613,"-2,503.80",Redacted Personal Data,PARENT/GUARDIAN,LD - Young Adults Team,LD - Young Adults - Care,Direct Payments
Cambridgeshire County Council,03-Nov-23,51302093613,"-2,503.80",Redacted Personal Data,PARENT/GUARDIAN,LD - Young Adults Team,LD - Young Adults - Care,Direct Payments
Cambridgeshire County Council,03-Nov-23,51302093613,"-2,503.80",Redacted Personal Data,PARENT/GUARDIAN,LD - Young Adults Team,LD - Young Adults - Care,Direct Payments
Cambridgeshire County Council,03-Nov-23,51302093960,"-2,092.69",GUYATT HOUSE CARE LTD,CARE ESTABLISHMENT,AMH Hunts and Fens - care,Hunts and Fens Adult Mental Health Team,Supported Living
Cambridgeshire County Council,03-Nov-23,51302093960,"-2,092.69",GUYATT HOUSE CARE LTD,CARE ESTABLISHMENT,AMH Hunts and Fens - care,Hunts and Fens Adult Mental Health Team,Supported Living
Cambridgeshire County Council,03-Nov-23,51302093960,"-2,092.69",GUYATT HOUSE CARE LTD,CARE ESTABLISHMENT,AMH Hunts and Fens - care,Hunts and Fens Adult Mental Health Team,Supported Living
Cambridgeshire County Council,03-Nov-23,51302093960,"-2,092.69",GUYATT HOUSE CARE LTD,CARE ESTABLISHMENT,AMH Hunts and Fens - care,Hunts and Fens Adult Mental Health Team,Supported Living
Cambridgeshire County Council,03-Nov-23,51302093960,"-2,092.69",GUYATT HOUSE CARE LTD,CARE ESTABLISHMENT,AMH Hunts and Fens - care,Hunts and Fens Adult Mental Health Team,Supported Living
Cambridgeshire County Council,03-Nov-23,51302093953,"-2,002.72",SOCIAL CARE SOLUTIONS LTD,CARE ESTABLISHMENT,LD - Young Adults Team,LD - Young Adults - Care,Supported Living
Cambridgeshire County Council,03-Nov-23,51302093953,"-2,002.72",SOCIAL CARE SOLUTIONS LTD,CARE ESTABLISHMENT,LD - Young Adults Team,LD - Young Adults - Care,Supported Living
Cambridgeshire County Council,03-Nov-23,51302093953,"-2,002.72",SOCIAL CARE SOLUTIONS LTD,CARE ESTABLISHMENT,LD - Young Adults Team,LD - Young Adults - Care,Supported Living
Cambridgeshire County Council,03-Nov-23,51302093953,"-2,002.72",SOCIAL CARE SOLUTIONS LTD,CARE ESTABLISHMENT,LD - Young Adults Team,LD - Young Adults - Care,Supported Living
Cambridgeshire County Council,03-Nov-23,51302093953,"-2,002.72",SOCIAL CARE SOLUTIONS LTD,CARE ESTABLISHMENT,LD - Young Adults Team,LD - Young Adults - Care,Supported Living
Cambridgeshire County Council,03-Nov-23,51302093953,"-2,002.72",SOCIAL CARE SOLUTIONS LTD,CARE ESTABLISHMENT,LD - Young Adults Team,LD - Young Adults - Care,Supported Living
Cambridgeshire County Council,03-Nov-23,51302093953,"-2,002.72",SOCIAL CARE SOLUTIONS LTD,CARE ESTABLISHMENT,LD - Young Adults Team,LD - Young Adults - Care,Supported Living
Cambridgeshire County Council,03-Nov-23,51302093953,"-2,002.72",SOCIAL CARE SOLUTIONS LTD,CARE ESTABLISHMENT,LD - Young Adults Team,LD - Young Adults - Care,Supported Living
Cambridgeshire County Council,03-Nov-23,51302093953,"-2,002.72",SOCIAL CARE SOLUTIONS LTD,CARE ESTABLISHMENT,LD - Young Adults Team,LD - Young Adults - Care,Supported Living
Cambridgeshire County Council,03-Nov-23,51302093953,"-2,002.72",SOCIAL CARE SOLUTIONS LTD,CARE ESTABLISHMENT,LD - Young Adults Team,LD - Young Adults - Care,Supported Living
Cambridgeshire County Council,03-Nov-23,51302093953,"-2,002.72",SOCIAL CARE SOLUTIONS LTD,CARE ESTABLISHMENT,LD - Young Adults Team,LD - Young Adults - Care,Supported Living
Cambridgeshire County Council,03-Nov-23,51302093953,"-2,002.72",SOCIAL CARE SOLUTIONS LTD,CARE ESTABLISHMENT,LD - Young Adults Team,LD - Young Adults - Care,Supported Living
Cambridgeshire County Council,03-Nov-23,51302093615,"-1,913.84",Redacted Personal Data,INDIVIDUAL,LD - Young Adults Team,LD - Young Adults - Special Needs,Direct Payments
Cambridgeshire County Council,03-Nov-23,51302093615,"-1,913.84",Redacted Personal Data,INDIVIDUAL,LD - Young Adults Team,LD - Young Adults - Special Needs,Direct Payments
Cambridgeshire County Council,03-Nov-23,51302093615,"-1,913.84",Redacted Personal Data,INDIVIDUAL,LD - Young Adults Team,LD - Young Adults - Special Needs,Direct Payments
Cambridgeshire County Council,03-Nov-23,51302093615,"-1,913.84",Redacted Personal Data,INDIVIDUAL,LD - Young Adults Team,LD - Young Adults - Special Needs,Direct Payments
Cambridgeshire County Council,03-Nov-23,51302093615,"-1,913.84",Redacted Personal Data,INDIVIDUAL,LD - Young Adults Team,LD - Young Adults - Special Needs,Direct Payments
Cambridgeshire County Council,03-Nov-23,51302093615,"-1,913.84",Redacted Personal Data,INDIVIDUAL,LD - Young Adults Team,LD - Young Adults - Special Needs,Direct Payments
Cambridgeshire County Council,03-Nov-23,51302093615,"-1,913.84",Redacted Personal Data,INDIVIDUAL,LD - Young Adults Team,LD - Young Adults - Special Needs,Direct Payments
Cambridgeshire County Council,03-Nov-23,51302093615,"-1,913.84",Redacted Personal Data,INDIVIDUAL,LD - Young Adults Team,LD - Young Adults - Special Needs,Direct Payments
Cambridgeshire County Council,03-Nov-23,51302093960,"-1,793.73",GUYATT HOUSE CARE LTD,CARE ESTABLISHMENT,AMH Hunts and Fens - care,Hunts and Fens Adult Mental Health Team,Supported Living
Cambridgeshire County Council,03-Nov-23,51302093962,"-1,730.57",The Wilf Ward Family Trust t/a Woodside,CARE ESTABLISHMENT,LD - Hunts Locality - Cost of Care,LD - Huntingdonshire - Care,Supported Living
Cambridgeshire County Council,03-Nov-23,51302093962,"-1,730.57",The Wilf Ward Family Trust t/a Woodside,CARE ESTABLISHMENT,LD - Hunts Locality - Cost of Care,LD - Huntingdonshire - Care,Supported Living
Cambridgeshire County Council,03-Nov-23,51302093962,"-1,730.57",The Wilf Ward Family Trust t/a Woodside,CARE ESTABLISHMENT,LD - Hunts Locality - Cost of Care,LD - Huntingdonshire - Care,Supported Living
Cambridgeshire County Council,03-Nov-23,51302093962,"-1,730.57",The Wilf Ward Family Trust t/a Woodside,CARE ESTABLISHMENT,LD - Hunts Locality - Cost of Care,LD - Huntingdonshire - Care,Supported Living
Cambridgeshire County Council,03-Nov-23,51302093962,"-1,730.57",The Wilf Ward Family Trust t/a Woodside,CARE ESTABLISHMENT,LD - Hunts Locality - Cost of Care,LD - Huntingdonshire - Care,Supported Living
Cambridgeshire County Council,03-Nov-23,51302093962,"-1,730.57",The Wilf Ward Family Trust t/a Woodside,CARE ESTABLISHMENT,LD - Hunts Locality - Cost of Care,LD - Huntingdonshire - Care,Supported Living
Cambridgeshire County Council,03-Nov-23,51302093962,"-1,730.57",The Wilf Ward Family Trust t/a Woodside,CARE ESTABLISHMENT,LD - Hunts Locality - Cost of Care,LD - Huntingdonshire - Care,Supported Living
Cambridgeshire County Council,03-Nov-23,51302093962,"-1,730.57",The Wilf Ward Family Trust t/a Woodside,CARE ESTABLISHMENT,LD - Hunts Locality - Cost of Care,LD - Huntingdonshire - Care,Supported Living
Cambridgeshire County Council,03-Nov-23,51302093962,"-1,730.57",The Wilf Ward Family Trust t/a Woodside,CARE ESTABLISHMENT,LD - Hunts Locality - Cost of Care,LD - Huntingdonshire - Care,Supported Living
Cambridgeshire County Council,03-Nov-23,51302093962,"-1,730.57",The Wilf Ward Family Trust t/a Woodside,CARE ESTABLISHMENT,LD - Hunts Locality - Cost of Care,LD - Huntingdonshire - Care,Supported Living
Cambridgeshire County Council,03-Nov-23,51302093962,"-1,730.57",The Wilf Ward Family Trust t/a Woodside,CARE ESTABLISHMENT,LD - Hunts Locality - Cost of Care,LD - Huntingdonshire - Care,Supported Living
Cambridgeshire County Council,03-Nov-23,51302093962,"-1,730.57",The Wilf Ward Family Trust t/a Woodside,CARE ESTABLISHMENT,LD - Hunts Locality - Cost of Care,LD - Huntingdonshire - Care,Supported Living
Cambridgeshire County Council,03-Nov-23,51302093962,"-1,730.57",The Wilf Ward Family Trust t/a Woodside,CARE ESTABLISHMENT,LD - Hunts Locality - Cost of Care,LD - Huntingdonshire - Care,Supported Living
Cambridgeshire County Council,03-Nov-23,51302093962,"-1,730.57",The Wilf Ward Family Trust t/a Woodside,CARE ESTABLISHMENT,LD - Hunts Locality - Cost of Care,LD - Huntingdonshire - Care,Supported Living
Cambridgeshire County Council,03-Nov-23,51302093962,"-1,730.57",The Wilf Ward Family Trust t/a Woodside,CARE ESTABLISHMENT,LD - Hunts Locality - Cost of Care,LD - Huntingdonshire - Care,Supported Living
Cambridgeshire County Council,03-Nov-23,51302093962,"-1,730.57",The Wilf Ward Family Trust t/a Woodside,CARE ESTABLISHMENT,LD - Hunts Locality - Cost of Care,LD - Huntingdonshire - Care,Supported Living
Cambridgeshire County Council,03-Nov-23,51302093962,"-1,730.57",The Wilf Ward Family Trust t/a Woodside,CARE ESTABLISHMENT,LD - Hunts Locality - Cost of Care,LD - Huntingdonshire - Care,Supported Living
Cambridgeshire County Council,03-Nov-23,51302093962,"-1,730.57",The Wilf Ward Family Trust t/a Woodside,CARE ESTABLISHMENT,LD - Hunts Locality - Cost of Care,LD - Huntingdonshire - Care,Supported Living
Cambridgeshire County Council,03-Nov-23,51302093962,"-1,730.57",The Wilf Ward Family Trust t/a Woodside,CARE ESTABLISHMENT,LD - Hunts Locality - Cost of Care,LD - Huntingdonshire - Care,Supported Living
Cambridgeshire County Council,03-Nov-23,51302093962,"-1,730.57",The Wilf Ward Family Trust t/a Woodside,CARE ESTABLISHMENT,LD - Hunts Locality - Cost of Care,LD - Huntingdonshire - Care,Supported Living
Cambridgeshire County Council,03-Nov-23,51302093962,"-1,730.57",The Wilf Ward Family Trust t/a Woodside,CARE ESTABLISHMENT,LD - Hunts Locality - Cost of Care,LD - Huntingdonshire - Care,Supported Living
Cambridgeshire County Council,03-Nov-23,51302093962,"-1,730.57",The Wilf Ward Family Trust t/a Woodside,CARE ESTABLISHMENT,LD - Hunts Locality - Cost of Care,LD - Huntingdonshire - Care,Supported Living
Cambridgeshire County Council,03-Nov-23,51302093962,"-1,730.57",The Wilf Ward Family Trust t/a Woodside,CARE ESTABLISHMENT,LD - Hunts Locality - Cost of Care,LD - Huntingdonshire - Care,Supported Living
Cambridgeshire County Council,03-Nov-23,51302093962,"-1,730.57",The Wilf Ward Family Trust t/a Woodside,CARE ESTABLISHMENT,LD - Hunts Locality - Cost of Care,LD - Huntingdonshire - Care,Supported Living
Cambridgeshire County Council,03-Nov-23,51302093962,"-1,730.57",The Wilf Ward Family Trust t/a Woodside,CARE ESTABLISHMENT,LD - Hunts Locality - Cost of Care,LD - Huntingdonshire - Care,Supported Living
Cambridgeshire County Council,03-Nov-23,51302093962,"-1,730.57",The Wilf Ward Family Trust t/a Woodside,CARE ESTABLISHMENT,LD - Hunts Locality - Cost of Care,LD - Huntingdonshire - Care,Supported Living
Cambridgeshire County Council,03-Nov-23,51302093962,"-1,730.57",The Wilf Ward Family Trust t/a Woodside,CARE ESTABLISHMENT,LD - Hunts Locality - Cost of Care,LD - Huntingdonshire - Care,Supported Living
Cambridgeshire County Council,03-Nov-23,51302093962,"-1,730.57",The Wilf Ward Family Trust t/a Woodside,CARE ESTABLISHMENT,LD - Hunts Locality - Cost of Care,LD - Huntingdonshire - Care,Supported Living
Cambridgeshire County Council,03-Nov-23,51302093962,"-1,730.57",The Wilf Ward Family Trust t/a Woodside,CARE ESTABLISHMENT,LD - Hunts Locality - Cost of Care,LD - Huntingdonshire - Care,Supported Living
Cambridgeshire County Council,03-Nov-23,51302093962,"-1,730.57",The Wilf Ward Family Trust t/a Woodside,CARE ESTABLISHMENT,LD - Hunts Locality - Cost of Care,LD - Huntingdonshire - Care,Supported Living
Cambridgeshire County Council,03-Nov-23,51302093962,"-1,730.57",The Wilf Ward Family Trust t/a Woodside,CARE ESTABLISHMENT,LD - Hunts Locality - Cost of Care,LD - Huntingdonshire - Care,Supported Living
Cambridgeshire County Council,03-Nov-23,51302093956,"-1,642.38",SOCIAL CARE SOLUTIONS LTD,CARE ESTABLISHMENT,LD - Young Adults Team,LD - Young Adults - Care,Supported Living
Cambridgeshire County Council,03-Nov-23,51302093953,"-1,430.51",SOCIAL CARE SOLUTIONS LTD,CARE ESTABLISHMENT,LD - Young Adults Team,LD - Young Adults - Care,Supported Living
Cambridgeshire County Council,03-Nov-23,51302093957,"-1,203.47",SOCIAL CARE SOLUTIONS LTD,CARE ESTABLISHMENT,LD - Fenland Locality - Cost of Care,LD - Fenland  - Special Needs,Supported Living
Cambridgeshire County Council,03-Nov-23,51302093957,"-1,203.47",SOCIAL CARE SOLUTIONS LTD,CARE ESTABLISHMENT,LD - Fenland Locality - Cost of Care,LD - Fenland  - Special Needs,Supported Living
Cambridgeshire County Council,03-Nov-23,51302093957,"-1,203.47",SOCIAL CARE SOLUTIONS LTD,CARE ESTABLISHMENT,LD - Fenland Locality - Cost of Care,LD - Fenland  - Special Needs,Supported Living
Cambridgeshire County Council,03-Nov-23,51302093957,"-1,203.47",SOCIAL CARE SOLUTIONS LTD,CARE ESTABLISHMENT,LD - Fenland Locality - Cost of Care,LD - Fenland  - Special Needs,Supported Living
Cambridgeshire County Council,03-Nov-23,51302093957,"-1,203.47",SOCIAL CARE SOLUTIONS LTD,CARE ESTABLISHMENT,LD - Fenland Locality - Cost of Care,LD - Fenland  - Special Needs,Supported Living
Cambridgeshire County Council,03-Nov-23,51302093827,"-1,123.57",CAPSTONE FOSTER CARE (SOUTH EAST) LTD,CARE ESTABLISHMENT,LAC Placements,Placements - independent fostering,Agency Placements - Out of  County
Cambridgeshire County Council,03-Nov-23,51302093969,"-1,087.87",SOCIAL CARE SOLUTIONS LTD,CARE ESTABLISHMENT,Autism and Adult Support - Cost of Care,Autism and Adult Support - Care,Supported Living
Cambridgeshire County Council,03-Nov-23,51302093969,"-1,087.87",SOCIAL CARE SOLUTIONS LTD,CARE ESTABLISHMENT,Autism and Adult Support - Cost of Care,Autism and Adult Support - Care,Supported Living
Cambridgeshire County Council,03-Nov-23,51302093969,"-1,087.87",SOCIAL CARE SOLUTIONS LTD,CARE ESTABLISHMENT,Autism and Adult Support - Cost of Care,Autism and Adult Support - Care,Supported Living
Cambridgeshire County Council,03-Nov-23,51302093969,"-1,087.87",SOCIAL CARE SOLUTIONS LTD,CARE ESTABLISHMENT,Autism and Adult Support - Cost of Care,Autism and Adult Support - Care,Supported Living
Cambridgeshire County Council,03-Nov-23,51302093969,"-1,087.87",SOCIAL CARE SOLUTIONS LTD,CARE ESTABLISHMENT,Autism and Adult Support - Cost of Care,Autism and Adult Support - Care,Supported Living
Cambridgeshire County Council,03-Nov-23,51302093969,"-1,087.87",SOCIAL CARE SOLUTIONS LTD,CARE ESTABLISHMENT,Autism and Adult Support - Cost of Care,Autism and Adult Support - Care,Supported Living
Cambridgeshire County Council,03-Nov-23,51302093969,"-1,087.87",SOCIAL CARE SOLUTIONS LTD,CARE ESTABLISHMENT,Autism and Adult Support - Cost of Care,Autism and Adult Support - Care,Supported Living
Cambridgeshire County Council,03-Nov-23,51302093969,"-1,087.87",SOCIAL CARE SOLUTIONS LTD,CARE ESTABLISHMENT,Autism and Adult Support - Cost of Care,Autism and Adult Support - Care,Supported Living
Cambridgeshire County Council,03-Nov-23,51302093969,"-1,087.87",SOCIAL CARE SOLUTIONS LTD,CARE ESTABLISHMENT,Autism and Adult Support - Cost of Care,Autism and Adult Support - Care,Supported Living
Cambridgeshire County Council,03-Nov-23,51302093969,"-1,087.87",SOCIAL CARE SOLUTIONS LTD,CARE ESTABLISHMENT,Autism and Adult Support - Cost of Care,Autism and Adult Support - Care,Supported Living
Cambridgeshire County Council,03-Nov-23,51302093969,"-1,087.87",SOCIAL CARE SOLUTIONS LTD,CARE ESTABLISHMENT,Autism and Adult Support - Cost of Care,Autism and Adult Support - Care,Supported Living
Cambridgeshire County Council,03-Nov-23,51302093969,"-1,087.87",SOCIAL CARE SOLUTIONS LTD,CARE ESTABLISHMENT,Autism and Adult Support - Cost of Care,Autism and Adult Support - Care,Supported Living
Cambridgeshire County Council,03-Nov-23,51302093969,"-1,087.87",SOCIAL CARE SOLUTIONS LTD,CARE ESTABLISHMENT,Autism and Adult Support - Cost of Care,Autism and Adult Support - Care,Supported Living
Cambridgeshire County Council,03-Nov-23,51302093969,"-1,087.87",SOCIAL CARE SOLUTIONS LTD,CARE ESTABLISHMENT,Autism and Adult Support - Cost of Care,Autism and Adult Support - Care,Supported Living
Cambridgeshire County Council,03-Nov-23,51302093969,"-1,087.87",SOCIAL CARE SOLUTIONS LTD,CARE ESTABLISHMENT,Autism and Adult Support - Cost of Care,Autism and Adult Support - Care,Supported Living
Cambridgeshire County Council,03-Nov-23,51302093969,"-1,087.87",SOCIAL CARE SOLUTIONS LTD,CARE ESTABLISHMENT,Autism and Adult Support - Cost of Care,Autism and Adult Support - Care,Supported Living
Cambridgeshire County Council,03-Nov-23,51302093969,"-1,087.87",SOCIAL CARE SOLUTIONS LTD,CARE ESTABLISHMENT,Autism and Adult Support - Cost of Care,Autism and Adult Support - Care,Supported Living
Cambridgeshire County Council,03-Nov-23,51302093969,"-1,087.87",SOCIAL CARE SOLUTIONS LTD,CARE ESTABLISHMENT,Autism and Adult Support - Cost of Care,Autism and Adult Support - Care,Supported Living
Cambridgeshire County Council,03-Nov-23,51302093969,"-1,087.87",SOCIAL CARE SOLUTIONS LTD,CARE ESTABLISHMENT,Autism and Adult Support - Cost of Care,Autism and Adult Support - Care,Supported Living
Cambridgeshire County Council,03-Nov-23,51302093969,"-1,087.87",SOCIAL CARE SOLUTIONS LTD,CARE ESTABLISHMENT,Autism and Adult Support - Cost of Care,Autism and Adult Support - Care,Supported Living
Cambridgeshire County Council,03-Nov-23,51302093969,"-1,087.87",SOCIAL CARE SOLUTIONS LTD,CARE ESTABLISHMENT,Autism and Adult Support - Cost of Care,Autism and Adult Support - Care,Supported Living
Cambridgeshire County Council,03-Nov-23,51302093969,"-1,087.87",SOCIAL CARE SOLUTIONS LTD,CARE ESTABLISHMENT,Autism and Adult Support - Cost of Care,Autism and Adult Support - Care,Supported Living
Cambridgeshire County Council,03-Nov-23,51302093969,"-1,087.87",SOCIAL CARE SOLUTIONS LTD,CARE ESTABLISHMENT,Autism and Adult Support - Cost of Care,Autism and Adult Support - Care,Supported Living
Cambridgeshire County Council,03-Nov-23,51302093969,"-1,087.87",SOCIAL CARE SOLUTIONS LTD,CARE ESTABLISHMENT,Autism and Adult Support - Cost of Care,Autism and Adult Support - Care,Supported Living
Cambridgeshire County Council,03-Nov-23,51302093957,"-1,031.55",SOCIAL CARE SOLUTIONS LTD,CARE ESTABLISHMENT,LD - Fenland Locality - Cost of Care,LD - Fenland  - Special Needs,Supported Living
Cambridgeshire County Council,03-Nov-23,51301908716,-912.40,ASKHAM HALL,CARE ESTABLISHMENT,OPPD - Cost of Care - East Cambs - Over 65,East Cambs - O P Team - Care,Nursing Care
Cambridgeshire County Council,03-Nov-23,51301908716,-912.40,ASKHAM HALL,CARE ESTABLISHMENT,OPPD - Cost of Care - East Cambs - Over 65,East Cambs - O P Team - Care,Nursing Care
Cambridgeshire County Council,03-Nov-23,51301908716,-912.40,ASKHAM HALL,CARE ESTABLISHMENT,OPPD - Cost of Care - East Cambs - Over 65,East Cambs - O P Team - Care,Nursing Care
Cambridgeshire County Council,03-Nov-23,51301908716,-912.40,ASKHAM HALL,CARE ESTABLISHMENT,OPPD - Cost of Care - East Cambs - Over 65,East Cambs - O P Team - Care,Nursing Care
Cambridgeshire County Council,03-Nov-23,51301908716,-912.40,ASKHAM HALL,CARE ESTABLISHMENT,OPPD - Cost of Care - East Cambs - Over 65,East Cambs - O P Team - Care,Nursing Care
Cambridgeshire County Council,03-Nov-23,51301908716,-912.40,ASKHAM HALL,CARE ESTABLISHMENT,OPPD - Cost of Care - East Cambs - Over 65,East Cambs - O P Team - Care,Nursing Care
Cambridgeshire County Council,03-Nov-23,51301908716,-912.40,ASKHAM HALL,CARE ESTABLISHMENT,OPPD - Cost of Care - East Cambs - Over 65,East Cambs - O P Team - Care,Nursing Care
Cambridgeshire County Council,03-Nov-23,51301908716,-912.40,ASKHAM HALL,CARE ESTABLISHMENT,OPPD - Cost of Care - East Cambs - Over 65,East Cambs - O P Team - Care,Nursing Care
Cambridgeshire County Council,03-Nov-23,51301908716,-912.40,ASKHAM HALL,CARE ESTABLISHMENT,OPPD - Cost of Care - East Cambs - Over 65,East Cambs - O P Team - Care,Nursing Care
Cambridgeshire County Council,03-Nov-23,51301908716,-912.40,ASKHAM HALL,CARE ESTABLISHMENT,OPPD - Cost of Care - East Cambs - Over 65,East Cambs - O P Team - Care,Nursing Care
Cambridgeshire County Council,03-Nov-23,51301908716,-912.40,ASKHAM HALL,CARE ESTABLISHMENT,OPPD - Cost of Care - East Cambs - Over 65,East Cambs - O P Team - Care,Nursing Care
Cambridgeshire County Council,03-Nov-23,51301908716,-912.40,ASKHAM HALL,CARE ESTABLISHMENT,OPPD - Cost of Care - East Cambs - Over 65,East Cambs - O P Team - Care,Nursing Care
Cambridgeshire County Council,03-Nov-23,51301908716,-912.40,ASKHAM HALL,CARE ESTABLISHMENT,OPPD - Cost of Care - East Cambs - Over 65,East Cambs - O P Team - Care,Nursing Care
Cambridgeshire County Council,03-Nov-23,51301908716,-912.40,ASKHAM HALL,CARE ESTABLISHMENT,OPPD - Cost of Care - East Cambs - Over 65,East Cambs - O P Team - Care,Nursing Care
Cambridgeshire County Council,03-Nov-23,51301908716,-912.40,ASKHAM HALL,CARE ESTABLISHMENT,OPPD - Cost of Care - East Cambs - Over 65,East Cambs - O P Team - Care,Nursing Care
Cambridgeshire County Council,03-Nov-23,51301908716,-912.40,ASKHAM HALL,CARE ESTABLISHMENT,OPPD - Cost of Care - East Cambs - Over 65,East Cambs - O P Team - Care,Nursing Care
Cambridgeshire County Council,03-Nov-23,51301908716,-912.40,ASKHAM HALL,CARE ESTABLISHMENT,OPPD - Cost of Care - East Cambs - Over 65,East Cambs - O P Team - Care,Nursing Care
Cambridgeshire County Council,03-Nov-23,51301908716,-912.40,ASKHAM HALL,CARE ESTABLISHMENT,OPPD - Cost of Care - East Cambs - Over 65,East Cambs - O P Team - Care,Nursing Care
Cambridgeshire County Council,03-Nov-23,51301908716,-912.40,ASKHAM HALL,CARE ESTABLISHMENT,OPPD - Cost of Care - East Cambs - Over 65,East Cambs - O P Team - Care,Nursing Care
Cambridgeshire County Council,03-Nov-23,51301908716,-912.40,ASKHAM HALL,CARE ESTABLISHMENT,OPPD - Cost of Care - East Cambs - Over 65,East Cambs - O P Team - Care,Nursing Care
Cambridgeshire County Council,03-Nov-23,51301908716,-912.40,ASKHAM HALL,CARE ESTABLISHMENT,OPPD - Cost of Care - East Cambs - Over 65,East Cambs - O P Team - Care,Nursing Care
Cambridgeshire County Council,03-Nov-23,51301908716,-912.40,ASKHAM HALL,CARE ESTABLISHMENT,OPPD - Cost of Care - East Cambs - Over 65,East Cambs - O P Team - Care,Nursing Care
Cambridgeshire County Council,03-Nov-23,51301908716,-912.40,ASKHAM HALL,CARE ESTABLISHMENT,OPPD - Cost of Care - East Cambs - Over 65,East Cambs - O P Team - Care,Nursing Care
Cambridgeshire County Council,03-Nov-23,51301908716,-912.40,ASKHAM HALL,CARE ESTABLISHMENT,OPPD - Cost of Care - East Cambs - Over 65,East Cambs - O P Team - Care,Nursing Care
Cambridgeshire County Council,03-Nov-23,51301908716,-912.40,ASKHAM HALL,CARE ESTABLISHMENT,OPPD - Cost of Care - East Cambs - Over 65,East Cambs - O P Team - Care,Nursing Care
Cambridgeshire County Council,03-Nov-23,51301908716,-912.40,ASKHAM HALL,CARE ESTABLISHMENT,OPPD - Cost of Care - East Cambs - Over 65,East Cambs - O P Team - Care,Nursing Care
Cambridgeshire County Council,03-Nov-23,51301908716,-912.40,ASKHAM HALL,CARE ESTABLISHMENT,OPPD - Cost of Care - East Cambs - Over 65,East Cambs - O P Team - Care,Nursing Care
Cambridgeshire County Council,03-Nov-23,51301908716,-912.40,ASKHAM HALL,CARE ESTABLISHMENT,OPPD - Cost of Care - East Cambs - Over 65,East Cambs - O P Team - Care,Nursing Care
Cambridgeshire County Council,03-Nov-23,51301908716,-912.40,ASKHAM HALL,CARE ESTABLISHMENT,OPPD - Cost of Care - East Cambs - Over 65,East Cambs - O P Team - Care,Nursing Care
Cambridgeshire County Council,03-Nov-23,51301908716,-912.40,ASKHAM HALL,CARE ESTABLISHMENT,OPPD - Cost of Care - East Cambs - Over 65,East Cambs - O P Team - Care,Nursing Care
Cambridgeshire County Council,03-Nov-23,51301908716,-912.40,ASKHAM HALL,CARE ESTABLISHMENT,OPPD - Cost of Care - East Cambs - Over 65,East Cambs - O P Team - Care,Nursing Care
Cambridgeshire County Council,03-Nov-23,51301908716,-912.40,ASKHAM HALL,CARE ESTABLISHMENT,OPPD - Cost of Care - East Cambs - Over 65,East Cambs - O P Team - Care,Nursing Care
Cambridgeshire County Council,03-Nov-23,51301908716,-912.40,ASKHAM HALL,CARE ESTABLISHMENT,OPPD - Cost of Care - East Cambs - Over 65,East Cambs - O P Team - Care,Nursing Care
Cambridgeshire County Council,03-Nov-23,51301908716,-912.40,ASKHAM HALL,CARE ESTABLISHMENT,OPPD - Cost of Care - East Cambs - Over 65,East Cambs - O P Team - Care,Nursing Care
Cambridgeshire County Council,03-Nov-23,51301908716,-912.40,ASKHAM HALL,CARE ESTABLISHMENT,OPPD - Cost of Care - East Cambs - Over 65,East Cambs - O P Team - Care,Nursing Care
Cambridgeshire County Council,03-Nov-23,51302093972,-540.86,SOCIAL CARE SOLUTIONS LTD,CARE ESTABLISHMENT,LD - Fenland Locality - Cost of Care,LD - Fenland  - Care,Supported Living
Cambridgeshire County Council,03-Nov-23,51302093972,-540.86,SOCIAL CARE SOLUTIONS LTD,CARE ESTABLISHMENT,LD - Fenland Locality - Cost of Care,LD - Fenland  - Care,Supported Living
Cambridgeshire County Council,03-Nov-23,51302093972,-540.86,SOCIAL CARE SOLUTIONS LTD,CARE ESTABLISHMENT,LD - Fenland Locality - Cost of Care,LD - Fenland  - Care,Supported Living
Cambridgeshire County Council,03-Nov-23,51302093972,-540.86,SOCIAL CARE SOLUTIONS LTD,CARE ESTABLISHMENT,LD - Fenland Locality - Cost of Care,LD - Fenland  - Care,Supported Living
Cambridgeshire County Council,03-Nov-23,51302093972,-540.86,SOCIAL CARE SOLUTIONS LTD,CARE ESTABLISHMENT,LD - Fenland Locality - Cost of Care,LD - Fenland  - Care,Supported Living
Cambridgeshire County Council,03-Nov-23,51302093972,-540.86,SOCIAL CARE SOLUTIONS LTD,CARE ESTABLISHMENT,LD - Fenland Locality - Cost of Care,LD - Fenland  - Care,Supported Living
Cambridgeshire County Council,03-Nov-23,51302093972,-540.86,SOCIAL CARE SOLUTIONS LTD,CARE ESTABLISHMENT,LD - Fenland Locality - Cost of Care,LD - Fenland  - Care,Supported Living
Cambridgeshire County Council,03-Nov-23,51302093972,-540.86,SOCIAL CARE SOLUTIONS LTD,CARE ESTABLISHMENT,LD - Fenland Locality - Cost of Care,LD - Fenland  - Care,Supported Living
Cambridgeshire County Council,03-Nov-23,51302093972,-540.86,SOCIAL CARE SOLUTIONS LTD,CARE ESTABLISHMENT,LD - Fenland Locality - Cost of Care,LD - Fenland  - Care,Supported Living
Cambridgeshire County Council,03-Nov-23,51302093957,-503.57,SOCIAL CARE SOLUTIONS LTD,CARE ESTABLISHMENT,LD - Fenland Locality - Cost of Care,LD - Fenland  - Special Needs,Supported Living
Cambridgeshire County Council,03-Nov-23,51302093957,-503.57,SOCIAL CARE SOLUTIONS LTD,CARE ESTABLISHMENT,LD - Fenland Locality - Cost of Care,LD - Fenland  - Special Needs,Supported Living
Cambridgeshire County Council,03-Nov-23,51302093957,-503.57,SOCIAL CARE SOLUTIONS LTD,CARE ESTABLISHMENT,LD - Fenland Locality - Cost of Care,LD - Fenland  - Special Needs,Supported Living
Cambridgeshire County Council,03-Nov-23,51302093957,-503.57,SOCIAL CARE SOLUTIONS LTD,CARE ESTABLISHMENT,LD - Fenland Locality - Cost of Care,LD - Fenland  - Special Needs,Supported Living
Cambridgeshire County Council,03-Nov-23,51302093957,-503.57,SOCIAL CARE SOLUTIONS LTD,CARE ESTABLISHMENT,LD - Fenland Locality - Cost of Care,LD - Fenland  - Special Needs,Supported Living
Cambridgeshire County Council,03-Nov-23,51302093169,503.68,Kindred Huntingdon,NURSERY,Early Years,SEND Specialist Services - SENIF,SEN Funding
Cambridgeshire County Council,03-Nov-23,51302093120,505.20,MOLE ARCHITECTS LTD,TRADE SUPPLIER,Growth & Development,Quality Charter funding,Professional Fees and Hired Services
Cambridgeshire County Council,03-Nov-23,51302093957,507.30,SOCIAL CARE SOLUTIONS LTD,CARE ESTABLISHMENT,LD - Fenland Locality - Cost of Care,LD - Fenland  - Special Needs,Supported Living
Cambridgeshire County Council,03-Nov-23,51302093957,507.30,SOCIAL CARE SOLUTIONS LTD,CARE ESTABLISHMENT,LD - Fenland Locality - Cost of Care,LD - Fenland  - Special Needs,Supported Living
Cambridgeshire County Council,03-Nov-23,51302093957,507.30,SOCIAL CARE SOLUTIONS LTD,CARE ESTABLISHMENT,LD - Fenland Locality - Cost of Care,LD - Fenland  - Special Needs,Supported Living
Cambridgeshire County Council,03-Nov-23,51302093957,507.30,SOCIAL CARE SOLUTIONS LTD,CARE ESTABLISHMENT,LD - Fenland Locality - Cost of Care,LD - Fenland  - Special Needs,Supported Living
Cambridgeshire County Council,03-Nov-23,51302093957,507.30,SOCIAL CARE SOLUTIONS LTD,CARE ESTABLISHMENT,LD - Fenland Locality - Cost of Care,LD - Fenland  - Special Needs,Supported Living
Cambridgeshire County Council,03-Nov-23,51302083716,513.00,HINCHINGBROOKE COUNTRY PARK,TRADE SUPPLIER,Domestic Violence & Sexual Violence,DLUHC Grant,Casual hire of facilities
Cambridgeshire County Council,03-Nov-23,51302093727,517.00,Ely Taxi Link,COMPANY,Home to School Transport - Special,Home to School Transport Special - Out of County,Home to School - Contract
Cambridgeshire County Council,03-Nov-23,51302093607,521.23,ASKEWS AND HOLTS LIBRARY SERVICES LTD,TRADE SUPPLIER,Libraries - Stock & Distribution,Support - Stock & Distribution,Books and Multimedia Supplies
Cambridgeshire County Council,03-Nov-23,51302093605,527.85,ASKEWS AND HOLTS LIBRARY SERVICES LTD,TRADE SUPPLIER,Libraries - Stock & Distribution,Support - Stock & Distribution,Books and Multimedia Supplies
Cambridgeshire County Council,03-Nov-23,51302082355,555.14,HOLDSWORTH,TRADE SUPPLIER,Grafham Water,Grafham Water Centre,Catering Provisions
Cambridgeshire County Council,03-Nov-23,51302093628,557.70,Pathfinder Legal Services Limited,TRADE SUPPLIER,Net Zero Programme,Phase 1- Enabling net Zero - Just Transition Fund,External Legal Fees
Cambridgeshire County Council,03-Nov-23,51302093615,585.09,Redacted Personal Data,INDIVIDUAL,LD - Young Adults Team,LD - Young Adults - Special Needs,Direct Payments
Cambridgeshire County Council,03-Nov-23,51302093968,586.52,Lifeways - SIL Ltd,CARE ESTABLISHMENT,LD - Hunts Locality - Cost of Care,LD - Huntingdonshire - Care,Supported Living
Cambridgeshire County Council,03-Nov-23,51302093968,586.52,Lifeways - SIL Ltd,CARE ESTABLISHMENT,LD - Hunts Locality - Cost of Care,LD - Huntingdonshire - Care,Supported Living
Cambridgeshire County Council,03-Nov-23,51302093968,586.52,Lifeways - SIL Ltd,CARE ESTABLISHMENT,LD - Hunts Locality - Cost of Care,LD - Huntingdonshire - Care,Supported Living
Cambridgeshire County Council,03-Nov-23,51302093968,586.52,Lifeways - SIL Ltd,CARE ESTABLISHMENT,LD - Hunts Locality - Cost of Care,LD - Huntingdonshire - Care,Supported Living
Cambridgeshire County Council,03-Nov-23,51302093750,588.06,A2B TAXIS,TRADE SUPPLIER,Home to School Transport - Special,Home to School Transport Special - Special School,Home to School - Contract
Cambridgeshire County Council,03-Nov-23,51302093972,588.46,SOCIAL CARE SOLUTIONS LTD,CARE ESTABLISHMENT,LD - Fenland Locality - Cost of Care,LD - Fenland  - Care,Supported Living
Cambridgeshire County Council,03-Nov-23,51302093972,588.46,SOCIAL CARE SOLUTIONS LTD,CARE ESTABLISHMENT,LD - Fenland Locality - Cost of Care,LD - Fenland  - Care,Supported Living
Cambridgeshire County Council,03-Nov-23,51302093972,588.46,SOCIAL CARE SOLUTIONS LTD,CARE ESTABLISHMENT,LD - Fenland Locality - Cost of Care,LD - Fenland  - Care,Supported Living
Cambridgeshire County Council,03-Nov-23,51302093972,588.46,SOCIAL CARE SOLUTIONS LTD,CARE ESTABLISHMENT,LD - Fenland Locality - Cost of Care,LD - Fenland  - Care,Supported Living
Cambridgeshire County Council,03-Nov-23,51302093972,588.46,SOCIAL CARE SOLUTIONS LTD,CARE ESTABLISHMENT,LD - Fenland Locality - Cost of Care,LD - Fenland  - Care,Supported Living
Cambridgeshire County Council,03-Nov-23,51302093972,588.46,SOCIAL CARE SOLUTIONS LTD,CARE ESTABLISHMENT,LD - Fenland Locality - Cost of Care,LD - Fenland  - Care,Supported Living
Cambridgeshire County Council,03-Nov-23,51302093972,588.46,SOCIAL CARE SOLUTIONS LTD,CARE ESTABLISHMENT,LD - Fenland Locality - Cost of Care,LD - Fenland  - Care,Supported Living
Cambridgeshire County Council,03-Nov-23,51302093972,588.46,SOCIAL CARE SOLUTIONS LTD,CARE ESTABLISHMENT,LD - Fenland Locality - Cost of Care,LD - Fenland  - Care,Supported Living
Cambridgeshire County Council,03-Nov-23,51302093972,588.46,SOCIAL CARE SOLUTIONS LTD,CARE ESTABLISHMENT,LD - Fenland Locality - Cost of Care,LD - Fenland  - Care,Supported Living
Cambridgeshire County Council,03-Nov-23,51302093795,597.80,Redacted Personal Data,INDIVIDUAL,Corporate Parenting Leaving Care,Care Leavers Council tax,Leaving Care Grants
Cambridgeshire County Council,03-Nov-23,51302093160,600.00,THE BRITISH COMPUTER SOCIETY,TRADE SUPPLIER,Cambridgeshire Skills HoS,Cambridgeshire Skills Management Team,Exam Fees
Cambridgeshire County Council,03-Nov-23,51302093606,618.45,ASKEWS AND HOLTS LIBRARY SERVICES LTD,TRADE SUPPLIER,Libraries - Stock & Distribution,Support - Stock & Distribution,Books and Multimedia Supplies
Cambridgeshire County Council,03-Nov-23,51302093166,619.76,Hinchingbrooke Park Pre-School,NURSERY,Early Years,SEND Specialist Services - SENIF,SEN Funding
Cambridgeshire County Council,03-Nov-23,51302093968,649.03,Lifeways - SIL Ltd,CARE ESTABLISHMENT,LD - Hunts Locality - Cost of Care,LD - Huntingdonshire - Care,Supported Living
Cambridgeshire County Council,03-Nov-23,51302093968,649.03,Lifeways - SIL Ltd,CARE ESTABLISHMENT,LD - Hunts Locality - Cost of Care,LD - Huntingdonshire - Care,Supported Living
Cambridgeshire County Council,03-Nov-23,51302093968,649.03,Lifeways - SIL Ltd,CARE ESTABLISHMENT,LD - Hunts Locality - Cost of Care,LD - Huntingdonshire - Care,Supported Living
Cambridgeshire County Council,03-Nov-23,51302093968,649.03,Lifeways - SIL Ltd,CARE ESTABLISHMENT,LD - Hunts Locality - Cost of Care,LD - Huntingdonshire - Care,Supported Living
Cambridgeshire County Council,03-Nov-23,51302088804,649.92,FLOCKTONS TVP LTD,COMPANY,Winter Maintenance,Central Winter Maintenance,Building Repair and Maintenance
Cambridgeshire County Council,03-Nov-23,51302093726,654.00,24 SEVEN TAXIS,TRADE SUPPLIER,Home to School Transport - Special,Home to School Transport Special - Special School,Home to School - Contract
Cambridgeshire County Council,03-Nov-23,51302093172,661.08,LITTLE INCREDIBLES,NURSERY,Early Years,SEND Specialist Services - SENIF,Care & Ed Partner Organisations
Cambridgeshire County Council,03-Nov-23,51302080035,667.39,Derwent Facilities Management Ltd,COMPANY,Commercial Activity,Brunswick House,Professional Fees and Hired Services
Cambridgeshire County Council,03-Nov-23,51302093758,669.12,Dash Travel UK Ltd,COMPANY,Home to School Transport - Special,Home to School Transport Special - Out of County,Home to School - Contract
Cambridgeshire County Council,03-Nov-23,51302081095,680.76,AVAILL HEALTHCARE,CARE ESTABLISHMENT,IHPS - South Accommodation Services,IHPS Jasmine House,Agency Staff
Cambridgeshire County Council,03-Nov-23,51302093624,686.40,Pathfinder Legal Services Limited,TRADE SUPPLIER,Net Zero Programme,Phase 1- Enabling net Zero - Just Transition Fund,External Legal Fees
Cambridgeshire County Council,03-Nov-23,51302094052,700.00,Redacted Personal Data,INDIVIDUAL,"General Prevention, Traveller Health",Travellers Project,Professional Fees and Hired Services
Cambridgeshire County Council,03-Nov-23,51302093147,700.55,AXA Insurance,COMPANY,Insurance Fund,Liability,Insurance Claims Paid
Cambridgeshire County Council,03-Nov-23,51302093168,717.74,Kindred Huntingdon,NURSERY,Early Years,SEND Specialist Services - SENIF,Care & Ed Partner Organisations
Cambridgeshire County Council,03-Nov-23,51302093170,717.74,Kindred Huntingdon,NURSERY,Early Years,SEND Specialist Services - SENIF,Care & Ed Partner Organisations
Cambridgeshire County Council,03-Nov-23,51302093204,720.00,Natalie Kennedy,SOLETRADER,South Child Looked After Team 2,South Child Looked After Team 2,Professional Fees and Hired Services
Cambridgeshire County Council,03-Nov-23,51302093205,720.00,Natalie Kennedy,SOLETRADER,South Child Looked After Team 2,South Child Looked After Team 2,Professional Fees and Hired Services
Cambridgeshire County Council,03-Nov-23,51302093441,732.96,Redacted Personal Data,INDIVIDUAL,Nursery Schools,Early Years - Funded 3s/4s,Care & Ed Childcare Settings
Cambridgeshire County Council,03-Nov-23,51302094067,744.80,Private Hire 2 Go Ltd,COMPANY,LD - South Locality - Cost of Care,LD - South Cambs - Care,Social Care Transport
Cambridgeshire County Council,03-Nov-23,51302093985,745.71,CROMWELL HOUSE HEALTH CARE,CARE ESTABLISHMENT,OPPD - Cost of Care - Huntingdon - Over 65,Hunts OP Team - Care,Rehabilitation And Respite Care
Cambridgeshire County Council,03-Nov-23,51302093586,749.29,ASKEWS AND HOLTS LIBRARY SERVICES LTD,TRADE SUPPLIER,Libraries - Stock & Distribution,Support - Stock & Distribution,Books and Multimedia Supplies
Cambridgeshire County Council,03-Nov-23,51302093977,750.00,OLIVEMEDE RESIDENTIAL HOME,CARE ESTABLISHMENT,OPPD - Cost of Care - Huntingdon - Over 65,Hunts OP Team - Care,Rehabilitation And Respite Care
Cambridgeshire County Council,03-Nov-23,51302093977,750.00,OLIVEMEDE RESIDENTIAL HOME,CARE ESTABLISHMENT,OPPD - Cost of Care - Huntingdon - Over 65,Hunts OP Team - Care,Rehabilitation And Respite Care
Cambridgeshire County Council,03-Nov-23,51302093978,750.00,FIELD HOUSE (EYE) LIMITED,CARE ESTABLISHMENT,OPPD - Cost of Care - East Cambs - Under 65,OPPD - Under 65 - East Cambs,Rehabilitation And Respite Care
Cambridgeshire County Council,03-Nov-23,51302093978,750.00,FIELD HOUSE (EYE) LIMITED,CARE ESTABLISHMENT,OPPD - Cost of Care - East Cambs - Under 65,OPPD - Under 65 - East Cambs,Rehabilitation And Respite Care
Cambridgeshire County Council,03-Nov-23,51302093978,750.00,FIELD HOUSE (EYE) LIMITED,CARE ESTABLISHMENT,OPPD - Cost of Care - East Cambs - Under 65,OPPD - Under 65 - East Cambs,Rehabilitation And Respite Care
Cambridgeshire County Council,03-Nov-23,51302093983,750.00,FIELD HOUSE (EYE) LIMITED,CARE ESTABLISHMENT,OPPD - Cost of Care - Fenland - Over 65,Older People - Fenland - Care,Short Term Other
Cambridgeshire County Council,03-Nov-23,51302093983,750.00,FIELD HOUSE (EYE) LIMITED,CARE ESTABLISHMENT,OPPD - Cost of Care - Fenland - Over 65,Older People - Fenland - Care,Short Term Other
Cambridgeshire County Council,03-Nov-23,51302080036,759.00,Derwent Facilities Management Ltd,COMPANY,Commercial Activity,Brunswick House,Professional Fees and Hired Services
Cambridgeshire County Council,03-Nov-23,51302079360,760.00,J & P PLANT LTD,COMPANY,Highways Maintenance,Highways Maintenance - Hunts,Pathways
Cambridgeshire County Council,03-Nov-23,51302093613,765.45,Redacted Personal Data,PARENT/GUARDIAN,LD - Young Adults Team,LD - Young Adults - Care,Direct Payments
Cambridgeshire County Council,03-Nov-23,51302094107,768.00,Shaz Travels Ltd,TRADE SUPPLIER,LAC Transport,LAC Transport - Home to School,Social Care Transport
Cambridgeshire County Council,03-Nov-23,51302093982,771.43,HOME MEADOW LTD,CARE ESTABLISHMENT,OPPD - Cost of Care - City South - Over 65,Older People - City & South - Care,Rehabilitation And Respite Care
Cambridgeshire County Council,03-Nov-23,51302094072,781.20,Sam Private Hire,COMPANY,LAC Transport,LAC Transport - Out of county,Social Care Transport
Cambridgeshire County Council,03-Nov-23,51302094102,783.00,Vyo Taxi Private Hire,COMPANY,Autism and Adult Support - Cost of Care,Autism and Adult Support - Care,Social Care Transport
Cambridgeshire County Council,03-Nov-23,51302093260,791.56,Caldecote Primary School T/A Caldecote Care Club OSC,NURSERY,Nursery Schools,Early Years - Funded 3s/4s,Care & Ed Childcare Settings
Cambridgeshire County Council,03-Nov-23,51302080046,812.99,Derwent Facilities Management Ltd,COMPANY,Commercial Activity,Brunswick House,Professional Fees and Hired Services
Cambridgeshire County Council,03-Nov-23,51302080043,825.00,Derwent Facilities Management Ltd,COMPANY,Commercial Activity,Brunswick House,Professional Fees and Hired Services
Cambridgeshire County Council,03-Nov-23,51302093980,825.00,HOME MEADOW LTD,CARE ESTABLISHMENT,OPPD - Cost of Care - East Cambs - Over 65,East Cambs - O P Team - Care,Short Term Other
Cambridgeshire County Council,03-Nov-23,51302093980,825.00,HOME MEADOW LTD,CARE ESTABLISHMENT,OPPD - Cost of Care - East Cambs - Over 65,East Cambs - O P Team - Care,Short Term Other
Cambridgeshire County Council,03-Nov-23,51302093980,825.00,HOME MEADOW LTD,CARE ESTABLISHMENT,OPPD - Cost of Care - East Cambs - Over 65,East Cambs - O P Team - Care,Short Term Other
Cambridgeshire County Council,03-Nov-23,51302093980,825.00,HOME MEADOW LTD,CARE ESTABLISHMENT,OPPD - Cost of Care - East Cambs - Over 65,East Cambs - O P Team - Care,Short Term Other
Cambridgeshire County Council,03-Nov-23,51302093980,825.00,HOME MEADOW LTD,CARE ESTABLISHMENT,OPPD - Cost of Care - East Cambs - Over 65,East Cambs - O P Team - Care,Short Term Other
Cambridgeshire County Council,03-Nov-23,51302093175,826.35,ALPHABET DAY NURSERY SCHOOLS LTD,NURSERY,Early Years,SEND Specialist Services - SENIF,Care & Ed Partner Organisations
Cambridgeshire County Council,03-Nov-23,51302093987,830.00,THE TUDORS RESIDENTIAL HOME,CARE ESTABLISHMENT,OPPD - Cost of Care - Fenland - Over 65,Older People - Fenland - Care,Rehabilitation And Respite Care
Cambridgeshire County Council,03-Nov-23,51302093987,830.00,THE TUDORS RESIDENTIAL HOME,CARE ESTABLISHMENT,OPPD - Cost of Care - Fenland - Over 65,Older People - Fenland - Care,Rehabilitation And Respite Care
Cambridgeshire County Council,03-Nov-23,51302093987,830.00,THE TUDORS RESIDENTIAL HOME,CARE ESTABLISHMENT,OPPD - Cost of Care - Fenland - Over 65,Older People - Fenland - Care,Rehabilitation And Respite Care
Cambridgeshire County Council,03-Nov-23,51302079396,840.00,Redacted Personal Data,INDIVIDUAL,GCP - Developing 12 cycling greenways,GCP - Developing 12 cycling greenways,Construction - External Professional Fees
Cambridgeshire County Council,03-Nov-23,51302094088,862.92,GoGo Cabs LTD,COMPANY,LD - South Locality - Cost of Care,LD - South Cambs - Care,Social Care Transport
Cambridgeshire County Council,03-Nov-23,51302093985,870.00,CROMWELL HOUSE HEALTH CARE,CARE ESTABLISHMENT,OPPD - Cost of Care - Huntingdon - Over 65,Hunts OP Team - Care,Rehabilitation And Respite Care
Cambridgeshire County Council,03-Nov-23,51302093985,870.00,CROMWELL HOUSE HEALTH CARE,CARE ESTABLISHMENT,OPPD - Cost of Care - Huntingdon - Over 65,Hunts OP Team - Care,Rehabilitation And Respite Care
Cambridgeshire County Council,03-Nov-23,51301908711,912.40,ASKHAM HALL,CARE ESTABLISHMENT,OPPD - Cost of Care - Fenland - Over 65,Older People - Fenland - Care,Nursing Care
Cambridgeshire County Council,03-Nov-23,51301908711,912.40,ASKHAM HALL,CARE ESTABLISHMENT,OPPD - Cost of Care - Fenland - Over 65,Older People - Fenland - Care,Nursing Care
Cambridgeshire County Council,03-Nov-23,51301908711,912.40,ASKHAM HALL,CARE ESTABLISHMENT,OPPD - Cost of Care - Fenland - Over 65,Older People - Fenland - Care,Nursing Care
Cambridgeshire County Council,03-Nov-23,51301908711,912.40,ASKHAM HALL,CARE ESTABLISHMENT,OPPD - Cost of Care - Fenland - Over 65,Older People - Fenland - Care,Nursing Care
Cambridgeshire County Council,03-Nov-23,51301908711,912.40,ASKHAM HALL,CARE ESTABLISHMENT,OPPD - Cost of Care - Fenland - Over 65,Older People - Fenland - Care,Nursing Care
Cambridgeshire County Council,03-Nov-23,51301908711,912.40,ASKHAM HALL,CARE ESTABLISHMENT,OPPD - Cost of Care - Fenland - Over 65,Older People - Fenland - Care,Nursing Care
Cambridgeshire County Council,03-Nov-23,51301908711,912.40,ASKHAM HALL,CARE ESTABLISHMENT,OPPD - Cost of Care - Fenland - Over 65,Older People - Fenland - Care,Nursing Care
Cambridgeshire County Council,03-Nov-23,51301908711,912.40,ASKHAM HALL,CARE ESTABLISHMENT,OPPD - Cost of Care - Fenland - Over 65,Older People - Fenland - Care,Nursing Care
Cambridgeshire County Council,03-Nov-23,51301908711,912.40,ASKHAM HALL,CARE ESTABLISHMENT,OPPD - Cost of Care - Fenland - Over 65,Older People - Fenland - Care,Nursing Care
Cambridgeshire County Council,03-Nov-23,51301908711,912.40,ASKHAM HALL,CARE ESTABLISHMENT,OPPD - Cost of Care - Fenland - Over 65,Older People - Fenland - Care,Nursing Care
Cambridgeshire County Council,03-Nov-23,51301908711,912.40,ASKHAM HALL,CARE ESTABLISHMENT,OPPD - Cost of Care - Fenland - Over 65,Older People - Fenland - Care,Nursing Care
Cambridgeshire County Council,03-Nov-23,51301908711,912.40,ASKHAM HALL,CARE ESTABLISHMENT,OPPD - Cost of Care - Fenland - Over 65,Older People - Fenland - Care,Nursing Care
Cambridgeshire County Council,03-Nov-23,51301908711,912.40,ASKHAM HALL,CARE ESTABLISHMENT,OPPD - Cost of Care - Fenland - Over 65,Older People - Fenland - Care,Nursing Care
Cambridgeshire County Council,03-Nov-23,51301908711,912.40,ASKHAM HALL,CARE ESTABLISHMENT,OPPD - Cost of Care - Fenland - Over 65,Older People - Fenland - Care,Nursing Care
Cambridgeshire County Council,03-Nov-23,51301908711,912.40,ASKHAM HALL,CARE ESTABLISHMENT,OPPD - Cost of Care - Fenland - Over 65,Older People - Fenland - Care,Nursing Care
Cambridgeshire County Council,03-Nov-23,51301908711,912.40,ASKHAM HALL,CARE ESTABLISHMENT,OPPD - Cost of Care - Fenland - Over 65,Older People - Fenland - Care,Nursing Care
Cambridgeshire County Council,03-Nov-23,51301908711,912.40,ASKHAM HALL,CARE ESTABLISHMENT,OPPD - Cost of Care - Fenland - Over 65,Older People - Fenland - Care,Nursing Care
Cambridgeshire County Council,03-Nov-23,51301908711,912.40,ASKHAM HALL,CARE ESTABLISHMENT,OPPD - Cost of Care - Fenland - Over 65,Older People - Fenland - Care,Nursing Care
Cambridgeshire County Council,03-Nov-23,51301908711,912.40,ASKHAM HALL,CARE ESTABLISHMENT,OPPD - Cost of Care - Fenland - Over 65,Older People - Fenland - Care,Nursing Care
Cambridgeshire County Council,03-Nov-23,51301908711,912.40,ASKHAM HALL,CARE ESTABLISHMENT,OPPD - Cost of Care - Fenland - Over 65,Older People - Fenland - Care,Nursing Care
Cambridgeshire County Council,03-Nov-23,51301908711,912.40,ASKHAM HALL,CARE ESTABLISHMENT,OPPD - Cost of Care - Fenland - Over 65,Older People - Fenland - Care,Nursing Care
Cambridgeshire County Council,03-Nov-23,51301908711,912.40,ASKHAM HALL,CARE ESTABLISHMENT,OPPD - Cost of Care - Fenland - Over 65,Older People - Fenland - Care,Nursing Care
Cambridgeshire County Council,03-Nov-23,51301908711,912.40,ASKHAM HALL,CARE ESTABLISHMENT,OPPD - Cost of Care - Fenland - Over 65,Older People - Fenland - Care,Nursing Care
Cambridgeshire County Council,03-Nov-23,51301908711,912.40,ASKHAM HALL,CARE ESTABLISHMENT,OPPD - Cost of Care - Fenland - Over 65,Older People - Fenland - Care,Nursing Care
Cambridgeshire County Council,03-Nov-23,51301908711,912.40,ASKHAM HALL,CARE ESTABLISHMENT,OPPD - Cost of Care - Fenland - Over 65,Older People - Fenland - Care,Nursing Care
Cambridgeshire County Council,03-Nov-23,51301908711,912.40,ASKHAM HALL,CARE ESTABLISHMENT,OPPD - Cost of Care - Fenland - Over 65,Older People - Fenland - Care,Nursing Care
Cambridgeshire County Council,03-Nov-23,51301908711,912.40,ASKHAM HALL,CARE ESTABLISHMENT,OPPD - Cost of Care - Fenland - Over 65,Older People - Fenland - Care,Nursing Care
Cambridgeshire County Council,03-Nov-23,51301908711,912.40,ASKHAM HALL,CARE ESTABLISHMENT,OPPD - Cost of Care - Fenland - Over 65,Older People - Fenland - Care,Nursing Care
Cambridgeshire County Council,03-Nov-23,51301908711,912.40,ASKHAM HALL,CARE ESTABLISHMENT,OPPD - Cost of Care - Fenland - Over 65,Older People - Fenland - Care,Nursing Care
Cambridgeshire County Council,03-Nov-23,51301908711,912.40,ASKHAM HALL,CARE ESTABLISHMENT,OPPD - Cost of Care - Fenland - Over 65,Older People - Fenland - Care,Nursing Care
Cambridgeshire County Council,03-Nov-23,51301908711,912.40,ASKHAM HALL,CARE ESTABLISHMENT,OPPD - Cost of Care - Fenland - Over 65,Older People - Fenland - Care,Nursing Care
Cambridgeshire County Council,03-Nov-23,51301908711,912.40,ASKHAM HALL,CARE ESTABLISHMENT,OPPD - Cost of Care - Fenland - Over 65,Older People - Fenland - Care,Nursing Care
Cambridgeshire County Council,03-Nov-23,51301908711,912.40,ASKHAM HALL,CARE ESTABLISHMENT,OPPD - Cost of Care - Fenland - Over 65,Older People - Fenland - Care,Nursing Care
Cambridgeshire County Council,03-Nov-23,51301908711,912.40,ASKHAM HALL,CARE ESTABLISHMENT,OPPD - Cost of Care - Fenland - Over 65,Older People - Fenland - Care,Nursing Care
Cambridgeshire County Council,03-Nov-23,51301908711,912.40,ASKHAM HALL,CARE ESTABLISHMENT,OPPD - Cost of Care - Fenland - Over 65,Older People - Fenland - Care,Nursing Care
Cambridgeshire County Council,03-Nov-23,51302094094,936.00,TK Transport Solutions LTD,COMPANY,LAC Transport,LAC Transport - Home to School,Social Care Transport
Cambridgeshire County Council,03-Nov-23,51302093375,937.55,Little Explorers Montessori Nursery,NURSERY,Nursery Schools,Early Years - Funded 3s/4s,Care & Ed Childcare Settings
Cambridgeshire County Council,03-Nov-23,51302079554,942.00,Powerful Voices Ltd,EDUCATION,Early Years Specialist Support,SEND - Independent Therapy,Independent School Placements
Cambridgeshire County Council,03-Nov-23,51302094079,957.60,A & B TAXIS LTD,TRADE SUPPLIER,LD - Hunts Locality - Cost of Care,LD - Huntingdonshire - Care,Social Care Transport
Cambridgeshire County Council,03-Nov-23,51302094080,957.60,A & B TAXIS LTD,TRADE SUPPLIER,LD - Hunts Locality - Cost of Care,LD - Huntingdonshire - Care,Social Care Transport
Cambridgeshire County Council,03-Nov-23,51302093717,964.00,THE PRIVATE HIRE COMPANY,TRADE SUPPLIER,Home to School Transport - Special,Home to School Transport Special - Secondary,Home to School - Contract
Cambridgeshire County Council,03-Nov-23,51302079980,989.18,BALFOUR BEATTY LIVING PLACES LIMITED,COMPANY,Signals,Signals (VAS),Traffic Signs and Lines Maintenance
Cambridgeshire County Council,03-Nov-23,51302092987,"1,000.00",TRUMPINGTON PARK PRIMARY SCHOOL,EDUCATION,EY - Oasis,Trumpington Park Early Years,Rents and Leases
Cambridgeshire County Council,03-Nov-23,51302093552,"1,000.00",Careuk247 Home Care Ltd,COMPANY,OPMH - City & South,Older People Mental Health City & South,Domiciliary Care
Cambridgeshire County Council,03-Nov-23,51302093556,"1,000.00",Empathy Care 24 Limited,CARE ESTABLISHMENT,OPPD - Cost of Care - Fenland - Over 65,Older People - Fenland - Care,Domiciliary Care
Cambridgeshire County Council,03-Nov-23,51302093558,"1,000.00",MULTI CARE COMMUNITY SERVICES,CARE ESTABLISHMENT,OPPD - Cost of Care - East Cambs - Over 65,East Cambs - O P Team - Care,Domiciliary Care
Cambridgeshire County Council,03-Nov-23,51302093551,"1,000.00",PROMINENT VENTURES LTD T/A KARE PLUS CAMBRIDGE,CARE ESTABLISHMENT,OPPD - Cost of Care - East Cambs - Over 65,East Cambs - O P Team - Care,Domiciliary Care
Cambridgeshire County Council,03-Nov-23,51302093702,"1,000.00",Total Healthcare,COMPANY,OPPD - Cost of Care - Huntingdon - Over 65,Hunts OP Team - Care,Domiciliary Care
Cambridgeshire County Council,03-Nov-23,51302093542,"1,000.00",Frontal Care Ltd,COMPANY,OPPD - Cost of Care - Huntingdon - Over 65,Hunts OP Team - Care,Domiciliary Care
Cambridgeshire County Council,03-Nov-23,51302093555,"1,000.00",Frontal Care Ltd,COMPANY,OPPD - Cost of Care - Huntingdon - Over 65,Hunts OP Team - Care,Domiciliary Care
Cambridgeshire County Council,03-Nov-23,51302093553,"1,000.00",Ray Care Services,CARE ESTABLISHMENT,OPPD - Cost of Care - City South - Over 65,Older People - City & South - Care,Domiciliary Care
Cambridgeshire County Council,03-Nov-23,51302093549,"1,000.00",Rainbow Outreach and Healthcare Solutions Limited,CARE ESTABLISHMENT,OPPD - Cost of Care - Huntingdon - Over 65,Hunts OP Team - Care,Domiciliary Care
Cambridgeshire County Council,03-Nov-23,51302093543,"1,000.00",Gracefilled Care Services,CARE ESTABLISHMENT,OPPD - Cost of Care - City South - Over 65,Older People - City & South - Care,Domiciliary Care
Cambridgeshire County Council,03-Nov-23,51302093546,"1,000.00",Gracefilled Care Services,CARE ESTABLISHMENT,OPPD - Cost of Care - City South - Over 65,Older People - City & South - Care,Domiciliary Care
Cambridgeshire County Council,03-Nov-23,51302093547,"1,000.00",PROMINENT VENTURES LTD T/A KARE PLUS CAMBRIDGE,CARE ESTABLISHMENT,OPPD - Under 65 - City South,OPPD - Under 65 - City South,Domiciliary Care
Cambridgeshire County Council,03-Nov-23,51302093550,"1,000.00",MK WORLDWIDE LTD (T/A LEAD CARE),CARE ESTABLISHMENT,OPPD - Cost of Care - City South - Over 65,Older People - City & South - Care,Domiciliary Care
Cambridgeshire County Council,03-Nov-23,51302093563,"1,000.00",HALES GROUP LIMITED,CARE ESTABLISHMENT,OPPD - Cost of Care - Huntingdon - Over 65,Hunts OP Team - Care,Domiciliary Care
Cambridgeshire County Council,03-Nov-23,51302093540,"1,000.00",Trust Homecare,CARE ESTABLISHMENT,OPPD - Cost of Care - City South - Over 65,Older People - City & South - Care,Domiciliary Care
Cambridgeshire County Council,03-Nov-23,51302093541,"1,000.00",Trust Homecare,CARE ESTABLISHMENT,OPPD - Cost of Care - City South - Over 65,Older People - City & South - Care,Domiciliary Care
Cambridgeshire County Council,03-Nov-23,51302093544,"1,000.00",Trust Homecare,CARE ESTABLISHMENT,OPPD - Cost of Care - City South - Over 65,Older People - City & South - Care,Domiciliary Care
Cambridgeshire County Council,03-Nov-23,51302093548,"1,000.00",Trust Homecare,CARE ESTABLISHMENT,OPPD - Cost of Care - City South - Over 65,Older People - City & South - Care,Domiciliary Care
Cambridgeshire County Council,03-Nov-23,51302093562,"1,000.00",Lilyrose Care Group Ltd,COMPANY,OPPD - Cost of Care - Huntingdon - Over 65,Hunts OP Team - Care,Domiciliary Care
Cambridgeshire County Council,03-Nov-23,51302093539,"1,000.00",Regional Care,CARE ESTABLISHMENT,OPPD - Cost of Care - Huntingdon - Over 65,Hunts OP Team - Care,Domiciliary Care
Cambridgeshire County Council,03-Nov-23,51302093545,"1,000.00",Careuk247 Home Care Ltd,COMPANY,OPPD - Cost of Care - Huntingdon - Over 65,Hunts OP Team - Care,Domiciliary Care
Cambridgeshire County Council,03-Nov-23,51302093557,"1,000.00",Careuk247 Home Care Ltd,COMPANY,OPPD - Cost of Care - Huntingdon - Over 65,Hunts OP Team - Care,Domiciliary Care
Cambridgeshire County Council,03-Nov-23,51302093560,"1,000.00",Careuk247 Home Care Ltd,COMPANY,OPPD - Cost of Care - Huntingdon - Over 65,Hunts OP Team - Care,Domiciliary Care
Cambridgeshire County Council,03-Nov-23,51302094084,"1,003.20",A & B TAXIS LTD,TRADE SUPPLIER,LD - Hunts Locality - Cost of Care,LD - Huntingdonshire - Care,Social Care Transport
Cambridgeshire County Council,03-Nov-23,51302094070,"1,008.00",Private Hire 2 Go Ltd,COMPANY,LD - South Locality - Cost of Care,LD - South Cambs - Care,Social Care Transport
Cambridgeshire County Council,03-Nov-23,51302093957,"1,039.18",SOCIAL CARE SOLUTIONS LTD,CARE ESTABLISHMENT,LD - Fenland Locality - Cost of Care,LD - Fenland  - Special Needs,Supported Living
Cambridgeshire County Council,03-Nov-23,51302094076,"1,044.00",Drivero Taxi Ltd,COMPANY,LD - South Locality - Cost of Care,LD - South Cambs - Care,Social Care Transport
Cambridgeshire County Council,03-Nov-23,51302094077,"1,044.00",Drivero Taxi Ltd,COMPANY,LD - South Locality - Cost of Care,LD - South Cambs - Care,Social Care Transport
Cambridgeshire County Council,03-Nov-23,51302094078,"1,044.00",Drivero Taxi Ltd,COMPANY,LD - City Locality - Staffing,LD - City - Staffing,Social Care Transport
Cambridgeshire County Council,03-Nov-23,51302080037,"1,056.70",Derwent Facilities Management Ltd,COMPANY,Commercial Activity,Brunswick House,Professional Fees and Hired Services
Cambridgeshire County Council,03-Nov-23,51302094097,"1,056.72",TK Transport Solutions LTD,COMPANY,LD - Hunts Locality - Cost of Care,LD - Huntingdonshire - Care,Social Care Transport
Cambridgeshire County Council,03-Nov-23,51302079361,"1,075.00",J & P PLANT LTD,COMPANY,Highways Maintenance,Rights of Way and Access,Pathways
Cambridgeshire County Council,03-Nov-23,51302093608,"1,079.43",ASKEWS AND HOLTS LIBRARY SERVICES LTD,TRADE SUPPLIER,Libraries - Stock & Distribution,Support - Stock & Distribution,Books and Multimedia Supplies
Cambridgeshire County Council,03-Nov-23,51302093129,"1,080.00",BDP SOCIAL CARE LTD,TRADE SUPPLIER,Out of School Tuition,Out of School Provision EHCPs,Independent School Placements
Cambridgeshire County Council,03-Nov-23,51302081152,"1,080.00",Signs4Life,COMPANY,Cultural Services,The Library Presents,Staff Training & Development
Cambridgeshire County Council,03-Nov-23,51302080047,"1,091.93",Derwent Facilities Management Ltd,COMPANY,Commercial Activity,Brunswick House,Professional Fees and Hired Services
Cambridgeshire County Council,03-Nov-23,51302080343,"1,122.00",DCC Interactive Ltd,EDUCATION,L&D Grants,ASYE,Professional Fees and Hired Services
Cambridgeshire County Council,03-Nov-23,51302093756,"1,138.86",Cambridge and Huntingdon Airport Travel Service,COMPANY,Home to School Transport - Special,Home to School Transport Special - Special School,Home to School - Contract
Cambridgeshire County Council,03-Nov-23,51302094089,"1,144.00",K & S CONTRACTS,TRADE SUPPLIER,LD - South Locality - Cost of Care,LD - South Cambs - Care,Social Care Transport
Cambridgeshire County Council,03-Nov-23,51302093467,"1,168.02",Swaffham Prior Foundation Stage Unit,NURSERY,Nursery Schools,Early Years - Funded 3s/4s,Care & Ed Childcare Settings
Cambridgeshire County Council,03-Nov-23,51302093969,"1,174.90",SOCIAL CARE SOLUTIONS LTD,CARE ESTABLISHMENT,Autism and Adult Support - Cost of Care,Autism and Adult Support - Care,Supported Living
Cambridgeshire County Council,03-Nov-23,51302093969,"1,174.90",SOCIAL CARE SOLUTIONS LTD,CARE ESTABLISHMENT,Autism and Adult Support - Cost of Care,Autism and Adult Support - Care,Supported Living
Cambridgeshire County Council,03-Nov-23,51302093969,"1,174.90",SOCIAL CARE SOLUTIONS LTD,CARE ESTABLISHMENT,Autism and Adult Support - Cost of Care,Autism and Adult Support - Care,Supported Living
Cambridgeshire County Council,03-Nov-23,51302093969,"1,174.90",SOCIAL CARE SOLUTIONS LTD,CARE ESTABLISHMENT,Autism and Adult Support - Cost of Care,Autism and Adult Support - Care,Supported Living
Cambridgeshire County Council,03-Nov-23,51302093969,"1,174.90",SOCIAL CARE SOLUTIONS LTD,CARE ESTABLISHMENT,Autism and Adult Support - Cost of Care,Autism and Adult Support - Care,Supported Living
Cambridgeshire County Council,03-Nov-23,51302093969,"1,174.90",SOCIAL CARE SOLUTIONS LTD,CARE ESTABLISHMENT,Autism and Adult Support - Cost of Care,Autism and Adult Support - Care,Supported Living
Cambridgeshire County Council,03-Nov-23,51302093969,"1,174.90",SOCIAL CARE SOLUTIONS LTD,CARE ESTABLISHMENT,Autism and Adult Support - Cost of Care,Autism and Adult Support - Care,Supported Living
Cambridgeshire County Council,03-Nov-23,51302093969,"1,174.90",SOCIAL CARE SOLUTIONS LTD,CARE ESTABLISHMENT,Autism and Adult Support - Cost of Care,Autism and Adult Support - Care,Supported Living
Cambridgeshire County Council,03-Nov-23,51302093969,"1,174.90",SOCIAL CARE SOLUTIONS LTD,CARE ESTABLISHMENT,Autism and Adult Support - Cost of Care,Autism and Adult Support - Care,Supported Living
Cambridgeshire County Council,03-Nov-23,51302093969,"1,174.90",SOCIAL CARE SOLUTIONS LTD,CARE ESTABLISHMENT,Autism and Adult Support - Cost of Care,Autism and Adult Support - Care,Supported Living
Cambridgeshire County Council,03-Nov-23,51302093969,"1,174.90",SOCIAL CARE SOLUTIONS LTD,CARE ESTABLISHMENT,Autism and Adult Support - Cost of Care,Autism and Adult Support - Care,Supported Living
Cambridgeshire County Council,03-Nov-23,51302093969,"1,174.90",SOCIAL CARE SOLUTIONS LTD,CARE ESTABLISHMENT,Autism and Adult Support - Cost of Care,Autism and Adult Support - Care,Supported Living
Cambridgeshire County Council,03-Nov-23,51302093969,"1,174.90",SOCIAL CARE SOLUTIONS LTD,CARE ESTABLISHMENT,Autism and Adult Support - Cost of Care,Autism and Adult Support - Care,Supported Living
Cambridgeshire County Council,03-Nov-23,51302093969,"1,174.90",SOCIAL CARE SOLUTIONS LTD,CARE ESTABLISHMENT,Autism and Adult Support - Cost of Care,Autism and Adult Support - Care,Supported Living
Cambridgeshire County Council,03-Nov-23,51302093969,"1,174.90",SOCIAL CARE SOLUTIONS LTD,CARE ESTABLISHMENT,Autism and Adult Support - Cost of Care,Autism and Adult Support - Care,Supported Living
Cambridgeshire County Council,03-Nov-23,51302093969,"1,174.90",SOCIAL CARE SOLUTIONS LTD,CARE ESTABLISHMENT,Autism and Adult Support - Cost of Care,Autism and Adult Support - Care,Supported Living
Cambridgeshire County Council,03-Nov-23,51302093969,"1,174.90",SOCIAL CARE SOLUTIONS LTD,CARE ESTABLISHMENT,Autism and Adult Support - Cost of Care,Autism and Adult Support - Care,Supported Living
Cambridgeshire County Council,03-Nov-23,51302093969,"1,174.90",SOCIAL CARE SOLUTIONS LTD,CARE ESTABLISHMENT,Autism and Adult Support - Cost of Care,Autism and Adult Support - Care,Supported Living
Cambridgeshire County Council,03-Nov-23,51302093969,"1,174.90",SOCIAL CARE SOLUTIONS LTD,CARE ESTABLISHMENT,Autism and Adult Support - Cost of Care,Autism and Adult Support - Care,Supported Living
Cambridgeshire County Council,03-Nov-23,51302093969,"1,174.90",SOCIAL CARE SOLUTIONS LTD,CARE ESTABLISHMENT,Autism and Adult Support - Cost of Care,Autism and Adult Support - Care,Supported Living
Cambridgeshire County Council,03-Nov-23,51302093969,"1,174.90",SOCIAL CARE SOLUTIONS LTD,CARE ESTABLISHMENT,Autism and Adult Support - Cost of Care,Autism and Adult Support - Care,Supported Living
Cambridgeshire County Council,03-Nov-23,51302093969,"1,174.90",SOCIAL CARE SOLUTIONS LTD,CARE ESTABLISHMENT,Autism and Adult Support - Cost of Care,Autism and Adult Support - Care,Supported Living
Cambridgeshire County Council,03-Nov-23,51302093969,"1,174.90",SOCIAL CARE SOLUTIONS LTD,CARE ESTABLISHMENT,Autism and Adult Support - Cost of Care,Autism and Adult Support - Care,Supported Living
Cambridgeshire County Council,03-Nov-23,51302093969,"1,174.90",SOCIAL CARE SOLUTIONS LTD,CARE ESTABLISHMENT,Autism and Adult Support - Cost of Care,Autism and Adult Support - Care,Supported Living
Cambridgeshire County Council,03-Nov-23,51302093719,"1,188.00",THE PRIVATE HIRE COMPANY,TRADE SUPPLIER,Home to School Transport - Mainstream,Home to School Transport Mainstream - Secondary,Home to School - Contract
Cambridgeshire County Council,03-Nov-23,51302093561,"1,200.00",CROMWELL HOUSE HEALTH CARE,CARE ESTABLISHMENT,OPPD - Cost of Care - Huntingdon - Over 65,Hunts OP Team - Care,Residential Care
Cambridgeshire County Council,03-Nov-23,51302093559,"1,200.00",HOME CLOSE LTD,CARE ESTABLISHMENT,OPPD - Cost of Care - City South - Over 65,Older People - City & South - Care,Residential Care
Cambridgeshire County Council,03-Nov-23,51302093564,"1,200.00",AVERY HOUSE CARE HOME,CARE ESTABLISHMENT,OPPD - Cost of Care - Huntingdon - Over 65,Hunts OP Team - Care,Residential Care
Cambridgeshire County Council,03-Nov-23,51302093554,"1,200.00",WATERBEACH LODGE (SCIMITAR),CARE ESTABLISHMENT,OPPD - Cost of Care - East Cambs - Over 65,East Cambs - O P Team - Care,Residential Care
Cambridgeshire County Council,03-Nov-23,51302093703,"1,200.00",LITTLEPORT GRANGE,CARE ESTABLISHMENT,OPPD - Cost of Care - East Cambs - Over 65,East Cambs - O P Team - Care,Residential Care
Cambridgeshire County Council,03-Nov-23,51302094091,"1,206.00",BEV'S TAXIS,TRADE SUPPLIER,LAC Transport,LAC Transport - Home to School,Social Care Transport
Cambridgeshire County Council,03-Nov-23,51302093957,"1,212.38",SOCIAL CARE SOLUTIONS LTD,CARE ESTABLISHMENT,LD - Fenland Locality - Cost of Care,LD - Fenland  - Special Needs,Supported Living
Cambridgeshire County Council,03-Nov-23,51302093957,"1,212.38",SOCIAL CARE SOLUTIONS LTD,CARE ESTABLISHMENT,LD - Fenland Locality - Cost of Care,LD - Fenland  - Special Needs,Supported Living
Cambridgeshire County Council,03-Nov-23,51302093957,"1,212.38",SOCIAL CARE SOLUTIONS LTD,CARE ESTABLISHMENT,LD - Fenland Locality - Cost of Care,LD - Fenland  - Special Needs,Supported Living
Cambridgeshire County Council,03-Nov-23,51302093957,"1,212.38",SOCIAL CARE SOLUTIONS LTD,CARE ESTABLISHMENT,LD - Fenland Locality - Cost of Care,LD - Fenland  - Special Needs,Supported Living
Cambridgeshire County Council,03-Nov-23,51302093957,"1,212.38",SOCIAL CARE SOLUTIONS LTD,CARE ESTABLISHMENT,LD - Fenland Locality - Cost of Care,LD - Fenland  - Special Needs,Supported Living
Cambridgeshire County Council,03-Nov-23,51302094065,"1,236.50",Private Hire 2 Go Ltd,COMPANY,LD - South Locality - Cost of Care,LD - South Cambs - Care,Social Care Transport
Cambridgeshire County Council,03-Nov-23,51302094066,"1,236.50",Private Hire 2 Go Ltd,COMPANY,LD - East Locality - Cost of Care,LD - East Cambs - Care,Social Care Transport
Cambridgeshire County Council,03-Nov-23,51302094087,"1,260.00",LTP Taxi,COMPANY,LAC Transport,LAC Transport - Home to School,Social Care Transport
Cambridgeshire County Council,03-Nov-23,51302093724,"1,285.00",FIRST CHOICE BETTA CARS LTD,COMPANY,Home to School Transport - Special,Home to School Transport Special - Special School,Home to School - Contract
Cambridgeshire County Council,03-Nov-23,51302093392,"1,332.81",Magdalene House Kindergarten,NURSERY,Nursery Schools,Early Years - Funded 3s/4s,Care & Ed Childcare Settings
Cambridgeshire County Council,03-Nov-23,51302093754,"1,334.40",Akmal cabs Ltd,COMPANY,Home to School Transport - Special,Home to School Transport Special - Out of County,Home to School - Contract
Cambridgeshire County Council,03-Nov-23,51302093687,"1,375.15",The Plan B AP Community Interest Company,EDUCATION,Out of School Tuition,Out of School Provision EHCPs,Independent School Placements
Cambridgeshire County Council,03-Nov-23,51302080059,"1,380.00",Shire Trees Ltd,COMPANY,Buildings and Capital,Grounds Management Service - Client,Tree Maintenance
Cambridgeshire County Council,03-Nov-23,51302093328,"1,390.16",HARVEY ROAD DAY NURSERY,NURSERY,Nursery Schools,Early Years - Funded 3s/4s,Care & Ed Childcare Settings
Cambridgeshire County Council,03-Nov-23,51302093364,"1,405.39",LADYBIRD PLAY & TODDLER GROUP,NURSERY,Nursery Schools,Early Years - Funded 3s/4s,Care & Ed Childcare Settings
Cambridgeshire County Council,03-Nov-23,51302046707,"1,411.20",The Helping Hand Company (Ledbury) Ltd (Symmetrikit Engineering Ltd),TRADE SUPPLIER,Grafham Water,Grafham Water Centre,Building Repair and Maintenance
Cambridgeshire County Council,03-Nov-23,51302079522,"1,440.00",D HAIRD & CO LTD,COMPANY,Highways Maintenance,Rights of Way and Access,Rights of Way- surfacing
Cambridgeshire County Council,03-Nov-23,51302079749,"1,440.00",D HAIRD & CO LTD,COMPANY,Highways Maintenance,Rights of Way and Access,Rights of Way- surfacing
Cambridgeshire County Council,03-Nov-23,51302079750,"1,440.00",D HAIRD & CO LTD,COMPANY,Highways Maintenance,Rights of Way and Access,Rights of Way- surfacing
Cambridgeshire County Council,03-Nov-23,51302079751,"1,440.00",D HAIRD & CO LTD,COMPANY,Highways Maintenance,Rights of Way and Access,Rights of Way- surfacing
Cambridgeshire County Council,03-Nov-23,51302093623,"1,460.16",Pathfinder Legal Services Limited,TRADE SUPPLIER,Net Zero Programme,Phase 1- Enabling net Zero - Just Transition Fund,External Legal Fees
Cambridgeshire County Council,03-Nov-23,51302094092,"1,470.00",BEV'S TAXIS,TRADE SUPPLIER,LAC Transport,LAC Transport - Out of county,Social Care Transport
Cambridgeshire County Council,03-Nov-23,51302093953,"1,556.55",SOCIAL CARE SOLUTIONS LTD,CARE ESTABLISHMENT,LD - Young Adults Team,LD - Young Adults - Care,Supported Living
Cambridgeshire County Council,03-Nov-23,51302092451,"1,559.00",Athena Herd Foundation CIC,COMPANY,SEND High Needs Top Up,High Needs Top Up - Post 16,Independent School Placements
Cambridgeshire County Council,03-Nov-23,51302094069,"1,560.00",Private Hire 2 Go Ltd,COMPANY,LAC Transport,LAC Transport - Home to School,Social Care Transport
Cambridgeshire County Council,03-Nov-23,51302094074,"1,598.00",Ely Cab,COMPANY,LAC Transport,LAC Transport - Home to School,Social Care Transport
Cambridgeshire County Council,03-Nov-23,51302093176,"1,652.70",Ashbeach Preschool,NURSERY,Early Years,SEND Specialist Services - SENIF,Care & Ed Partner Organisations
Cambridgeshire County Council,03-Nov-23,51302093194,"1,652.70",CYGNETS MILTON PRE SCHOOL,NURSERY,Early Years,SEND Specialist Services - SENIF,Care & Ed Partner Organisations
Cambridgeshire County Council,03-Nov-23,51302093171,"1,652.70",LITTLE HANDS NURSERY SCHOOL (LINTON & BARTLOW),NURSERY,Early Years,SEND Specialist Services - SENIF,Care & Ed Partner Organisations
Cambridgeshire County Council,03-Nov-23,51302093228,"1,667.96",BARTON PLAYGROUP,NURSERY,Nursery Schools,Early Years - Funded 3s/4s,Care & Ed Childcare Settings
Cambridgeshire County Council,03-Nov-23,51302093626,"1,689.60",Pathfinder Legal Services Limited,TRADE SUPPLIER,Net Zero Programme,Phase 1- Enabling net Zero - Just Transition Fund,External Legal Fees
Cambridgeshire County Council,03-Nov-23,51302080050,"1,743.46",Derwent Facilities Management Ltd,COMPANY,Commercial Activity,Brunswick House,Professional Fees and Hired Services
Cambridgeshire County Council,03-Nov-23,51302093725,"1,769.00",FIRST CHOICE BETTA CARS LTD,COMPANY,Home to School Transport - Mainstream,Home to School Transport Mainstream - Secondary,Home to School - Contract
Cambridgeshire County Council,03-Nov-23,51302093960,"1,810.02",GUYATT HOUSE CARE LTD,CARE ESTABLISHMENT,AMH Hunts and Fens - care,Hunts and Fens Adult Mental Health Team,Supported Living
Cambridgeshire County Council,03-Nov-23,51302093956,"1,818.49",SOCIAL CARE SOLUTIONS LTD,CARE ESTABLISHMENT,LD - Young Adults Team,LD - Young Adults - Care,Supported Living
Cambridgeshire County Council,03-Nov-23,51302094098,"1,836.00",TK Transport Solutions LTD,COMPANY,LAC Transport,LAC Transport - Out of county,Social Care Transport
Cambridgeshire County Council,03-Nov-23,51302093962,"1,889.78",The Wilf Ward Family Trust t/a Woodside,CARE ESTABLISHMENT,LD - Hunts Locality - Cost of Care,LD - Huntingdonshire - Care,Supported Living
Cambridgeshire County Council,03-Nov-23,51302093962,"1,889.78",The Wilf Ward Family Trust t/a Woodside,CARE ESTABLISHMENT,LD - Hunts Locality - Cost of Care,LD - Huntingdonshire - Care,Supported Living
Cambridgeshire County Council,03-Nov-23,51302093962,"1,889.78",The Wilf Ward Family Trust t/a Woodside,CARE ESTABLISHMENT,LD - Hunts Locality - Cost of Care,LD - Huntingdonshire - Care,Supported Living
Cambridgeshire County Council,03-Nov-23,51302093962,"1,889.78",The Wilf Ward Family Trust t/a Woodside,CARE ESTABLISHMENT,LD - Hunts Locality - Cost of Care,LD - Huntingdonshire - Care,Supported Living
Cambridgeshire County Council,03-Nov-23,51302093962,"1,889.78",The Wilf Ward Family Trust t/a Woodside,CARE ESTABLISHMENT,LD - Hunts Locality - Cost of Care,LD - Huntingdonshire - Care,Supported Living
Cambridgeshire County Council,03-Nov-23,51302093962,"1,889.78",The Wilf Ward Family Trust t/a Woodside,CARE ESTABLISHMENT,LD - Hunts Locality - Cost of Care,LD - Huntingdonshire - Care,Supported Living
Cambridgeshire County Council,03-Nov-23,51302093962,"1,889.78",The Wilf Ward Family Trust t/a Woodside,CARE ESTABLISHMENT,LD - Hunts Locality - Cost of Care,LD - Huntingdonshire - Care,Supported Living
Cambridgeshire County Council,03-Nov-23,51302093962,"1,889.78",The Wilf Ward Family Trust t/a Woodside,CARE ESTABLISHMENT,LD - Hunts Locality - Cost of Care,LD - Huntingdonshire - Care,Supported Living
Cambridgeshire County Council,03-Nov-23,51302093962,"1,889.78",The Wilf Ward Family Trust t/a Woodside,CARE ESTABLISHMENT,LD - Hunts Locality - Cost of Care,LD - Huntingdonshire - Care,Supported Living
Cambridgeshire County Council,03-Nov-23,51302093962,"1,889.78",The Wilf Ward Family Trust t/a Woodside,CARE ESTABLISHMENT,LD - Hunts Locality - Cost of Care,LD - Huntingdonshire - Care,Supported Living
Cambridgeshire County Council,03-Nov-23,51302093962,"1,889.78",The Wilf Ward Family Trust t/a Woodside,CARE ESTABLISHMENT,LD - Hunts Locality - Cost of Care,LD - Huntingdonshire - Care,Supported Living
Cambridgeshire County Council,03-Nov-23,51302093962,"1,889.78",The Wilf Ward Family Trust t/a Woodside,CARE ESTABLISHMENT,LD - Hunts Locality - Cost of Care,LD - Huntingdonshire - Care,Supported Living
Cambridgeshire County Council,03-Nov-23,51302093962,"1,889.78",The Wilf Ward Family Trust t/a Woodside,CARE ESTABLISHMENT,LD - Hunts Locality - Cost of Care,LD - Huntingdonshire - Care,Supported Living
Cambridgeshire County Council,03-Nov-23,51302093962,"1,889.78",The Wilf Ward Family Trust t/a Woodside,CARE ESTABLISHMENT,LD - Hunts Locality - Cost of Care,LD - Huntingdonshire - Care,Supported Living
Cambridgeshire County Council,03-Nov-23,51302093962,"1,889.78",The Wilf Ward Family Trust t/a Woodside,CARE ESTABLISHMENT,LD - Hunts Locality - Cost of Care,LD - Huntingdonshire - Care,Supported Living
Cambridgeshire County Council,03-Nov-23,51302093962,"1,889.78",The Wilf Ward Family Trust t/a Woodside,CARE ESTABLISHMENT,LD - Hunts Locality - Cost of Care,LD - Huntingdonshire - Care,Supported Living
Cambridgeshire County Council,03-Nov-23,51302093962,"1,889.78",The Wilf Ward Family Trust t/a Woodside,CARE ESTABLISHMENT,LD - Hunts Locality - Cost of Care,LD - Huntingdonshire - Care,Supported Living
Cambridgeshire County Council,03-Nov-23,51302093962,"1,889.78",The Wilf Ward Family Trust t/a Woodside,CARE ESTABLISHMENT,LD - Hunts Locality - Cost of Care,LD - Huntingdonshire - Care,Supported Living
Cambridgeshire County Council,03-Nov-23,51302093962,"1,889.78",The Wilf Ward Family Trust t/a Woodside,CARE ESTABLISHMENT,LD - Hunts Locality - Cost of Care,LD - Huntingdonshire - Care,Supported Living
Cambridgeshire County Council,03-Nov-23,51302093962,"1,889.78",The Wilf Ward Family Trust t/a Woodside,CARE ESTABLISHMENT,LD - Hunts Locality - Cost of Care,LD - Huntingdonshire - Care,Supported Living
Cambridgeshire County Council,03-Nov-23,51302093962,"1,889.78",The Wilf Ward Family Trust t/a Woodside,CARE ESTABLISHMENT,LD - Hunts Locality - Cost of Care,LD - Huntingdonshire - Care,Supported Living
Cambridgeshire County Council,03-Nov-23,51302093962,"1,889.78",The Wilf Ward Family Trust t/a Woodside,CARE ESTABLISHMENT,LD - Hunts Locality - Cost of Care,LD - Huntingdonshire - Care,Supported Living
Cambridgeshire County Council,03-Nov-23,51302093962,"1,889.78",The Wilf Ward Family Trust t/a Woodside,CARE ESTABLISHMENT,LD - Hunts Locality - Cost of Care,LD - Huntingdonshire - Care,Supported Living
Cambridgeshire County Council,03-Nov-23,51302093962,"1,889.78",The Wilf Ward Family Trust t/a Woodside,CARE ESTABLISHMENT,LD - Hunts Locality - Cost of Care,LD - Huntingdonshire - Care,Supported Living
Cambridgeshire County Council,03-Nov-23,51302093962,"1,889.78",The Wilf Ward Family Trust t/a Woodside,CARE ESTABLISHMENT,LD - Hunts Locality - Cost of Care,LD - Huntingdonshire - Care,Supported Living
Cambridgeshire County Council,03-Nov-23,51302093962,"1,889.78",The Wilf Ward Family Trust t/a Woodside,CARE ESTABLISHMENT,LD - Hunts Locality - Cost of Care,LD - Huntingdonshire - Care,Supported Living
Cambridgeshire County Council,03-Nov-23,51302093962,"1,889.78",The Wilf Ward Family Trust t/a Woodside,CARE ESTABLISHMENT,LD - Hunts Locality - Cost of Care,LD - Huntingdonshire - Care,Supported Living
Cambridgeshire County Council,03-Nov-23,51302093962,"1,889.78",The Wilf Ward Family Trust t/a Woodside,CARE ESTABLISHMENT,LD - Hunts Locality - Cost of Care,LD - Huntingdonshire - Care,Supported Living
Cambridgeshire County Council,03-Nov-23,51302093962,"1,889.78",The Wilf Ward Family Trust t/a Woodside,CARE ESTABLISHMENT,LD - Hunts Locality - Cost of Care,LD - Huntingdonshire - Care,Supported Living
Cambridgeshire County Council,03-Nov-23,51302093962,"1,889.78",The Wilf Ward Family Trust t/a Woodside,CARE ESTABLISHMENT,LD - Hunts Locality - Cost of Care,LD - Huntingdonshire - Care,Supported Living
Cambridgeshire County Council,03-Nov-23,51302093962,"1,889.78",The Wilf Ward Family Trust t/a Woodside,CARE ESTABLISHMENT,LD - Hunts Locality - Cost of Care,LD - Huntingdonshire - Care,Supported Living
Cambridgeshire County Council,03-Nov-23,51302080058,"1,944.58",SC Electrical Contracting Ltd,COMPANY,County Farms,County Farms,County Farms Maintenance
Cambridgeshire County Council,03-Nov-23,51302093615,"2,047.81",Redacted Personal Data,INDIVIDUAL,LD - Young Adults Team,LD - Young Adults - Special Needs,Direct Payments
Cambridgeshire County Council,03-Nov-23,51302093616,"2,047.81",Redacted Personal Data,INDIVIDUAL,LD - Hunts Locality - Cost of Care,LD - Huntingdonshire - Special Needs,Direct Payments
Cambridgeshire County Council,03-Nov-23,51302093616,"2,047.81",Redacted Personal Data,INDIVIDUAL,LD - Hunts Locality - Cost of Care,LD - Huntingdonshire - Special Needs,Direct Payments
Cambridgeshire County Council,03-Nov-23,51302093616,"2,047.81",Redacted Personal Data,INDIVIDUAL,LD - Hunts Locality - Cost of Care,LD - Huntingdonshire - Special Needs,Direct Payments
Cambridgeshire County Council,03-Nov-23,51302093616,"2,047.81",Redacted Personal Data,INDIVIDUAL,LD - Hunts Locality - Cost of Care,LD - Huntingdonshire - Special Needs,Direct Payments
Cambridgeshire County Council,03-Nov-23,51302093616,"2,047.81",Redacted Personal Data,INDIVIDUAL,LD - Hunts Locality - Cost of Care,LD - Huntingdonshire - Special Needs,Direct Payments
Cambridgeshire County Council,03-Nov-23,51302093616,"2,047.81",Redacted Personal Data,INDIVIDUAL,LD - Hunts Locality - Cost of Care,LD - Huntingdonshire - Special Needs,Direct Payments
Cambridgeshire County Council,03-Nov-23,51302093616,"2,047.81",Redacted Personal Data,INDIVIDUAL,LD - Hunts Locality - Cost of Care,LD - Huntingdonshire - Special Needs,Direct Payments
Cambridgeshire County Council,03-Nov-23,51302093616,"2,047.81",Redacted Personal Data,INDIVIDUAL,LD - Hunts Locality - Cost of Care,LD - Huntingdonshire - Special Needs,Direct Payments
Cambridgeshire County Council,03-Nov-23,51302082231,"2,071.87",BALFOUR BEATTY LIVING PLACES LIMITED,COMPANY,Highways - LHIs,Highways - LHIs (Local Highways Improvements),Highways - Construction
Cambridgeshire County Council,03-Nov-23,51302093960,"2,111.69",GUYATT HOUSE CARE LTD,CARE ESTABLISHMENT,AMH Hunts and Fens - care,Hunts and Fens Adult Mental Health Team,Supported Living
Cambridgeshire County Council,03-Nov-23,51302093960,"2,111.69",GUYATT HOUSE CARE LTD,CARE ESTABLISHMENT,AMH Hunts and Fens - care,Hunts and Fens Adult Mental Health Team,Supported Living
Cambridgeshire County Council,03-Nov-23,51302093960,"2,111.69",GUYATT HOUSE CARE LTD,CARE ESTABLISHMENT,AMH Hunts and Fens - care,Hunts and Fens Adult Mental Health Team,Supported Living
Cambridgeshire County Council,03-Nov-23,51302093960,"2,111.69",GUYATT HOUSE CARE LTD,CARE ESTABLISHMENT,AMH Hunts and Fens - care,Hunts and Fens Adult Mental Health Team,Supported Living
Cambridgeshire County Council,03-Nov-23,51302093960,"2,111.69",GUYATT HOUSE CARE LTD,CARE ESTABLISHMENT,AMH Hunts and Fens - care,Hunts and Fens Adult Mental Health Team,Supported Living
Cambridgeshire County Council,03-Nov-23,51302086304,"2,119.00",SANCTON WOOD SCHOOL,NURSERY,SEND High Needs Top Up,High Needs Top Up - Free Schools,Independent School Placements
Cambridgeshire County Council,03-Nov-23,51302093712,"2,126.96",SWIFT TRANSPORT & HAULAGE LTD T/A SWIFT CARZ,TRADE SUPPLIER,Home to School Transport - Mainstream,Home to School Transport Mainstream - Secondary,Home to School - Contract
Cambridgeshire County Council,03-Nov-23,51302093711,"2,126.96",SWIFT TRANSPORT & HAULAGE LTD T/A SWIFT CARZ,TRADE SUPPLIER,Home to School Transport - Mainstream,Home to School Transport Mainstream - Primary,Home to School - Contract
Cambridgeshire County Council,03-Nov-23,51302079366,"2,130.00",J & P PLANT LTD,COMPANY,Highways Maintenance,Rights of Way and Access,Rights of Way - signposting
Cambridgeshire County Council,03-Nov-23,51302093136,"2,170.00",Edu-Lettings,COMPANY,Disability Clubs,CamPlay Holiday Clubs,Casual hire of facilities
Cambridgeshire County Council,03-Nov-23,51302093953,"2,179.17",SOCIAL CARE SOLUTIONS LTD,CARE ESTABLISHMENT,LD - Young Adults Team,LD - Young Adults - Care,Supported Living
Cambridgeshire County Council,03-Nov-23,51302093953,"2,179.17",SOCIAL CARE SOLUTIONS LTD,CARE ESTABLISHMENT,LD - Young Adults Team,LD - Young Adults - Care,Supported Living
Cambridgeshire County Council,03-Nov-23,51302093953,"2,179.17",SOCIAL CARE SOLUTIONS LTD,CARE ESTABLISHMENT,LD - Young Adults Team,LD - Young Adults - Care,Supported Living
Cambridgeshire County Council,03-Nov-23,51302093953,"2,179.17",SOCIAL CARE SOLUTIONS LTD,CARE ESTABLISHMENT,LD - Young Adults Team,LD - Young Adults - Care,Supported Living
Cambridgeshire County Council,03-Nov-23,51302093953,"2,179.17",SOCIAL CARE SOLUTIONS LTD,CARE ESTABLISHMENT,LD - Young Adults Team,LD - Young Adults - Care,Supported Living
Cambridgeshire County Council,03-Nov-23,51302093953,"2,179.17",SOCIAL CARE SOLUTIONS LTD,CARE ESTABLISHMENT,LD - Young Adults Team,LD - Young Adults - Care,Supported Living
Cambridgeshire County Council,03-Nov-23,51302093953,"2,179.17",SOCIAL CARE SOLUTIONS LTD,CARE ESTABLISHMENT,LD - Young Adults Team,LD - Young Adults - Care,Supported Living
Cambridgeshire County Council,03-Nov-23,51302093953,"2,179.17",SOCIAL CARE SOLUTIONS LTD,CARE ESTABLISHMENT,LD - Young Adults Team,LD - Young Adults - Care,Supported Living
Cambridgeshire County Council,03-Nov-23,51302093953,"2,179.17",SOCIAL CARE SOLUTIONS LTD,CARE ESTABLISHMENT,LD - Young Adults Team,LD - Young Adults - Care,Supported Living
Cambridgeshire County Council,03-Nov-23,51302093953,"2,179.17",SOCIAL CARE SOLUTIONS LTD,CARE ESTABLISHMENT,LD - Young Adults Team,LD - Young Adults - Care,Supported Living
Cambridgeshire County Council,03-Nov-23,51302093953,"2,179.17",SOCIAL CARE SOLUTIONS LTD,CARE ESTABLISHMENT,LD - Young Adults Team,LD - Young Adults - Care,Supported Living
Cambridgeshire County Council,03-Nov-23,51302093953,"2,179.17",SOCIAL CARE SOLUTIONS LTD,CARE ESTABLISHMENT,LD - Young Adults Team,LD - Young Adults - Care,Supported Living
Cambridgeshire County Council,03-Nov-23,51302093625,"2,196.48",Pathfinder Legal Services Limited,TRADE SUPPLIER,Net Zero Programme,Phase 1- Enabling net Zero - Just Transition Fund,External Legal Fees
Cambridgeshire County Council,03-Nov-23,51302093782,"2,214.90",SWARCO UK & Ireland Ltd,COMPANY,Signals,Signals Works,Traffic Signs and Lines Maintenance
Cambridgeshire County Council,03-Nov-23,51302093267,"2,288.20",Cathedral View Childcare,NURSERY,Nursery Schools,Early Years - Funded 3s/4s,Care & Ed Childcare Settings
Cambridgeshire County Council,03-Nov-23,51302093459,"2,375.25",St Mary's Pre-School Cambridge,NURSERY,Nursery Schools,Early Years - Funded 3s/4s,Care & Ed Childcare Settings
Cambridgeshire County Council,03-Nov-23,51302080361,"2,384.64",Macildowie Associates Limited,COMPANY,ASC Workforce,Adult Social Care Workforce Development,Agency Staff
Cambridgeshire County Council,03-Nov-23,51302094058,"2,506.00",Redacted Personal Data,INDIVIDUAL,Children's Disability Direct Payments,CSC Direct Payments,Direct Payments
Cambridgeshire County Council,03-Nov-23,51302093317,"2,567.25",Great Staughton  Primary Academy Pre-School,NURSERY,Nursery Schools,Early Years - Funded 3s/4s,Care & Ed Childcare Settings
Cambridgeshire County Council,03-Nov-23,51302093752,"2,568.00",Akmal cabs Ltd,COMPANY,Home to School Transport - Mainstream,Home to School Transport Mainstream - Secondary,Home to School - Contract
Cambridgeshire County Council,03-Nov-23,51302093334,"2,573.94",HILL ROW DAY NURSERY,NURSERY,Nursery Schools,Early Years - Funded 3s/4s,Care & Ed Childcare Settings
Cambridgeshire County Council,03-Nov-23,51302080038,"2,608.58",Derwent Facilities Management Ltd,COMPANY,Commercial Activity,Brunswick House,Professional Fees and Hired Services
Cambridgeshire County Council,03-Nov-23,51302094105,"2,640.00",Shaz Travels Ltd,TRADE SUPPLIER,LD - Hunts Locality - Cost of Care,LD - Huntingdonshire - Care,Social Care Transport
Cambridgeshire County Council,03-Nov-23,51302062978,"2,647.50",On Track Education Services Limited,EDUCATION,SEN Placements,Independent Education Placements,Independent School Placements
Cambridgeshire County Council,03-Nov-23,51302093760,"2,654.40",NASA CARS,TRADE SUPPLIER,Home to School Transport - Special,Home to School Transport Special - Secondary,Home to School - Contract
Cambridgeshire County Council,03-Nov-23,51302080052,"2,672.36",Derwent Facilities Management Ltd,COMPANY,Commercial Activity,Brunswick House,Professional Fees and Hired Services
Cambridgeshire County Council,03-Nov-23,51302093565,"2,679.06",Redacted Personal Data,PARENT/GUARDIAN,LD - Hunts Locality - Cost of Care,LD - Huntingdonshire - Care,Direct Payments
Cambridgeshire County Council,03-Nov-23,51302093565,"2,679.06",Redacted Personal Data,PARENT/GUARDIAN,LD - Hunts Locality - Cost of Care,LD - Huntingdonshire - Care,Direct Payments
Cambridgeshire County Council,03-Nov-23,51302093565,"2,679.06",Redacted Personal Data,PARENT/GUARDIAN,LD - Hunts Locality - Cost of Care,LD - Huntingdonshire - Care,Direct Payments
Cambridgeshire County Council,03-Nov-23,51302093565,"2,679.06",Redacted Personal Data,PARENT/GUARDIAN,LD - Hunts Locality - Cost of Care,LD - Huntingdonshire - Care,Direct Payments
Cambridgeshire County Council,03-Nov-23,51302093565,"2,679.06",Redacted Personal Data,PARENT/GUARDIAN,LD - Hunts Locality - Cost of Care,LD - Huntingdonshire - Care,Direct Payments
Cambridgeshire County Council,03-Nov-23,51302093565,"2,679.06",Redacted Personal Data,PARENT/GUARDIAN,LD - Hunts Locality - Cost of Care,LD - Huntingdonshire - Care,Direct Payments
Cambridgeshire County Council,03-Nov-23,51302093565,"2,679.06",Redacted Personal Data,PARENT/GUARDIAN,LD - Hunts Locality - Cost of Care,LD - Huntingdonshire - Care,Direct Payments
Cambridgeshire County Council,03-Nov-23,51302093565,"2,679.06",Redacted Personal Data,PARENT/GUARDIAN,LD - Hunts Locality - Cost of Care,LD - Huntingdonshire - Care,Direct Payments
Cambridgeshire County Council,03-Nov-23,51302093613,"2,679.06",Redacted Personal Data,PARENT/GUARDIAN,LD - Young Adults Team,LD - Young Adults - Care,Direct Payments
Cambridgeshire County Council,03-Nov-23,51302093759,"2,736.00",Dash Travel UK Ltd,COMPANY,Home to School Transport - Mainstream,Home to School Transport Mainstream - Secondary,Home to School - Contract
Cambridgeshire County Council,03-Nov-23,51302092456,"2,760.00",HUNTINGDON  MARRIOTT,TRADE SUPPLIER,Virtual School,Virtual School LACPP Financing,Casual hire of facilities
Cambridgeshire County Council,03-Nov-23,51302093745,"2,790.00",Darwin Cambridge Ltd T/A Hyfly Taxis,COMPANY,Home to School Transport - Special,Home to School Transport Special - Special School,Home to School - Contract
Cambridgeshire County Council,03-Nov-23,51302093744,"2,790.00",CAMCAB LTD,TRADE SUPPLIER,Home to School Transport - Special,Home to School Transport Special - Secondary,Home to School - Contract
Cambridgeshire County Council,03-Nov-23,51302094024,"2,808.00",NATIONAL TEACHING & ADVISORY SERVICE FOR LOOKED AFTER CHILDREN (NT & AS),OTHER PUBLIC BODIES,Out of School Tuition,Out of School Provision EHCPs,Independent School Placements
Cambridgeshire County Council,03-Nov-23,51302093294,"2,915.41",Eden House Day Nursery,NURSERY,Nursery Schools,Early Years - Funded 3s/4s,Care & Ed Childcare Settings
Cambridgeshire County Council,03-Nov-23,51302093761,"2,970.00",NASA CARS,TRADE SUPPLIER,Home to School Transport - Special,Home to School Transport Special - Special School,Home to School - Contract
Cambridgeshire County Council,03-Nov-23,51302093705,"3,000.00",DADDY CABS LTD,TRADE SUPPLIER,Home to School Transport - Special,Home to School Transport Special - Post 16,Home to School - Contract
Cambridgeshire County Council,03-Nov-23,51302094108,"3,039.60",Shaz Travels Ltd,TRADE SUPPLIER,LAC Transport,LAC Transport - Home to School,Social Care Transport
Cambridgeshire County Council,03-Nov-23,51302094025,"3,042.00",NATIONAL TEACHING & ADVISORY SERVICE FOR LOOKED AFTER CHILDREN (NT & AS),OTHER PUBLIC BODIES,Out of School Tuition,Out of School Provision EHCPs,Independent School Placements
Cambridgeshire County Council,03-Nov-23,51302093763,"3,042.00",NASA CARS,TRADE SUPPLIER,Home to School Transport - Mainstream,Home to School Transport Mainstream - Secondary,Home to School - Contract
Cambridgeshire County Council,03-Nov-23,51302093489,"3,050.61",Redacted Personal Data,INDIVIDUAL,Nursery Schools,Early Years - Funded 3s/4s,Care & Ed Childcare Settings
Cambridgeshire County Council,03-Nov-23,51302093350,"3,121.81",Redacted Personal Data,INDIVIDUAL,Nursery Schools,Early Years - Funded 3s/4s,Care & Ed Childcare Settings
Cambridgeshire County Council,03-Nov-23,51302093757,"3,130.92",Cambridge and Huntingdon Airport Travel Service,COMPANY,Home to School Transport - Special,Home to School Transport Special - Primary,Home to School - Contract
Cambridgeshire County Council,03-Nov-23,51302093920,"3,131.00",NEXUS FOSTERING LTD,CARE ESTABLISHMENT,LAC Placements,Placements - independent fostering,Agency Placements - In County
Cambridgeshire County Council,03-Nov-23,51302093922,"3,131.00",NEXUS FOSTERING LTD,CARE ESTABLISHMENT,LAC Placements,Placements - independent fostering,Agency Placements - In County
Cambridgeshire County Council,03-Nov-23,51302093901,"3,131.00",NEXUS FOSTERING LTD,CARE ESTABLISHMENT,LAC Placements,Placements - independent fostering,Agency Placements - Out of  County
Cambridgeshire County Council,03-Nov-23,51302093902,"3,131.00",NEXUS FOSTERING LTD,CARE ESTABLISHMENT,LAC Placements,Placements - independent fostering,Agency Placements - Out of  County
Cambridgeshire County Council,03-Nov-23,51302093903,"3,131.00",NEXUS FOSTERING LTD,CARE ESTABLISHMENT,LAC Placements,Placements - independent fostering,Agency Placements - In County
Cambridgeshire County Council,03-Nov-23,51302093904,"3,131.00",NEXUS FOSTERING LTD,CARE ESTABLISHMENT,LAC Placements,Placements - independent fostering,Agency Placements - In County
Cambridgeshire County Council,03-Nov-23,51302093913,"3,131.00",NEXUS FOSTERING LTD,CARE ESTABLISHMENT,LAC Placements,Placements - independent fostering,Agency Placements - Out of  County
Cambridgeshire County Council,03-Nov-23,51302093956,"3,182.35",SOCIAL CARE SOLUTIONS LTD,CARE ESTABLISHMENT,LD - Young Adults Team,LD - Young Adults - Care,Supported Living
Cambridgeshire County Council,03-Nov-23,51302093956,"3,182.35",SOCIAL CARE SOLUTIONS LTD,CARE ESTABLISHMENT,LD - Young Adults Team,LD - Young Adults - Care,Supported Living
Cambridgeshire County Council,03-Nov-23,51302093956,"3,182.35",SOCIAL CARE SOLUTIONS LTD,CARE ESTABLISHMENT,LD - Young Adults Team,LD - Young Adults - Care,Supported Living
Cambridgeshire County Council,03-Nov-23,51302093956,"3,182.35",SOCIAL CARE SOLUTIONS LTD,CARE ESTABLISHMENT,LD - Young Adults Team,LD - Young Adults - Care,Supported Living
Cambridgeshire County Council,03-Nov-23,51302093956,"3,182.35",SOCIAL CARE SOLUTIONS LTD,CARE ESTABLISHMENT,LD - Young Adults Team,LD - Young Adults - Care,Supported Living
Cambridgeshire County Council,03-Nov-23,51302093956,"3,182.35",SOCIAL CARE SOLUTIONS LTD,CARE ESTABLISHMENT,LD - Young Adults Team,LD - Young Adults - Care,Supported Living
Cambridgeshire County Council,03-Nov-23,51302093817,"3,200.48",QUALITY FOSTER CARE LTD,CARE ESTABLISHMENT,LAC Placements,Placements - independent fostering,Agency Placements - Out of  County
Cambridgeshire County Council,03-Nov-23,51302093746,"3,210.65",24 X 7 LTD,TRADE SUPPLIER,Home to School Transport - Special,Home to School Transport Special - Special School,Home to School - Contract
Cambridgeshire County Council,03-Nov-23,51302093512,"3,212.88",YMCA Childcare Blinco Grove,NURSERY,Nursery Schools,Early Years - Funded 3s/4s,Care & Ed Childcare Settings
Cambridgeshire County Council,03-Nov-23,51302093949,"3,214.29",Regional Fostering Services Ltd,CARE ESTABLISHMENT,LAC Placements,Placements - independent fostering,Agency Placements - Out of  County
Cambridgeshire County Council,03-Nov-23,51302093875,"3,227.59",THE NATIONAL FOSTERING AGENCY,CARE ESTABLISHMENT,LAC Placements,Placements - independent fostering,Agency Placements - Out of  County
Cambridgeshire County Council,03-Nov-23,51302093880,"3,227.59",THE NATIONAL FOSTERING AGENCY,CARE ESTABLISHMENT,LAC Placements,Placements - independent fostering,Agency Placements - Out of  County
Cambridgeshire County Council,03-Nov-23,51302093264,"3,238.20",CAMBRIDGE MONTESSORI,NURSERY,Nursery Schools,Early Years - Funded 3s/4s,Care & Ed Childcare Settings
Cambridgeshire County Council,03-Nov-23,51302093950,"3,321.43",Regional Fostering Services Ltd,CARE ESTABLISHMENT,LAC Placements,Placements - independent fostering,Agency Placements - Out of  County
Cambridgeshire County Council,03-Nov-23,51302093910,"3,324.75",NEXUS FOSTERING LTD,CARE ESTABLISHMENT,LAC Placements,Placements - independent fostering,Agency Placements - Out of  County
Cambridgeshire County Council,03-Nov-23,51302093852,"3,344.68",ST CHRISTOPHER'S FELLOWSHIP,CARE ESTABLISHMENT,LAC Placements,Placements - independent fostering,Agency Placements - In County
Cambridgeshire County Council,03-Nov-23,51302093947,"3,372.94",Regional Fostering Services Ltd,CARE ESTABLISHMENT,LAC Placements,Placements - independent fostering,Agency Placements - In County
Cambridgeshire County Council,03-Nov-23,51302093945,"3,372.94",Regional Fostering Services Ltd,CARE ESTABLISHMENT,LAC Placements,Placements - independent fostering,Agency Placements - In County
Cambridgeshire County Council,03-Nov-23,51302094075,"3,379.20",Drivero Taxi Ltd,COMPANY,LD - East Locality - Cost of Care,LD - East Cambs - Care,Social Care Transport
Cambridgeshire County Council,03-Nov-23,51302093208,"3,385.00",ASKHAM HALL,CARE ESTABLISHMENT,Integration,Digitising Social Care Records,Living support grants
Cambridgeshire County Council,03-Nov-23,51302093142,"3,400.00",Redacted Personal Data,INDIVIDUAL,Insurance Fund,Insurance Claims - All Risks,Insurance Claims Paid
Cambridgeshire County Council,03-Nov-23,51302093819,"3,454.29",APEX Fostering,CARE ESTABLISHMENT,LAC Placements,Placements - independent fostering,Agency Placements - Out of  County
Cambridgeshire County Council,03-Nov-23,51302093946,"3,485.37",Regional Fostering Services Ltd,CARE ESTABLISHMENT,LAC Placements,Placements - independent fostering,Agency Placements - In County
Cambridgeshire County Council,03-Nov-23,51302093948,"3,485.37",Regional Fostering Services Ltd,CARE ESTABLISHMENT,LAC Placements,Placements - independent fostering,Agency Placements - In County
Cambridgeshire County Council,03-Nov-23,51302093839,"3,485.37",ORANGE GROVE FOSTER CARE,CARE ESTABLISHMENT,LAC Placements,Placements - independent fostering,Agency Placements - Out of  County
Cambridgeshire County Council,03-Nov-23,51302093881,"3,493.70",THE NATIONAL FOSTERING AGENCY,CARE ESTABLISHMENT,LAC Placements,Placements - independent fostering,Agency Placements - In County
Cambridgeshire County Council,03-Nov-23,51302093885,"3,493.70",THE NATIONAL FOSTERING AGENCY,CARE ESTABLISHMENT,LAC Placements,Placements - independent fostering,Agency Placements - Out of  County
Cambridgeshire County Council,03-Nov-23,51302093832,"3,502.69",ORANGE GROVE FOSTER CARE,CARE ESTABLISHMENT,LAC Placements,Placements - independent fostering,Agency Placements - In County
Cambridgeshire County Council,03-Nov-23,51302093896,"3,506.10",To The Moon and Back Foster Care Limited,CARE ESTABLISHMENT,LAC Placements,Placements - independent fostering,Agency Placements - In County
Cambridgeshire County Council,03-Nov-23,51302093740,"3,510.00",Sam Private Hire,COMPANY,Home to School Transport - Special,Home to School Transport Special - Post 16,Home to School - Contract
Cambridgeshire County Council,03-Nov-23,51302093419,"3,534.72",OVER NEW ROAD PRESCHOOL CIC,NURSERY,Nursery Schools,Early Years - Funded 3s/4s,Care & Ed Childcare Settings
Cambridgeshire County Council,03-Nov-23,51302093873,"3,565.00",THE NATIONAL FOSTERING AGENCY,CARE ESTABLISHMENT,LAC Placements,Placements - independent fostering,Agency Placements - Out of  County
Cambridgeshire County Council,03-Nov-23,51302094103,"3,566.60",BREEZE TAXIS LTD,COMPANY,LAC Transport,LAC Transport - Home to School,Social Care Transport
Cambridgeshire County Council,03-Nov-23,51302093917,"3,578.29",NEXUS FOSTERING LTD,CARE ESTABLISHMENT,LAC Placements,Placements - independent fostering,Agency Placements - Out of  County
Cambridgeshire County Council,03-Nov-23,51302093914,"3,596.00",NEXUS FOSTERING LTD,CARE ESTABLISHMENT,LAC Placements,Placements - independent fostering,Agency Placements - In County
Cambridgeshire County Council,03-Nov-23,51302093915,"3,596.00",NEXUS FOSTERING LTD,CARE ESTABLISHMENT,LAC Placements,Placements - independent fostering,Agency Placements - In County
Cambridgeshire County Council,03-Nov-23,51302093911,"3,596.00",NEXUS FOSTERING LTD,CARE ESTABLISHMENT,LAC Placements,Placements - independent fostering,Agency Placements - In County
Cambridgeshire County Council,03-Nov-23,51302093899,"3,596.00",NEXUS FOSTERING LTD,CARE ESTABLISHMENT,LAC Placements,Placements - independent fostering,Agency Placements - Out of  County
Cambridgeshire County Council,03-Nov-23,51302093905,"3,596.00",NEXUS FOSTERING LTD,CARE ESTABLISHMENT,LAC Placements,Placements - independent fostering,Agency Placements - Out of  County
Cambridgeshire County Council,03-Nov-23,51302093923,"3,596.00",NEXUS FOSTERING LTD,CARE ESTABLISHMENT,LAC Placements,Placements - independent fostering,Agency Placements - In County
Cambridgeshire County Council,03-Nov-23,51302093924,"3,596.00",NEXUS FOSTERING LTD,CARE ESTABLISHMENT,LAC Placements,Placements - independent fostering,Agency Placements - In County
Cambridgeshire County Council,03-Nov-23,51302093925,"3,596.00",NEXUS FOSTERING LTD,CARE ESTABLISHMENT,LAC Placements,Placements - independent fostering,Agency Placements - Out of  County
Cambridgeshire County Council,03-Nov-23,51302093762,"3,600.00",NASA CARS,TRADE SUPPLIER,Home to School Transport - Special,Home to School Transport Special - Out of County,Home to School - Contract
Cambridgeshire County Council,03-Nov-23,51302093834,"3,620.49",ORANGE GROVE FOSTER CARE,CARE ESTABLISHMENT,LAC Placements,Placements - independent fostering,Agency Placements - Out of  County
Cambridgeshire County Council,03-Nov-23,51302093836,"3,620.49",ORANGE GROVE FOSTER CARE,CARE ESTABLISHMENT,LAC Placements,Placements - independent fostering,Agency Placements - Out of  County
Cambridgeshire County Council,03-Nov-23,51302093941,"3,621.43",Regional Fostering Services Ltd,CARE ESTABLISHMENT,LAC Placements,Placements - independent fostering,Agency Placements - Out of  County
Cambridgeshire County Council,03-Nov-23,51302093862,"3,653.57",Eastern Family Services Ltd t/a Eastern Fostering Services,CARE ESTABLISHMENT,LAC Placements,Placements - independent fostering,Agency Placements - Out of  County
Cambridgeshire County Council,03-Nov-23,51302093864,"3,653.57",Eastern Family Services Ltd t/a Eastern Fostering Services,CARE ESTABLISHMENT,LAC Placements,Placements - independent fostering,Agency Placements - Out of  County
Cambridgeshire County Council,03-Nov-23,51302093866,"3,653.57",Eastern Family Services Ltd t/a Eastern Fostering Services,CARE ESTABLISHMENT,LAC Placements,Placements - independent fostering,Agency Placements - Out of  County
Cambridgeshire County Council,03-Nov-23,51302093728,"3,675.00",MIL-KEN TRAVEL LTD,TRADE SUPPLIER,Home to School Transport - Mainstream,Home to School Transport Mainstream - Secondary,Home to School - Contract
Cambridgeshire County Council,03-Nov-23,51302093907,"3,689.00",NEXUS FOSTERING LTD,CARE ESTABLISHMENT,LAC Placements,Placements - independent fostering,Agency Placements - In County
Cambridgeshire County Council,03-Nov-23,51302093816,"3,694.58",FUTURES FOR CHILDREN LTD,CARE ESTABLISHMENT,LAC Placements,Placements - independent fostering,Agency Placements - Out of  County
Cambridgeshire County Council,03-Nov-23,51302093347,"3,705.94",KENNETT FOUNDATION STAGE UNIT,NURSERY,Nursery Schools,Early Years - Funded 3s/4s,Care & Ed Childcare Settings
Cambridgeshire County Council,03-Nov-23,51302093855,"3,720.00",ST CHRISTOPHER'S FELLOWSHIP,CARE ESTABLISHMENT,LAC Placements,Placements - independent fostering,Agency Placements - Out of  County
Cambridgeshire County Council,03-Nov-23,51302093857,"3,720.00",ST CHRISTOPHER'S FELLOWSHIP,CARE ESTABLISHMENT,LAC Placements,Placements - independent fostering,Agency Placements - Out of  County
Cambridgeshire County Council,03-Nov-23,51302093859,"3,720.00",ST CHRISTOPHER'S FELLOWSHIP,CARE ESTABLISHMENT,LAC Placements,Placements - independent fostering,Agency Placements - Out of  County
Cambridgeshire County Council,03-Nov-23,51302080327,"3,727.00",LITTLEPORT COMMUNITY PRIMARY SCHOOL,EDUCATION,Corporate Offices,Littleport Children's Centre,Rents and Leases
Cambridgeshire County Council,03-Nov-23,51302093872,"3,738.16",THE NATIONAL FOSTERING AGENCY,CARE ESTABLISHMENT,LAC Placements,Placements - independent fostering,Agency Placements - Out of  County
Cambridgeshire County Council,03-Nov-23,51302093888,"3,738.16",THE NATIONAL FOSTERING AGENCY,CARE ESTABLISHMENT,LAC Placements,Placements - independent fostering,Agency Placements - Out of  County
Cambridgeshire County Council,03-Nov-23,51302093944,"3,742.14",Regional Fostering Services Ltd,CARE ESTABLISHMENT,LAC Placements,Placements - independent fostering,Agency Placements - Out of  County
Cambridgeshire County Council,03-Nov-23,51302093878,"3,742.45",THE NATIONAL FOSTERING AGENCY,CARE ESTABLISHMENT,LAC Placements,Placements - independent fostering,Agency Placements - In County
Cambridgeshire County Council,03-Nov-23,51302093210,"3,742.52",ASKHAM HALL,CARE ESTABLISHMENT,Integration,Digitising Social Care Records,Living support grants
Cambridgeshire County Council,03-Nov-23,51302093884,"3,743.25",THE NATIONAL FOSTERING AGENCY,CARE ESTABLISHMENT,LAC Placements,Placements - independent fostering,Agency Placements - In County
Cambridgeshire County Council,03-Nov-23,51302093815,"3,743.25",Reach Out Care Ltd,CARE ESTABLISHMENT,LAC Placements,Placements - independent fostering,Agency Placements - In County
Cambridgeshire County Council,03-Nov-23,51302093738,"3,744.00",Sam Private Hire,COMPANY,Home to School Transport - Special,Home to School Transport Special - Post 16,Home to School - Contract
Cambridgeshire County Council,03-Nov-23,51302093434,"3,752.92",QUEENS COLLEGE NURSERY,NURSERY,Nursery Schools,Early Years - Funded 3s/4s,Care & Ed Childcare Settings
Cambridgeshire County Council,03-Nov-23,51302093709,"3,762.00",SAAB CARS,COMPANY,Home to School Transport - Special,Home to School Transport Special - Special School,Home to School - Contract
Cambridgeshire County Council,03-Nov-23,51302093848,"3,795.29",LITTLE ACORNS FOSTERING LTD,CARE ESTABLISHMENT,LAC Placements,Placements - independent fostering,Agency Placements - In County
Cambridgeshire County Council,03-Nov-23,51302093843,"3,795.29",LITTLE ACORNS FOSTERING LTD,CARE ESTABLISHMENT,LAC Placements,Placements - independent fostering,Agency Placements - Out of  County
Cambridgeshire County Council,03-Nov-23,51302093231,"3,900.67",BEACH BABIES LIMITED (WILBURTON),NURSERY,Nursery Schools,Early Years - Funded 3s/4s,Care & Ed Childcare Settings
Cambridgeshire County Council,03-Nov-23,51302093751,"3,912.00",A2B TAXIS,TRADE SUPPLIER,Home to School Transport - Special,Home to School Transport Special - Special School,Home to School - Contract
Cambridgeshire County Council,03-Nov-23,51302093850,"3,932.57",LITTLE ACORNS FOSTERING LTD,CARE ESTABLISHMENT,LAC Placements,Placements - independent fostering,Agency Placements - Out of  County
Cambridgeshire County Council,03-Nov-23,51302093453,"3,933.30",SOHAM PLAYGROUP@ST ANDREWS,NURSERY,Nursery Schools,Early Years - Funded 3s/4s,Care & Ed Childcare Settings
Cambridgeshire County Council,03-Nov-23,51302093831,"3,937.00",ORANGE GROVE FOSTER CARE,CARE ESTABLISHMENT,LAC Placements,Placements - independent fostering,Agency Placements - In County
Cambridgeshire County Council,03-Nov-23,51302093249,"3,937.41",BUCKDEN PRE-SCHOOL PLAYGROUP,NURSERY,Nursery Schools,Early Years - Funded 3s/4s,Care & Ed Childcare Settings
Cambridgeshire County Council,03-Nov-23,51302093845,"3,941.43",LITTLE ACORNS FOSTERING LTD,CARE ESTABLISHMENT,LAC Placements,Placements - independent fostering,Agency Placements - In County
Cambridgeshire County Council,03-Nov-23,51302093841,"3,941.43",LITTLE ACORNS FOSTERING LTD,CARE ESTABLISHMENT,LAC Placements,Placements - independent fostering,Agency Placements - Out of  County
Cambridgeshire County Council,03-Nov-23,51302093811,"3,942.60",TRANSITION CARE PETERBOROUGH LTD,CARE ESTABLISHMENT,LAC Placements,Placements - supported accommodation,Agency Placements - In County
Cambridgeshire County Council,03-Nov-23,51302093812,"3,942.60",TRANSITION CARE PETERBOROUGH LTD,CARE ESTABLISHMENT,LAC Placements,Placements - supported accommodation,Agency Placements - In County
Cambridgeshire County Council,03-Nov-23,51302093813,"3,942.60",TRANSITION CARE PETERBOROUGH LTD,CARE ESTABLISHMENT,LAC Placements,Placements - supported accommodation,Agency Placements - In County
Cambridgeshire County Council,03-Nov-23,51302093814,"3,942.60",TRANSITION CARE PETERBOROUGH LTD,CARE ESTABLISHMENT,LAC Placements,Placements - supported accommodation,Agency Placements - In County
Cambridgeshire County Council,03-Nov-23,51302093867,"3,963.35",People Who Foster Ltd,CARE ESTABLISHMENT,LAC Placements,Placements - independent fostering,Agency Placements - Out of  County
Cambridgeshire County Council,03-Nov-23,51302093890,"3,963.57",THE NATIONAL FOSTERING AGENCY,CARE ESTABLISHMENT,LAC Placements,Placements - independent fostering,Agency Placements - In County
Cambridgeshire County Council,03-Nov-23,51302093892,"3,963.57",THE NATIONAL FOSTERING AGENCY,CARE ESTABLISHMENT,LAC Placements,Placements - independent fostering,Agency Placements - In County
Cambridgeshire County Council,03-Nov-23,51302093820,"3,971.10",Flourish Fostering Ltd,CARE ESTABLISHMENT,LAC Placements,Placements - independent fostering,Agency Placements - Out of  County
Cambridgeshire County Council,03-Nov-23,51302093329,"3,975.79",HASLINGFIELD LITTLE OWLS COMMITTEE,NURSERY,Nursery Schools,Early Years - Funded 3s/4s,Care & Ed Childcare Settings
Cambridgeshire County Council,03-Nov-23,51302093742,"3,978.00",Sam Private Hire,COMPANY,Home to School Transport - Special,Home to School Transport Special - Post 16,Home to School - Contract
Cambridgeshire County Council,03-Nov-23,51302093410,"3,984.55",Redacted Personal Data,INDIVIDUAL,Nursery Schools,Early Years - Funded 3s/4s,Care & Ed Childcare Settings
Cambridgeshire County Council,03-Nov-23,51302093417,"3,993.00",OFFORD PRE-SCHOOL,NURSERY,Nursery Schools,Early Years - Funded 3s/4s,Care & Ed Childcare Settings
Cambridgeshire County Council,03-Nov-23,51302093382,"4,015.20",LITTLE LAMBS PRE SCHOOL,NURSERY,Nursery Schools,Early Years - Funded 3s/4s,Care & Ed Childcare Settings
Cambridgeshire County Council,03-Nov-23,51302093369,"4,035.78",LITLINGTON PRESCHOOL,NURSERY,Nursery Schools,Early Years - Funded 3s/4s,Care & Ed Childcare Settings
Cambridgeshire County Council,03-Nov-23,51302093778,"4,050.00",1-2 Achieve,EDUCATION,Out of School Tuition,Out of School Provision EHCPs,Independent School Placements
Cambridgeshire County Council,03-Nov-23,51302093779,"4,050.00",1-2 Achieve,EDUCATION,Out of School Tuition,Out of School Provision EHCPs,Independent School Placements
Cambridgeshire County Council,03-Nov-23,51302093720,"4,051.80",THE PRIVATE HIRE COMPANY,TRADE SUPPLIER,Home to School Transport - Mainstream,Home to School Transport Mainstream - Primary,Home to School - Contract
Cambridgeshire County Council,03-Nov-23,51302093755,"4,104.00",ASH SCHOOL TRANSPORT,TRADE SUPPLIER,Home to School Transport - Special,Home to School Transport Special - Post 16,Home to School - Contract
Cambridgeshire County Council,03-Nov-23,51302093298,"4,104.51",FEN DRAYTON MONTESSORI NURSERY,NURSERY,Nursery Schools,Early Years - Funded 3s/4s,Care & Ed Childcare Settings
Cambridgeshire County Council,03-Nov-23,51302093493,"4,112.15",Twizzle Tops Day Nursery,NURSERY,Nursery Schools,Early Years - Funded 3s/4s,Care & Ed Childcare Settings
Cambridgeshire County Council,03-Nov-23,51302093786,"4,131.86",SWARCO UK & Ireland Ltd,COMPANY,Signals,Signals Works,Private Highways Work
Cambridgeshire County Council,03-Nov-23,51302094093,"4,140.00",TK Transport Solutions LTD,COMPANY,LAC Transport,LAC Transport - Home to School,Social Care Transport
Cambridgeshire County Council,03-Nov-23,51302093504,"4,144.17",WHITSERS PRE-SCHOOL PLAYGROUP,NURSERY,Nursery Schools,Early Years - Funded 3s/4s,Care & Ed Childcare Settings
Cambridgeshire County Council,03-Nov-23,51302093116,"4,150.00",Redacted Personal Data,INDIVIDUAL,SEND High Needs Top Up,Personal Budgets,Independent School Placements
Cambridgeshire County Council,03-Nov-23,51302094099,"4,166.40",TK Transport Solutions LTD,COMPANY,LD - Young Adults Team,LD - Young Adults - Care,Social Care Transport
Cambridgeshire County Council,03-Nov-23,51302093330,"4,183.69",Hauxton Pre school,CHARITY,Nursery Schools,Early Years - Funded 3s/4s,Care & Ed Childcare Settings
Cambridgeshire County Council,03-Nov-23,51302093823,"4,185.00",Flourish Fostering Ltd,CARE ESTABLISHMENT,LAC Placements,Placements - independent fostering,Agency Placements - Out of  County
Cambridgeshire County Council,03-Nov-23,51302093273,"4,185.50",Childrens Ark Day Nursery -  Monarchs Childcare Ltd,NURSERY,Nursery Schools,Early Years - Funded 3s/4s,Care & Ed Childcare Settings
Cambridgeshire County Council,03-Nov-23,51302093936,"4,264.29",Regional Fostering Services Ltd,CARE ESTABLISHMENT,LAC Placements,Placements - independent fostering,Agency Placements - Out of  County
Cambridgeshire County Council,03-Nov-23,51302094109,"4,284.00",Shaz Travels Ltd,TRADE SUPPLIER,LAC Transport,LAC Transport - Home to School,Social Care Transport
Cambridgeshire County Council,03-Nov-23,51302093895,"4,315.20",To The Moon and Back Foster Care Limited,CARE ESTABLISHMENT,LAC Placements,Placements - independent fostering,Agency Placements - In County
Cambridgeshire County Council,03-Nov-23,51302093306,"4,319.76",FOWLMERE PLAYGROUP,NURSERY,Nursery Schools,Early Years - Funded 3s/4s,Care & Ed Childcare Settings
Cambridgeshire County Council,03-Nov-23,51302093937,"4,406.43",Regional Fostering Services Ltd,CARE ESTABLISHMENT,LAC Placements,Placements - independent fostering,Agency Placements - Out of  County
Cambridgeshire County Council,03-Nov-23,51302094057,"4,412.46",Redacted Personal Data,INDIVIDUAL,Children's Disability Direct Payments,CSC Direct Payments,Direct Payments
Cambridgeshire County Council,03-Nov-23,51302093121,"4,446.00",NATIONAL TEACHING & ADVISORY SERVICE FOR LOOKED AFTER CHILDREN (NT & AS),OTHER PUBLIC BODIES,SEND - PEX support,SEND - Support for PEX without EHCP,Professional Fees and Hired Services
Cambridgeshire County Council,03-Nov-23,51302093253,"4,473.42",BUSY BEE DAY NURSERY,NURSERY,Nursery Schools,Early Years - Funded 3s/4s,Care & Ed Childcare Settings
Cambridgeshire County Council,03-Nov-23,51302093716,"4,488.00",THE PRIVATE HIRE COMPANY,TRADE SUPPLIER,Home to School Transport - Special,Home to School Transport Special - Post 16,Home to School - Contract
Cambridgeshire County Council,03-Nov-23,51302093115,"4,536.00",NATIONAL TEACHING & ADVISORY SERVICE FOR LOOKED AFTER CHILDREN (NT & AS),OTHER PUBLIC BODIES,Out of School Tuition,Out of School Provision EHCPs,Independent School Placements
Cambridgeshire County Council,03-Nov-23,51302093310,"4,549.77",Girton Cottontails Preschool,NURSERY,Nursery Schools,Early Years - Funded 3s/4s,Care & Ed Childcare Settings
Cambridgeshire County Council,03-Nov-23,51302093318,"4,572.57",GREENFIELDS DAY NURSERY,NURSERY,Nursery Schools,Early Years - Funded 3s/4s,Care & Ed Childcare Settings
Cambridgeshire County Council,03-Nov-23,51302093741,"4,680.00",Sam Private Hire,COMPANY,Home to School Transport - Special,Home to School Transport Special - Post 16,Home to School - Contract
Cambridgeshire County Council,03-Nov-23,51302093209,"4,710.98",ASKHAM HALL,CARE ESTABLISHMENT,Integration,Digitising Social Care Records,Living support grants
Cambridgeshire County Council,03-Nov-23,51302093404,"4,804.89",MONKEY PUZZLE DAY NURSERY CAMBRIDGE,NURSERY,Nursery Schools,Early Years - Funded 3s/4s,Care & Ed Childcare Settings
Cambridgeshire County Council,03-Nov-23,51302093412,"4,864.05",N Family Club Cambridge,NURSERY,Nursery Schools,Early Years - Funded 3s/4s,Care & Ed Childcare Settings
Cambridgeshire County Council,03-Nov-23,51302093388,"4,868.88",LITTLE THETFORD ACORNS,NURSERY,Nursery Schools,Early Years - Funded 3s/4s,Care & Ed Childcare Settings
Cambridgeshire County Council,03-Nov-23,51302093769,"4,912.82",Redacted Personal Data,INDIVIDUAL,Coroners,Coroners General,Professional Fees and Hired Services
Cambridgeshire County Council,03-Nov-23,51302093737,"4,914.00",Sam Private Hire,COMPANY,Home to School Transport - Special,Home to School Transport Special - Post 16,Home to School - Contract
Cambridgeshire County Council,03-Nov-23,51302093207,"4,964.52",ASKHAM HALL,CARE ESTABLISHMENT,Integration,Digitising Social Care Records,Living support grants
Cambridgeshire County Council,03-Nov-23,51302093883,"5,012.61",THE NATIONAL FOSTERING AGENCY,CARE ESTABLISHMENT,LAC Placements,Placements - independent fostering,Agency Placements - Out of  County
Cambridgeshire County Council,03-Nov-23,51302093211,"5,016.48",ASKHAM HALL,CARE ESTABLISHMENT,Integration,Digitising Social Care Records,Living support grants
Cambridgeshire County Council,03-Nov-23,51302093361,"5,021.93",LADYBIRD PLAYGROUP (THRIPLOW),NURSERY,Nursery Schools,Early Years - Funded 3s/4s,Care & Ed Childcare Settings
Cambridgeshire County Council,03-Nov-23,51302093495,"5,026.65",UNIVERSITY NURSERY,NURSERY,Nursery Schools,Early Years - Funded 3s/4s,Care & Ed Childcare Settings
Cambridgeshire County Council,03-Nov-23,51302093316,"5,056.38",GREAT GRANSDEN PRE-SCHOOL PLAYGROUP,NURSERY,Nursery Schools,Early Years - Funded 3s/4s,Care & Ed Childcare Settings
Cambridgeshire County Council,03-Nov-23,51302094007,"5,079.05",UPWOOD SMALL TO TALL,NURSERY,SEND High Needs Top Up,High Needs Top Up - Early Years,Independent School Placements
Cambridgeshire County Council,03-Nov-23,51302081623,"5,109.00",Cambridge Filmworks TM Ltd,COMPANY,Communication and Information,Communication and Information,Advertising / Publicity (non Recruitment)
Cambridgeshire County Council,03-Nov-23,51302093281,"5,115.60",EASTFIELD PLAYGROUP (CLUB 4 U),NURSERY,Nursery Schools,Early Years - Funded 3s/4s,Care & Ed Childcare Settings
Cambridgeshire County Council,03-Nov-23,51302093739,"5,148.00",Sam Private Hire,COMPANY,Home to School Transport - Special,Home to School Transport Special - Post 16,Home to School - Contract
Cambridgeshire County Council,03-Nov-23,51302093439,"5,228.25",ROMSEY MILL PLAYGROUP @ ROSS STREET,NURSERY,Nursery Schools,Early Years - Funded 3s/4s,Care & Ed Childcare Settings
Cambridgeshire County Council,03-Nov-23,51302093416,"5,239.48",Oakington Preschool t/a Little Flames Childcare Ltd,NURSERY,Nursery Schools,Early Years - Funded 3s/4s,Care & Ed Childcare Settings
Cambridgeshire County Council,03-Nov-23,51302093235,"5,245.93",BLUEBELL DAY NURSERY (ELTISELEY),NURSERY,Nursery Schools,Early Years - Funded 3s/4s,Care & Ed Childcare Settings
Cambridgeshire County Council,03-Nov-23,51302093277,"5,295.87",CLARENCE HOUSE DAY NURSERY,NURSERY,Nursery Schools,Early Years - Funded 3s/4s,Care & Ed Childcare Settings
Cambridgeshire County Council,03-Nov-23,51302093415,"5,325.45",NEWNHAM NURSERY,NURSERY,Nursery Schools,Early Years - Funded 3s/4s,Care & Ed Childcare Settings
Cambridgeshire County Council,03-Nov-23,51302094071,"5,335.20",Sam Private Hire,COMPANY,LAC Transport,LAC Transport - Home to School,Social Care Transport
Cambridgeshire County Council,03-Nov-23,51302093409,"5,373.69",MOTHER GOOSE PRE-SCHOOL,NURSERY,Nursery Schools,Early Years - Funded 3s/4s,Care & Ed Childcare Settings
Cambridgeshire County Council,03-Nov-23,51302093743,"5,382.00",Sam Private Hire,COMPANY,Home to School Transport - Special,Home to School Transport Special - Post 16,Home to School - Contract
Cambridgeshire County Council,03-Nov-23,51302094026,"5,400.00",PHOTOSYMBOLS LIMITED,TRADE SUPPLIER,System Licences,System Software & Licences,Computer software - annual licence agreement
Cambridgeshire County Council,03-Nov-23,51302093460,"5,495.92",St Philip's Nursery Class,NURSERY,Nursery Schools,Early Years - Funded 3s/4s,Care & Ed Childcare Settings
Cambridgeshire County Council,03-Nov-23,51302093345,"5,500.33",JOINT COLLEGES NURSERY,NURSERY,Nursery Schools,Early Years - Funded 3s/4s,Care & Ed Childcare Settings
Cambridgeshire County Council,03-Nov-23,51302079394,"5,509.40",KIMBOLTON SCHOOL,EDUCATION,SEND High Needs Top Up,High Needs Top Up - Free Schools,Independent School Placements
Cambridgeshire County Council,03-Nov-23,51302093319,"5,588.42",Redacted Personal Data,INDIVIDUAL,Nursery Schools,Early Years - Funded 3s/4s,Care & Ed Childcare Settings
Cambridgeshire County Council,03-Nov-23,51302093145,"5,633.60",Russell Worth Solicitors,COMPANY,Insurance Fund,Liability,Insurance Claims Paid
Cambridgeshire County Council,03-Nov-23,51302093749,"5,644.80",A2B TAXIS,TRADE SUPPLIER,Home to School Transport - Special,Home to School Transport Special - Post 16,Home to School - Contract
Cambridgeshire County Council,03-Nov-23,51302093770,"5,646.99",BRITISH TELECOMMUNICATIONS PLC,COMPANY,BM - Corporate Offices,Risk Management - Redcare,Security Equipment
Cambridgeshire County Council,03-Nov-23,51302093452,"5,706.33",SMARTIES PRE SCHOOL AND OUT OF SCHOOL CLUB,NURSERY,Nursery Schools,Early Years - Funded 3s/4s,Care & Ed Childcare Settings
Cambridgeshire County Council,03-Nov-23,51302093299,"5,767.59",FENSTANTON PRE-SCHOOL,NURSERY,Nursery Schools,Early Years - Funded 3s/4s,Care & Ed Childcare Settings
Cambridgeshire County Council,03-Nov-23,51302093403,"5,798.82",Monkey Puzzle Day Nursery Marleigh,NURSERY,Nursery Schools,Early Years - Funded 3s/4s,Care & Ed Childcare Settings
Cambridgeshire County Council,03-Nov-23,51302093406,"5,894.98",MONTAGU SQUARE DAY NURSERY,NURSERY,Nursery Schools,Early Years - Funded 3s/4s,Care & Ed Childcare Settings
Cambridgeshire County Council,03-Nov-23,51302093938,"5,978.57",Regional Fostering Services Ltd,CARE ESTABLISHMENT,LAC Placements,Placements - independent fostering,Agency Placements - Out of  County
Cambridgeshire County Council,03-Nov-23,51302093148,"6,000.00",Hugh James Solicitors,COMPANY,Insurance Fund,Liability,Insurance Claims Paid
Cambridgeshire County Council,03-Nov-23,51302093232,"6,002.53",BELLACLAIRE CHILDCARE LTD,NURSERY,Nursery Schools,Early Years - Funded 3s/4s,Care & Ed Childcare Settings
Cambridgeshire County Council,03-Nov-23,51302093374,"6,025.64",Little Deers Childcare,NURSERY,Nursery Schools,Early Years - Funded 3s/4s,Care & Ed Childcare Settings
Cambridgeshire County Council,03-Nov-23,51302093346,"6,049.58",JULIE & JO'S CHILDCARE,NURSERY,Nursery Schools,Early Years - Funded 3s/4s,Care & Ed Childcare Settings
Cambridgeshire County Council,03-Nov-23,51302093393,"6,093.57",MANEA PRE SCHOOL,NURSERY,Nursery Schools,Early Years - Funded 3s/4s,Care & Ed Childcare Settings
Cambridgeshire County Council,03-Nov-23,51302093939,"6,177.86",Regional Fostering Services Ltd,CARE ESTABLISHMENT,LAC Placements,Placements - independent fostering,Agency Placements - Out of  County
Cambridgeshire County Council,03-Nov-23,51302093430,"6,179.68",PLAYLANDERS PLAYGROUP,NURSERY,Nursery Schools,Early Years - Funded 3s/4s,Care & Ed Childcare Settings
Cambridgeshire County Council,03-Nov-23,51302093296,"6,307.70",ELSWORTH PRE-SCHOOL,EDUCATION,Nursery Schools,Early Years - Funded 3s/4s,Care & Ed Childcare Settings
Cambridgeshire County Council,03-Nov-23,51302093433,"6,361.88",PUDDLEDUCKS UNDER FIVES,NURSERY,Nursery Schools,Early Years - Funded 3s/4s,Care & Ed Childcare Settings
Cambridgeshire County Council,03-Nov-23,51302080353,"6,412.50",Eddisons Commercial Limited,COMPANY,Environment Fund: Decarbonisation Fund - Council buildings Low Carbon Heating,March Community Centre low carbon heating,Construction - External Professional Fees
Cambridgeshire County Council,03-Nov-23,51302093376,"6,416.67",LITTLE HANDS NURSERY SCHOOL (BOURN),NURSERY,Nursery Schools,Early Years - Funded 3s/4s,Care & Ed Childcare Settings
Cambridgeshire County Council,03-Nov-23,51302093427,"6,462.75",PENDRAGON PRE SCHOOL,NURSERY,Nursery Schools,Early Years - Funded 3s/4s,Care & Ed Childcare Settings
Cambridgeshire County Council,03-Nov-23,51302091924,"6,479.51",Acorn Care & Education Ltd,EDUCATION,SEN Placements,Independent Education Placements,Independent School Placements
Cambridgeshire County Council,03-Nov-23,51302093340,"6,480.81",JACK & JILL PLAYGROUP,EDUCATION,Nursery Schools,Early Years - Funded 3s/4s,Care & Ed Childcare Settings
Cambridgeshire County Council,03-Nov-23,51302093507,"6,507.95",THE WILLOWS DAY CARE NURSERY,NURSERY,Nursery Schools,Early Years - Funded 3s/4s,Care & Ed Childcare Settings
Cambridgeshire County Council,03-Nov-23,51302093348,"6,517.11",KESTER PRE-SCHOOL,NURSERY,Nursery Schools,Early Years - Funded 3s/4s,Care & Ed Childcare Settings
Cambridgeshire County Council,03-Nov-23,51302093381,"6,528.99",LITTLE INCREDIBLES,NURSERY,Nursery Schools,Early Years - Funded 3s/4s,Care & Ed Childcare Settings
Cambridgeshire County Council,03-Nov-23,51302079756,"6,532.50",ATKINS LTD,COMPANY,GCP St.Ives Greenway,GCP St.Ives Greenway,Construction - External Professional Fees
Cambridgeshire County Council,03-Nov-23,51302093473,"6,700.21",The Little Lighthouse Nursery,NURSERY,Nursery Schools,Early Years - Funded 3s/4s,Care & Ed Childcare Settings
Cambridgeshire County Council,03-Nov-23,51302093276,"6,810.26",CLARENCE HOUSE DAY NURSERY CHATTERIS,NURSERY,Nursery Schools,Early Years - Funded 3s/4s,Care & Ed Childcare Settings
Cambridgeshire County Council,03-Nov-23,51302093824,"6,820.00",Channels & Choices Therapeutic Fostering Ltd,CARE ESTABLISHMENT,LAC Placements,Placements - independent fostering,Agency Placements - Out of  County
Cambridgeshire County Council,03-Nov-23,51302094095,"6,904.80",TK Transport Solutions LTD,COMPANY,LD - Young Adults Team,LD - Young Adults - Care,Social Care Transport
Cambridgeshire County Council,03-Nov-23,51302093162,"6,962.00",HEATHLANDS SCHOOL,EDUCATION,Recoupment,Other LA Special Schools & ER,Independent School Placements
Cambridgeshire County Council,03-Nov-23,51302093314,"6,997.84",GRANTA PARK MONTESSORI NURSERY,NURSERY,Nursery Schools,Early Years - Funded 3s/4s,Care & Ed Childcare Settings
Cambridgeshire County Council,03-Nov-23,51302093157,"7,004.80",Redacted Personal Data,INDIVIDUAL,SEND High Needs Top Up,Personal Budgets,Independent School Placements
Cambridgeshire County Council,03-Nov-23,51302093458,"7,019.93",ST LEONARDS PRE-SCHOOL,NURSERY,Nursery Schools,Early Years - Funded 3s/4s,Care & Ed Childcare Settings
Cambridgeshire County Council,03-Nov-23,51302093270,"7,047.36",Chestnut Nursery @ Cottenham,NURSERY,Nursery Schools,Early Years - Funded 3s/4s,Care & Ed Childcare Settings
Cambridgeshire County Council,03-Nov-23,51302093326,"7,115.50",KIDDIWINKS PLAYGROUP,NURSERY,Nursery Schools,Early Years - Funded 3s/4s,Care & Ed Childcare Settings
Cambridgeshire County Council,03-Nov-23,51302093462,"7,151.38",STEPPING STONES DAY NURSERY ST IVES,NURSERY,Nursery Schools,Early Years - Funded 3s/4s,Care & Ed Childcare Settings
Cambridgeshire County Council,03-Nov-23,51302093251,"7,253.61",BURROUGH GREEN PLAYGROUP,NURSERY,Nursery Schools,Early Years - Funded 3s/4s,Care & Ed Childcare Settings
Cambridgeshire County Council,03-Nov-23,51302093445,"7,254.87",SAWSTON DAY NURSERY,NURSERY,Nursery Schools,Early Years - Funded 3s/4s,Care & Ed Childcare Settings
Cambridgeshire County Council,03-Nov-23,51302093355,"7,262.97",Kindred Education (Cambridgeshire) ta / Kindred Hauxton,NURSERY,Nursery Schools,Early Years - Funded 3s/4s,Care & Ed Childcare Settings
Cambridgeshire County Council,03-Nov-23,51302093470,"7,334.15",TEVERSHAM PLAYGROUP,NURSERY,Nursery Schools,Early Years - Funded 3s/4s,Care & Ed Childcare Settings
Cambridgeshire County Council,03-Nov-23,51302093351,"7,349.37",Kids R Us @ Fulbourn,NURSERY,Nursery Schools,Early Years - Funded 3s/4s,Care & Ed Childcare Settings
Cambridgeshire County Council,03-Nov-23,51302093335,"7,385.76",Hilton Day Nursery,NURSERY,Nursery Schools,Early Years - Funded 3s/4s,Care & Ed Childcare Settings
Cambridgeshire County Council,03-Nov-23,51302093715,"7,409.00",THE PRIVATE HIRE COMPANY,TRADE SUPPLIER,Home to School Transport - Special,Home to School Transport Special - Out of County,Home to School - Contract
Cambridgeshire County Council,03-Nov-23,51302093304,"7,434.66",FOLKSWORTH PRE-SCHOOL,NURSERY,Nursery Schools,Early Years - Funded 3s/4s,Care & Ed Childcare Settings
Cambridgeshire County Council,03-Nov-23,51302093265,"7,495.95",CAMBRIDGE STEINER SCHOOL AND EARLY YEARS,EDUCATION,Nursery Schools,Early Years - Funded 3s/4s,Care & Ed Childcare Settings
Cambridgeshire County Council,03-Nov-23,51302093288,"7,547.10",DITTON LODGE COMMUNITY NURSERY,EDUCATION,Nursery Schools,Early Years - Funded 3s/4s,Care & Ed Childcare Settings
Cambridgeshire County Council,03-Nov-23,51302093263,"7,589.32",Cambridge International School & Oaks Nursery,NURSERY,Nursery Schools,Early Years - Funded 3s/4s,Care & Ed Childcare Settings
Cambridgeshire County Council,03-Nov-23,51302093826,"7,628.57",CAPSTONE FOSTER CARE (SOUTH EAST) LTD,CARE ESTABLISHMENT,LAC Placements,Placements - independent fostering,Agency Placements - Out of  County
Cambridgeshire County Council,03-Nov-23,51302080040,"7,803.67",Derwent Facilities Management Ltd,COMPANY,Commercial Activity,Brunswick House,Professional Fees and Hired Services
Cambridgeshire County Council,03-Nov-23,51302093830,"7,882.86",CAPSTONE FOSTER CARE (SOUTH EAST) LTD,CARE ESTABLISHMENT,LAC Placements,Placements - independent fostering,Agency Placements - Out of  County
Cambridgeshire County Council,03-Nov-23,51302093227,"7,928.13",BAR HILL PRESCHOOL,NURSERY,Nursery Schools,Early Years - Funded 3s/4s,Care & Ed Childcare Settings
Cambridgeshire County Council,03-Nov-23,51302093307,"7,943.39",Foxes Bridge Farm Nursery & Pre-School,NURSERY,Nursery Schools,Early Years - Funded 3s/4s,Care & Ed Childcare Settings
Cambridgeshire County Council,03-Nov-23,51302093418,"8,014.12",THE OLD BUTTERY NURSERY,NURSERY,Nursery Schools,Early Years - Funded 3s/4s,Care & Ed Childcare Settings
Cambridgeshire County Council,03-Nov-23,51302093511,"8,037.75",Wyton On The Hill Primary,EDUCATION,Nursery Schools,Early Years - Funded 3s/4s,Care & Ed Childcare Settings
Cambridgeshire County Council,03-Nov-23,51302094073,"8,075.00",Ambu Kare Ltd,COMPANY,LAC Transport,LAC Transport - Home to School,Social Care Transport
Cambridgeshire County Council,03-Nov-23,51302093295,"8,077.83",ELM SCHOOL NURSERY,NURSERY,Nursery Schools,Early Years - Funded 3s/4s,Care & Ed Childcare Settings
Cambridgeshire County Council,03-Nov-23,51302093440,"8,090.25",ROMSEY MILL PLAYGROUP,NURSERY,Nursery Schools,Early Years - Funded 3s/4s,Care & Ed Childcare Settings
Cambridgeshire County Council,03-Nov-23,51302093311,"8,115.04",Cambridge Nurseries Ltd T/A Girton Village Day Nursery,NURSERY,Nursery Schools,Early Years - Funded 3s/4s,Care & Ed Childcare Settings
Cambridgeshire County Council,03-Nov-23,51302093785,"8,139.13",SWARCO UK & Ireland Ltd,COMPANY,Signals,Signals Works,Accident Damage
Cambridgeshire County Council,03-Nov-23,51302093501,"8,186.99",WATERBEACH COMMUNITY PLAYGROUP,NURSERY,Nursery Schools,Early Years - Funded 3s/4s,Care & Ed Childcare Settings
Cambridgeshire County Council,03-Nov-23,51302093490,"8,193.92",TIDDLYWINKS PRE-SCHOOL,NURSERY,Nursery Schools,Early Years - Funded 3s/4s,Care & Ed Childcare Settings
Cambridgeshire County Council,03-Nov-23,51302093309,"8,203.44",The Cam Academy Trust ta Gamlingay Preschool,NURSERY,Nursery Schools,Early Years - Funded 3s/4s,Care & Ed Childcare Settings
Cambridgeshire County Council,03-Nov-23,51302093499,"8,394.76",VANTAGE PARK DAY NURSERY,EDUCATION,Nursery Schools,Early Years - Funded 3s/4s,Care & Ed Childcare Settings
Cambridgeshire County Council,03-Nov-23,51302093730,"8,517.00",NEALS TRAVEL LTD,TRADE SUPPLIER,Home to School Transport - Mainstream,Home to School Transport Mainstream - Primary,Home to School - Contract
Cambridgeshire County Council,03-Nov-23,51302094044,"8,556.00",West Cambs Federation,COMPANY,NHS - PH Health Checks,NHS Health Checks - Prescribed Cardio Vascular Health Check,Professional Fees and Hired Services
Cambridgeshire County Council,03-Nov-23,51302093386,"8,571.83",LITTLE PAXTON PRE-SCHOOL,NURSERY,Nursery Schools,Early Years - Funded 3s/4s,Care & Ed Childcare Settings
Cambridgeshire County Council,03-Nov-23,51302093233,"8,575.90",BLACKBERRY HOUSE DAY NURSERY,NURSERY,Nursery Schools,Early Years - Funded 3s/4s,Care & Ed Childcare Settings
Cambridgeshire County Council,03-Nov-23,51302093918,"8,649.00",NEXUS FOSTERING LTD,CARE ESTABLISHMENT,LAC Placements,Placements - independent fostering,Agency Placements - Out of  County
Cambridgeshire County Council,03-Nov-23,51302093401,"8,669.90",MILLINGTON ROAD NURSERY SCHOOL,NURSERY,Nursery Schools,Early Years - Funded 3s/4s,Care & Ed Childcare Settings
Cambridgeshire County Council,03-Nov-23,51302093384,"8,732.64",LITTLE OWL PRE-SCHOOL,NURSERY,Nursery Schools,Early Years - Funded 3s/4s,Care & Ed Childcare Settings
Cambridgeshire County Council,03-Nov-23,51302093323,"8,801.48",HARDWICK PRE-SCHOOL,NURSERY,Nursery Schools,Early Years - Funded 3s/4s,Care & Ed Childcare Settings
Cambridgeshire County Council,03-Nov-23,51302093368,"8,829.72",LIONEL WALDEN SCHOOL PLAYGROUP,NURSERY,Nursery Schools,Early Years - Funded 3s/4s,Care & Ed Childcare Settings
Cambridgeshire County Council,03-Nov-23,51302093292,"8,900.98",EARITH PRESCHOOL 7,NURSERY,Nursery Schools,Early Years - Funded 3s/4s,Care & Ed Childcare Settings
Cambridgeshire County Council,03-Nov-23,51302093492,"8,914.50",TRUMPINGTON MEADOWS NURSERY,NURSERY,Nursery Schools,Early Years - Funded 3s/4s,Care & Ed Childcare Settings
Cambridgeshire County Council,03-Nov-23,51302093287,"8,926.23",DAISIES MONTESSORI NURSERY SCHOOL,NURSERY,Nursery Schools,Early Years - Funded 3s/4s,Care & Ed Childcare Settings
Cambridgeshire County Council,03-Nov-23,51302093480,"9,015.58",THE SPRING MONTESSORI,NURSERY,Nursery Schools,Early Years - Funded 3s/4s,Care & Ed Childcare Settings
Cambridgeshire County Council,03-Nov-23,51302093454,"9,069.69",SOHAM PLAYGROUP@WETHERHALLS,NURSERY,Nursery Schools,Early Years - Funded 3s/4s,Care & Ed Childcare Settings
Cambridgeshire County Council,03-Nov-23,51302093449,"9,114.15",Shelford Day Nursery - Kanit Ltd,NURSERY,Nursery Schools,Early Years - Funded 3s/4s,Care & Ed Childcare Settings
Cambridgeshire County Council,03-Nov-23,51302093246,"9,222.56",BRIGHT HORIZONS @ WOLFSON COURT,NURSERY,Nursery Schools,Early Years - Funded 3s/4s,Care & Ed Childcare Settings
Cambridgeshire County Council,03-Nov-23,51302093431,"9,261.42",PLAYTIMES,NURSERY,Nursery Schools,Early Years - Funded 3s/4s,Care & Ed Childcare Settings
Cambridgeshire County Council,03-Nov-23,51302093426,"9,279.75",PEEK A BOO NURSERY,NURSERY,Nursery Schools,Early Years - Funded 3s/4s,Care & Ed Childcare Settings
Cambridgeshire County Council,03-Nov-23,51302093256,"9,303.21",BUSY FINGERS PRE-SCHOOL,NURSERY,Nursery Schools,Early Years - Funded 3s/4s,Care & Ed Childcare Settings
Cambridgeshire County Council,03-Nov-23,51302093383,"9,397.34",LITTLE MUNCHKINS LTD,NURSERY,Nursery Schools,Early Years - Funded 3s/4s,Care & Ed Childcare Settings
Cambridgeshire County Council,03-Nov-23,51302080041,"9,476.28",Derwent Facilities Management Ltd,COMPANY,Commercial Activity,Brunswick House,Professional Fees and Hired Services
Cambridgeshire County Council,03-Nov-23,51302093407,"9,500.69",MOONBEAMS PRE SCHOOL,NURSERY,Nursery Schools,Early Years - Funded 3s/4s,Care & Ed Childcare Settings
Cambridgeshire County Council,03-Nov-23,51302093280,"9,696.04",Clarence House Papworth,NURSERY,Nursery Schools,Early Years - Funded 3s/4s,Care & Ed Childcare Settings
Cambridgeshire County Council,03-Nov-23,51302093333,"9,740.93",Herons' Preschool Waterbeach (CIO),EDUCATION,Nursery Schools,Early Years - Funded 3s/4s,Care & Ed Childcare Settings
Cambridgeshire County Council,03-Nov-23,51302093413,"9,781.82",NEEDINGWORTH COMMUNITY PRE-SCHOOL,NURSERY,Nursery Schools,Early Years - Funded 3s/4s,Care & Ed Childcare Settings
Cambridgeshire County Council,03-Nov-23,51302093509,"9,782.52",WISBECH ST MARY PRE SCHOOL,NURSERY,Nursery Schools,Early Years - Funded 3s/4s,Care & Ed Childcare Settings
Cambridgeshire County Council,03-Nov-23,51302093255,"9,828.37",BUSY BEES PRE-SCHOOL PLAYGROUP,NURSERY,Nursery Schools,Early Years - Funded 3s/4s,Care & Ed Childcare Settings
Cambridgeshire County Council,03-Nov-23,51302093254,"9,871.91",BUSY BEES DAY NURSERY AT HUNTINGDON,NURSERY,Nursery Schools,Early Years - Funded 3s/4s,Care & Ed Childcare Settings
Cambridgeshire County Council,03-Nov-23,51302093261,"9,935.97",CALDECOTE PLAYGROUP,EDUCATION,Nursery Schools,Early Years - Funded 3s/4s,Care & Ed Childcare Settings
Cambridgeshire County Council,03-Nov-23,51302093372,"10,178.47",LITTLE CATERPILLARS,NURSERY,Nursery Schools,Early Years - Funded 3s/4s,Care & Ed Childcare Settings
Cambridgeshire County Council,03-Nov-23,51302093377,"10,232.20",LITTLE HANDS NURSERY SCHOOL (LINTON & BARTLOW),NURSERY,Nursery Schools,Early Years - Funded 3s/4s,Care & Ed Childcare Settings
Cambridgeshire County Council,03-Nov-23,51302093266,"10,297.80",CARING KINDERGARTENS,NURSERY,Nursery Schools,Early Years - Funded 3s/4s,Care & Ed Childcare Settings
Cambridgeshire County Council,03-Nov-23,51302093360,"10,307.23",LADYBIRD DAY NURSERY ICP,NURSERY,Nursery Schools,Early Years - Funded 3s/4s,Care & Ed Childcare Settings
Cambridgeshire County Council,03-Nov-23,51302093216,"10,362.68",ACE NURSERY SCHOOL,NURSERY,Nursery Schools,Early Years - Funded 3s/4s,Care & Ed Childcare Settings
Cambridgeshire County Council,03-Nov-23,51302093444,"10,455.90",SALLY DAY CARE PARTNERSHIP,NURSERY,Nursery Schools,Early Years - Funded 3s/4s,Care & Ed Childcare Settings
Cambridgeshire County Council,03-Nov-23,51302093343,"10,495.53",JIGSAW NURSERY,NURSERY,Nursery Schools,Early Years - Funded 3s/4s,Care & Ed Childcare Settings
Cambridgeshire County Council,03-Nov-23,51302093224,"10,627.89",Ashbeach Preschool,NURSERY,Nursery Schools,Early Years - Funded 3s/4s,Care & Ed Childcare Settings
Cambridgeshire County Council,03-Nov-23,51302093284,"10,649.10",Davidson Roberts Ltd T/A Coton Pre-school,EDUCATION,Nursery Schools,Early Years - Funded 3s/4s,Care & Ed Childcare Settings
Cambridgeshire County Council,03-Nov-23,51302093471,"10,745.55",The Anchor Nursery and Preschool,NURSERY,Nursery Schools,Early Years - Funded 3s/4s,Care & Ed Childcare Settings
Cambridgeshire County Council,03-Nov-23,51302093395,"10,750.44",Marleigh Nursery,NURSERY,Nursery Schools,Early Years - Funded 3s/4s,Care & Ed Childcare Settings
Cambridgeshire County Council,03-Nov-23,51302093332,"10,811.13",HEMINGFORD GREY PLAYGROUP,NURSERY,Nursery Schools,Early Years - Funded 3s/4s,Care & Ed Childcare Settings
Cambridgeshire County Council,03-Nov-23,51302093313,"10,951.29",GOREFIELD PRE-SCHOOL,NURSERY,Nursery Schools,Early Years - Funded 3s/4s,Care & Ed Childcare Settings
Cambridgeshire County Council,03-Nov-23,51302093447,"10,954.20",SCALLYWAGS DAY NURSERY,NURSERY,Nursery Schools,Early Years - Funded 3s/4s,Care & Ed Childcare Settings
Cambridgeshire County Council,03-Nov-23,51302093291,"10,984.32",Duxford Preschool,NURSERY,Nursery Schools,Early Years - Funded 3s/4s,Care & Ed Childcare Settings
Cambridgeshire County Council,03-Nov-23,51302093505,"11,007.30",WILDAWOOD FOREST SCHOOL,EDUCATION,Nursery Schools,Early Years - Funded 3s/4s,Care & Ed Childcare Settings
Cambridgeshire County Council,03-Nov-23,51302079407,"11,123.96","Change, Grow, Live  Services Ltd",COMPANY,Drug & Alcohol Misuse,Adult Treatment Contract,Joint Partnership Funding
Cambridgeshire County Council,03-Nov-23,51302093282,"11,161.50",Redacted Personal Data,INDIVIDUAL,Nursery Schools,Early Years - Funded 3s/4s,Care & Ed Childcare Settings
Cambridgeshire County Council,03-Nov-23,51302093305,"11,228.96",FORDHAM PRE-SCHOOL,NURSERY,Nursery Schools,Early Years - Funded 3s/4s,Care & Ed Childcare Settings
Cambridgeshire County Council,03-Nov-23,51302082140,"11,283.01",Infinigate Cloud UK Ltd,COMPANY,ICT Service,ICT Service Technical Support,Computer software - purchase
Cambridgeshire County Council,03-Nov-23,51302093474,"11,386.42",MALTINGS DAY NURSERY,NURSERY,Nursery Schools,Early Years - Funded 3s/4s,Care & Ed Childcare Settings
Cambridgeshire County Council,03-Nov-23,51302093223,"11,458.20",Arbury Preschool ta Little Flames Childcare Ltd,NURSERY,Nursery Schools,Early Years - Funded 3s/4s,Care & Ed Childcare Settings
Cambridgeshire County Council,03-Nov-23,51302093422,"11,507.43",Parkhall Pre-School Ltd,NURSERY,Nursery Schools,Early Years - Funded 3s/4s,Care & Ed Childcare Settings
Cambridgeshire County Council,03-Nov-23,51302093478,"11,524.89",THE RED HOUSE DAY NURSERY,NURSERY,Nursery Schools,Early Years - Funded 3s/4s,Care & Ed Childcare Settings
Cambridgeshire County Council,03-Nov-23,51302093396,"11,560.53",MEADOW LANE CHILDREN'S NURSEY,EDUCATION,Nursery Schools,Early Years - Funded 3s/4s,Care & Ed Childcare Settings
Cambridgeshire County Council,03-Nov-23,51302093405,"11,608.79",MONKFIELD PARK CARE & LEARNING CENTRE,EDUCATION,Nursery Schools,Early Years - Funded 3s/4s,Care & Ed Childcare Settings
Cambridgeshire County Council,03-Nov-23,51302093365,"11,664.97",LANCASTER LODGE CHILDCARE LTD,NURSERY,Nursery Schools,Early Years - Funded 3s/4s,Care & Ed Childcare Settings
Cambridgeshire County Council,03-Nov-23,51302093247,"11,817.89",BRIGHTFIELDS PRE SCHOOL,NURSERY,Nursery Schools,Early Years - Funded 3s/4s,Care & Ed Childcare Settings
Cambridgeshire County Council,03-Nov-23,51302093442,"11,982.39",ROUND HOUSE PRE SCHOOL,NURSERY,Nursery Schools,Early Years - Funded 3s/4s,Care & Ed Childcare Settings
Cambridgeshire County Council,03-Nov-23,51302093283,"12,004.44",COMBERTON PLAYGROUP,NURSERY,Nursery Schools,Early Years - Funded 3s/4s,Care & Ed Childcare Settings
Cambridgeshire County Council,03-Nov-23,51302080045,"12,012.00",Derwent Facilities Management Ltd,COMPANY,Commercial Activity,Brunswick House,Professional Fees and Hired Services
Cambridgeshire County Council,03-Nov-23,51302093337,"12,075.84",HOLME VILLAGE PRESCHOOL,NURSERY,Nursery Schools,Early Years - Funded 3s/4s,Care & Ed Childcare Settings
Cambridgeshire County Council,03-Nov-23,51302093424,"12,089.55",PATACAKE DAY NURSERY ICP,NURSERY,Nursery Schools,Early Years - Funded 3s/4s,Care & Ed Childcare Settings
Cambridgeshire County Council,03-Nov-23,51302093289,"12,249.78",DOMINO NURSERY,NURSERY,Nursery Schools,Early Years - Funded 3s/4s,Care & Ed Childcare Settings
Cambridgeshire County Council,03-Nov-23,51302093429,"12,271.86",PIPPINS PRESCHOOL,NURSERY,Nursery Schools,Early Years - Funded 3s/4s,Care & Ed Childcare Settings
Cambridgeshire County Council,03-Nov-23,51302093217,"12,295.53",ABINGTON PRESCHOOL,NURSERY,Nursery Schools,Early Years - Funded 3s/4s,Care & Ed Childcare Settings
Cambridgeshire County Council,03-Nov-23,51302093240,"12,314.07",CROCUS EARLY YEARS CENTRE,NURSERY,Nursery Schools,Early Years - Funded 3s/4s,Care & Ed Childcare Settings
Cambridgeshire County Council,03-Nov-23,51302093704,"12,315.00",DADDY CABS LTD,TRADE SUPPLIER,Home to School Transport - Special,Home to School Transport Special - Special School,Home to School - Contract
Cambridgeshire County Council,03-Nov-23,51302093225,"12,358.71",THE NURSERY BABRAHAM,NURSERY,Nursery Schools,Early Years - Funded 3s/4s,Care & Ed Childcare Settings
Cambridgeshire County Council,03-Nov-23,51302093320,"12,442.74",GUILDEN MORDEN COMMUNITY PRE-SCHOOL,NURSERY,Nursery Schools,Early Years - Funded 3s/4s,Care & Ed Childcare Settings
Cambridgeshire County Council,03-Nov-23,51302093378,"12,490.26",LITTLE HANDS NURSERY SCHOOL (MELBOURN),NURSERY,Nursery Schools,Early Years - Funded 3s/4s,Care & Ed Childcare Settings
Cambridgeshire County Council,03-Nov-23,51302093358,"12,555.00",KINGSFIELD PRE-SCHOOL,NURSERY,Nursery Schools,Early Years - Funded 3s/4s,Care & Ed Childcare Settings
Cambridgeshire County Council,03-Nov-23,51302093503,"12,689.25",WHITEHALL SCHOOL,NURSERY,Nursery Schools,Early Years - Funded 3s/4s,Care & Ed Childcare Settings
Cambridgeshire County Council,03-Nov-23,51302093325,"12,766.23",Harlequin Childcare TA Busy Bees,NURSERY,Nursery Schools,Early Years - Funded 3s/4s,Care & Ed Childcare Settings
Cambridgeshire County Council,03-Nov-23,51302093400,"12,776.79",MILLFIELD NURSERY CLASS,NURSERY,Nursery Schools,Early Years - Funded 3s/4s,Care & Ed Childcare Settings
Cambridgeshire County Council,03-Nov-23,51302079388,"12,780.33",KIMBOLTON SCHOOL,EDUCATION,SEND High Needs Top Up,High Needs Top Up - Free Schools,Independent School Placements
Cambridgeshire County Council,03-Nov-23,51302093482,"12,952.80",WENDY HOUSE DAY NURSERY,NURSERY,Nursery Schools,Early Years - Funded 3s/4s,Care & Ed Childcare Settings
Cambridgeshire County Council,03-Nov-23,51302093379,"12,993.31",LITTLE HANDS NURSERY SCHOOLS LIMITED,NURSERY,Nursery Schools,Early Years - Funded 3s/4s,Care & Ed Childcare Settings
Cambridgeshire County Council,03-Nov-23,51302093367,"13,079.50",LILLIPUT PRE SCHOOL,NURSERY,Nursery Schools,Early Years - Funded 3s/4s,Care & Ed Childcare Settings
Cambridgeshire County Council,03-Nov-23,51302093486,"13,092.11",The Woodland Rose Day Nursery,NURSERY,Nursery Schools,Early Years - Funded 3s/4s,Care & Ed Childcare Settings
Cambridgeshire County Council,03-Nov-23,51302093331,"13,137.39",HEAD START NURSERY SCHOOL LIMITED,NURSERY,Nursery Schools,Early Years - Funded 3s/4s,Care & Ed Childcare Settings
Cambridgeshire County Council,03-Nov-23,51302093753,"13,256.40",Akmal cabs Ltd,COMPANY,Home to School Transport - Special,Home to School Transport Special - Special School,Home to School - Contract
Cambridgeshire County Council,03-Nov-23,51302093324,"13,474.51",Hardwick and Cambourne Pre-School,NURSERY,Nursery Schools,Early Years - Funded 3s/4s,Care & Ed Childcare Settings
Cambridgeshire County Council,03-Nov-23,51302093421,"13,551.40",CCC Sutton CE VC Primary School t/a Paintbox Preschool,NURSERY,Nursery Schools,Early Years - Funded 3s/4s,Care & Ed Childcare Settings
Cambridgeshire County Council,03-Nov-23,51302093349,"13,618.93",ELY ST JOHNS PRESCHOOL,NURSERY,Nursery Schools,Early Years - Funded 3s/4s,Care & Ed Childcare Settings
Cambridgeshire County Council,03-Nov-23,51302093322,"13,879.53",Happy Bunnies Nursery School T/A Active Childhood UK Limited,NURSERY,Nursery Schools,Early Years - Funded 3s/4s,Care & Ed Childcare Settings
Cambridgeshire County Council,03-Nov-23,51302080039,"14,024.74",Derwent Facilities Management Ltd,COMPANY,Commercial Activity,Brunswick House,Professional Fees and Hired Services
Cambridgeshire County Council,03-Nov-23,51302093262,"14,042.01",CAMBOURNE PRESCHOOL,EDUCATION,Nursery Schools,Early Years - Funded 3s/4s,Care & Ed Childcare Settings
Cambridgeshire County Council,03-Nov-23,51302093466,"14,123.40",STRETTON PRE-SCHOOL,NURSERY,Nursery Schools,Early Years - Funded 3s/4s,Care & Ed Childcare Settings
Cambridgeshire County Council,03-Nov-23,51302093218,"14,188.18",ALCONBURY COMMUNITY PRESCHOOL,NURSERY,Nursery Schools,Early Years - Funded 3s/4s,Care & Ed Childcare Settings
Cambridgeshire County Council,03-Nov-23,51302093436,"14,204.02",Great and Little Shelford CofE (Aided) Primary School t/a Rainbow Pre-School,NURSERY,Nursery Schools,Early Years - Funded 3s/4s,Care & Ed Childcare Settings
Cambridgeshire County Council,03-Nov-23,51302093804,"14,307.00",Vcare24 Limited,CARE ESTABLISHMENT,LAC Placements,Placements - residential disability,Agency Placements - Out of  County
Cambridgeshire County Council,03-Nov-23,51302093446,"14,316.41",SAWTRY DAY NURSERY,NURSERY,Nursery Schools,Early Years - Funded 3s/4s,Care & Ed Childcare Settings
Cambridgeshire County Council,03-Nov-23,51302093301,"14,394.57",FIRST STEPS DAY NURSERY,NURSERY,Nursery Schools,Early Years - Funded 3s/4s,Care & Ed Childcare Settings
Cambridgeshire County Council,03-Nov-23,51302093502,"14,398.02",WHEATFIELDS NURSERY ASSOCIATION,NURSERY,Nursery Schools,Early Years - Funded 3s/4s,Care & Ed Childcare Settings
Cambridgeshire County Council,03-Nov-23,51302093463,"14,448.35",STEPPING STONES PRE-SCHOOL (LEVERINGTON),NURSERY,Nursery Schools,Early Years - Funded 3s/4s,Care & Ed Childcare Settings
Cambridgeshire County Council,03-Nov-23,51302093242,"14,547.41",Bright Horizons Eddington Nursery,NURSERY,Nursery Schools,Early Years - Funded 3s/4s,Care & Ed Childcare Settings
Cambridgeshire County Council,03-Nov-23,51302086214,"14,610.00",Finborough School,EDUCATION,SEN Placements,Independent Education Placements,Independent School Placements
Cambridgeshire County Council,03-Nov-23,51302093285,"14,615.18",CRACKER JACKS DAY NURSERY,NURSERY,Nursery Schools,Early Years - Funded 3s/4s,Care & Ed Childcare Settings
Cambridgeshire County Council,03-Nov-23,51302093359,"14,703.10",KRAZYDAYZ PRIVATE DAY NURSERY,NURSERY,Nursery Schools,Early Years - Funded 3s/4s,Care & Ed Childcare Settings
Cambridgeshire County Council,03-Nov-23,51302093272,"14,777.28",CHILDREN'S MONTESSORI NURSERY,NURSERY,Nursery Schools,Early Years - Funded 3s/4s,Care & Ed Childcare Settings
Cambridgeshire County Council,03-Nov-23,51302093708,"14,913.66",DEWS COACHES,TRADE SUPPLIER,Home to School Transport - Mainstream,Home to School Transport Mainstream - Primary,Home to School - Contract
Cambridgeshire County Council,03-Nov-23,51302093353,"14,964.23",Kindred Cambridge (Kindred Education Cambridgeshire Ltd),NURSERY,Nursery Schools,Early Years - Funded 3s/4s,Care & Ed Childcare Settings
Cambridgeshire County Council,03-Nov-23,51302093257,"14,978.82",BUTTERCUPS COMMUNITY PRE-SCHOOL,EDUCATION,Nursery Schools,Early Years - Funded 3s/4s,Care & Ed Childcare Settings
Cambridgeshire County Council,03-Nov-23,51302093397,"14,982.41",THE MEADOWS NURSERY & DAY CARE CENTRE,NURSERY,Nursery Schools,Early Years - Funded 3s/4s,Care & Ed Childcare Settings
Cambridgeshire County Council,03-Nov-23,51302093342,"15,003.80",Redacted Personal Data,INDIVIDUAL,Nursery Schools,Early Years - Funded 3s/4s,Care & Ed Childcare Settings
Cambridgeshire County Council,03-Nov-23,51302093302,"15,103.55",FLUTTERBIES CHILDCARE,NURSERY,Nursery Schools,Early Years - Funded 3s/4s,Care & Ed Childcare Settings
Cambridgeshire County Council,03-Nov-23,51302093732,"15,503.20",STANDCOM COMMERCE LTD TA ANDREWS COACHES,TRADE SUPPLIER,Home to School Transport - Mainstream,Home to School Transport Mainstream - Primary,Home to School - Contract
Cambridgeshire County Council,03-Nov-23,51302093259,"15,712.10",BUTTONS & BOWS PRE-SCHOOL,NURSERY,Nursery Schools,Early Years - Funded 3s/4s,Care & Ed Childcare Settings
Cambridgeshire County Council,03-Nov-23,51302093279,"15,746.42",CLARENCE HOUSE MARCH,NURSERY,Nursery Schools,Early Years - Funded 3s/4s,Care & Ed Childcare Settings
Cambridgeshire County Council,03-Nov-23,51302093390,"15,912.37",LITTLEPORT COMMUNITY PRESCHOOL,NURSERY,Nursery Schools,Early Years - Funded 3s/4s,Care & Ed Childcare Settings
Cambridgeshire County Council,03-Nov-23,51302093250,"15,921.23",BUMPKINS PRE SCHOOL,COMPANY,Nursery Schools,Early Years - Funded 3s/4s,Care & Ed Childcare Settings
Cambridgeshire County Council,03-Nov-23,51302093402,"15,931.93",Monkey Puzzle Day Nursery and Pre-School Grange Road,NURSERY,Nursery Schools,Early Years - Funded 3s/4s,Care & Ed Childcare Settings
Cambridgeshire County Council,03-Nov-23,51302093222,"15,933.83",Sunhill Daycare t/a Apricot Pre-School,NURSERY,Nursery Schools,Early Years - Funded 3s/4s,Care & Ed Childcare Settings
Cambridgeshire County Council,03-Nov-23,51302093252,"16,062.01",BURWELL EARLY LEARNERS,NURSERY,Nursery Schools,Early Years - Funded 3s/4s,Care & Ed Childcare Settings
Cambridgeshire County Council,03-Nov-23,51302093389,"16,262.24",LITTLE WOMBATZ,NURSERY,Nursery Schools,Early Years - Funded 3s/4s,Care & Ed Childcare Settings
Cambridgeshire County Council,03-Nov-23,51302093469,"16,307.38",SWEET PEA NURSERY,NURSERY,Nursery Schools,Early Years - Funded 3s/4s,Care & Ed Childcare Settings
Cambridgeshire County Council,03-Nov-23,51302093269,"16,555.04",CHESTNUT NURSERY SCHOOLS LIMITED,NURSERY,Nursery Schools,Early Years - Funded 3s/4s,Care & Ed Childcare Settings
Cambridgeshire County Council,03-Nov-23,51302093399,"16,662.75",Meldreth Primary Pre-school,NURSERY,Nursery Schools,Early Years - Funded 3s/4s,Care & Ed Childcare Settings
Cambridgeshire County Council,03-Nov-23,51302093498,"16,689.35",UPWOOD SMALL TO TALL,NURSERY,Nursery Schools,Early Years - Funded 3s/4s,Care & Ed Childcare Settings
Cambridgeshire County Council,03-Nov-23,51302059970,"16,767.50",On Track Education Services Limited,EDUCATION,SEN Placements,Independent Education Placements,Independent School Placements
Cambridgeshire County Council,03-Nov-23,51302093423,"16,799.63",PARSON DROVE PRE SCHOOL,NURSERY,Nursery Schools,Early Years - Funded 3s/4s,Care & Ed Childcare Settings
Cambridgeshire County Council,03-Nov-23,51302093869,"16,828.57",Acorn Homes UK Limited,CARE ESTABLISHMENT,LAC Placements,Placements - residential homes,Agency Placements - Out of  County
Cambridgeshire County Council,03-Nov-23,51302093455,"16,837.05",Spring Meadow Infant School Nursery Class,NURSERY,Nursery Schools,Early Years - Funded 3s/4s,Care & Ed Childcare Settings
Cambridgeshire County Council,03-Nov-23,51302093239,"16,903.73",BUNNYBROOKES @ BRIGHT HORIZONS,NURSERY,Nursery Schools,Early Years - Funded 3s/4s,Care & Ed Childcare Settings
Cambridgeshire County Council,03-Nov-23,51302093428,"17,000.97",PETER PAN PRE-SCHOOL,NURSERY,Nursery Schools,Early Years - Funded 3s/4s,Care & Ed Childcare Settings
Cambridgeshire County Council,03-Nov-23,51302093435,"17,022.34",RAINBOW DAY NURSERY,NURSERY,Nursery Schools,Early Years - Funded 3s/4s,Care & Ed Childcare Settings
Cambridgeshire County Council,03-Nov-23,51302093290,"17,179.57",DUCKLINGS CHILDCARE (GODMANCHESTER) LTD,NURSERY,Nursery Schools,Early Years - Funded 3s/4s,Care & Ed Childcare Settings
Cambridgeshire County Council,03-Nov-23,51302093479,"17,186.83",THE SHADE NURSERY CLASS,NURSERY,Nursery Schools,Early Years - Funded 3s/4s,Care & Ed Childcare Settings
Cambridgeshire County Council,03-Nov-23,51302093747,"17,256.00",A & B TAXIS LTD,TRADE SUPPLIER,Home to School Transport - Special,Home to School Transport Special - Special School,Home to School - Contract
Cambridgeshire County Council,03-Nov-23,51302093510,"17,468.61",WITCHFORD RACKHAM PRE-SCHOOL,NURSERY,Nursery Schools,Early Years - Funded 3s/4s,Care & Ed Childcare Settings
Cambridgeshire County Council,03-Nov-23,51302093258,"17,545.55",BUTTERFLY DAY NURSERY,NURSERY,Nursery Schools,Early Years - Funded 3s/4s,Care & Ed Childcare Settings
Cambridgeshire County Council,03-Nov-23,51302093487,"17,637.48",THOMAS EATON CP SCHOOL PLAYGROUP,NURSERY,Nursery Schools,Early Years - Funded 3s/4s,Care & Ed Childcare Settings
Cambridgeshire County Council,03-Nov-23,51302093286,"17,835.15",CYGNETS MILTON PRE SCHOOL,NURSERY,Nursery Schools,Early Years - Funded 3s/4s,Care & Ed Childcare Settings
Cambridgeshire County Council,03-Nov-23,51302080048,"17,841.72",Derwent Facilities Management Ltd,COMPANY,Commercial Activity,Brunswick House,Professional Fees and Hired Services
Cambridgeshire County Council,03-Nov-23,51302093238,"17,865.81",BRAMPTON DAY NURSERY,NURSERY,Nursery Schools,Early Years - Funded 3s/4s,Care & Ed Childcare Settings
Cambridgeshire County Council,03-Nov-23,51302093230,"17,977.70",BEACH BABIES LIMITED (LANDBEACH),NURSERY,Nursery Schools,Early Years - Funded 3s/4s,Care & Ed Childcare Settings
Cambridgeshire County Council,03-Nov-23,51302093481,"18,005.16",VINE PRE-SCHOOL,NURSERY,Nursery Schools,Early Years - Funded 3s/4s,Care & Ed Childcare Settings
Cambridgeshire County Council,03-Nov-23,51302093274,"18,152.34",CLARENCE HOUSE BARNS,NURSERY,Nursery Schools,Early Years - Funded 3s/4s,Care & Ed Childcare Settings
Cambridgeshire County Council,03-Nov-23,51302093303,"18,201.86",Flying Start Montessori,NURSERY,Nursery Schools,Early Years - Funded 3s/4s,Care & Ed Childcare Settings
Cambridgeshire County Council,03-Nov-23,51302080042,"18,226.56",Derwent Facilities Management Ltd,COMPANY,Commercial Activity,Brunswick House,Professional Fees and Hired Services
Cambridgeshire County Council,03-Nov-23,51302093483,"18,261.61",WENDY HOUSE DAY NURSERY IMPINGTON,NURSERY,Nursery Schools,Early Years - Funded 3s/4s,Care & Ed Childcare Settings
Cambridgeshire County Council,03-Nov-23,51302093268,"18,313.65",CAVALRY SCHOOL NURSERY,NURSERY,Nursery Schools,Early Years - Funded 3s/4s,Care & Ed Childcare Settings
Cambridgeshire County Council,03-Nov-23,51302093275,"18,332.40",CLARENCE HOUSE CAMBRIDGE,NURSERY,Nursery Schools,Early Years - Funded 3s/4s,Care & Ed Childcare Settings
Cambridgeshire County Council,03-Nov-23,51302093411,"18,375.21",MURROW PRESCHOOL,NURSERY,Nursery Schools,Early Years - Funded 3s/4s,Care & Ed Childcare Settings
Cambridgeshire County Council,03-Nov-23,51302093456,"18,382.78",WYTON CHILDREN AND FAMILY SERVICES,NURSERY,Nursery Schools,Early Years - Funded 3s/4s,Care & Ed Childcare Settings
Cambridgeshire County Council,03-Nov-23,51302093803,"18,600.00",Surecare Residential Limited,EDUCATION,LAC Placements,Placements - residential homes,Agency Placements - Out of  County
Cambridgeshire County Council,03-Nov-23,51302093448,"18,623.82",SEE SAW PLAYGROUP,NURSERY,Nursery Schools,Early Years - Funded 3s/4s,Care & Ed Childcare Settings
Cambridgeshire County Council,03-Nov-23,51302093371,"18,642.97",LITTLE ACORNS PRESCHOOL PLAYGROUP (STUKELEY MEADOWS),NURSERY,Nursery Schools,Early Years - Funded 3s/4s,Care & Ed Childcare Settings
Cambridgeshire County Council,03-Nov-23,51302093420,"18,737.88",OVER PUDDLEDUCKS PRE-SCHOOL,NURSERY,Nursery Schools,Early Years - Funded 3s/4s,Care & Ed Childcare Settings
Cambridgeshire County Council,03-Nov-23,51302093927,"18,821.43",Azalea Care Ltd,CARE ESTABLISHMENT,LAC Placements,Placements - residential homes,Agency Placements - Out of  County
Cambridgeshire County Council,03-Nov-23,51302093522,"18,858.30",SUSTRANS LIMITED,CHARITY,Road Safety,"Education, Training and Publicity",Professional Fees and Hired Services
Cambridgeshire County Council,03-Nov-23,51302093387,"18,878.50",LITTLE STARS DAY NURSERY INC LTD,NURSERY,Nursery Schools,Early Years - Funded 3s/4s,Care & Ed Childcare Settings
Cambridgeshire County Council,03-Nov-23,51302093457,"18,899.66",ST IVES NURSERY ICP,NURSERY,Nursery Schools,Early Years - Funded 3s/4s,Care & Ed Childcare Settings
Cambridgeshire County Council,03-Nov-23,51302093468,"18,978.68",SWAVESEY PRE-SCHOOL,NURSERY,Nursery Schools,Early Years - Funded 3s/4s,Care & Ed Childcare Settings
Cambridgeshire County Council,03-Nov-23,51302093952,"19,091.70",Kedleston (Wood Grove Childcare) Limited,CARE ESTABLISHMENT,LAC Placements,Placements - residential homes,Agency Placements - Out of  County
Cambridgeshire County Council,03-Nov-23,51302093271,"19,145.66",CHESTNUT PLAYGROUP,NURSERY,Nursery Schools,Early Years - Funded 3s/4s,Care & Ed Childcare Settings
Cambridgeshire County Council,03-Nov-23,51302093450,"19,153.89",SHIRLEY COMMUNITY PRE-SCHOOL,EDUCATION,Nursery Schools,Early Years - Funded 3s/4s,Care & Ed Childcare Settings
Cambridgeshire County Council,03-Nov-23,51302093221,"19,216.21",ALPHABET DAY NURSERY SCHOOLS LTD,NURSERY,Nursery Schools,Early Years - Funded 3s/4s,Care & Ed Childcare Settings
Cambridgeshire County Council,03-Nov-23,51302093327,"19,231.80",Hartford Infants Pre School,NURSERY,Nursery Schools,Early Years - Funded 3s/4s,Care & Ed Childcare Settings
Cambridgeshire County Council,03-Nov-23,51302093935,"19,463.57",4D CARE LIMITED,CARE ESTABLISHMENT,LAC Placements,Placements - residential homes,Agency Placements - In County
Cambridgeshire County Council,03-Nov-23,51302093278,"19,594.74",CLARENCE HOUSE PRE-SCHOOL,NURSERY,Nursery Schools,Early Years - Funded 3s/4s,Care & Ed Childcare Settings
Cambridgeshire County Council,03-Nov-23,51302093366,"19,760.36",THE LANTERN GOSLINGS PRE SCHOOL,NURSERY,Nursery Schools,Early Years - Funded 3s/4s,Care & Ed Childcare Settings
Cambridgeshire County Council,03-Nov-23,51302093464,"20,152.30",STEPPING STONES (LITTLEPORT),NURSERY,Nursery Schools,Early Years - Funded 3s/4s,Care & Ed Childcare Settings
Cambridgeshire County Council,03-Nov-23,51302093236,"20,215.45",BRAMBLES PLAYGROUP,NURSERY,Nursery Schools,Early Years - Funded 3s/4s,Care & Ed Childcare Settings
Cambridgeshire County Council,03-Nov-23,51302093219,"20,303.05",Alderman Jacobs Pre-School,NURSERY,Nursery Schools,Early Years - Funded 3s/4s,Care & Ed Childcare Settings
Cambridgeshire County Council,03-Nov-23,51302093809,"20,476.80",Keys PCE Ltd,CARE ESTABLISHMENT,LAC Placements,Placements - residential disability,Agency Placements - Out of  County
Cambridgeshire County Council,03-Nov-23,51302093810,"20,476.80",Keys PCE Ltd,CARE ESTABLISHMENT,LAC Placements,Placements - residential homes,Agency Placements - Out of  County
Cambridgeshire County Council,03-Nov-23,51302093805,"20,476.80",Keys PCE Ltd,CARE ESTABLISHMENT,LAC Placements,Placements - residential homes,Agency Placements - Out of  County
Cambridgeshire County Council,03-Nov-23,51302093806,"20,476.80",Keys PCE Ltd,CARE ESTABLISHMENT,LAC Placements,Placements - residential homes,Agency Placements - In County
Cambridgeshire County Council,03-Nov-23,51302093807,"20,476.80",Keys PCE Ltd,CARE ESTABLISHMENT,LAC Placements,Placements - residential homes,Agency Placements - Out of  County
Cambridgeshire County Council,03-Nov-23,51302093237,"20,500.38",BRAMBLES PRE SCHOOL,EDUCATION,Nursery Schools,Early Years - Funded 3s/4s,Care & Ed Childcare Settings
Cambridgeshire County Council,03-Nov-23,51302093339,"20,990.76",ISLEHAM PRE-SCHOOL,NURSERY,Nursery Schools,Early Years - Funded 3s/4s,Care & Ed Childcare Settings
Cambridgeshire County Council,03-Nov-23,51302062634,"21,442.81",PARK HOUSE SCHOOL,EDUCATION,SEN Placements,Independent Education Placements,Independent School Placements
Cambridgeshire County Council,03-Nov-23,51302093245,"21,466.75",BRIGHT HORIZONS @ LONG ROAD,NURSERY,Nursery Schools,Early Years - Funded 3s/4s,Care & Ed Childcare Settings
Cambridgeshire County Council,03-Nov-23,51302093373,"22,032.45",Little Cherries/Bewick Bridge community Primary School,NURSERY,Nursery Schools,Early Years - Funded 3s/4s,Care & Ed Childcare Settings
Cambridgeshire County Council,03-Nov-23,51302093491,"22,101.72",Busy Bees Nurseries Limited t/a Treetops Day Nursery,NURSERY,Nursery Schools,Early Years - Funded 3s/4s,Care & Ed Childcare Settings
Cambridgeshire County Council,03-Nov-23,51302093321,"22,113.80",HADDENHAM PRE-SCHOOL,NURSERY,Nursery Schools,Early Years - Funded 3s/4s,Care & Ed Childcare Settings
Cambridgeshire County Council,03-Nov-23,51302093297,"22,135.91",Eynesbury Primary School Nursery Class,NURSERY,Nursery Schools,Early Years - Funded 3s/4s,Care & Ed Childcare Settings
Cambridgeshire County Council,03-Nov-23,51302093500,"22,249.93",WARBOYS UNDER FIVES PLAY GROUP,NURSERY,Nursery Schools,Early Years - Funded 3s/4s,Care & Ed Childcare Settings
Cambridgeshire County Council,03-Nov-23,51302093117,"22,673.25",HEALTHWATCH CAMBRIDGESHIRE,CARE ESTABLISHMENT,Integration,Head of Integration,Grants to Voluntary Bodies
Cambridgeshire County Council,03-Nov-23,51302093929,"22,895.71",Higher Hopes Ltd,CARE ESTABLISHMENT,LAC Placements,Placements - residential homes,Agency Placements - In County
Cambridgeshire County Council,03-Nov-23,51302093893,"23,017.50",Channels & Choices LLP,CARE ESTABLISHMENT,LAC Placements,Placements - residential homes,Agency Placements - Out of  County
Cambridgeshire County Council,03-Nov-23,51302093718,"23,082.00",THE PRIVATE HIRE COMPANY,TRADE SUPPLIER,Home to School Transport - Special,Home to School Transport Special - Special School,Home to School - Contract
Cambridgeshire County Council,03-Nov-23,51302093220,"23,455.46",All Saints Inter Church Academy t/a All Saints Pre School Academy,NURSERY,Nursery Schools,Early Years - Funded 3s/4s,Care & Ed Childcare Settings
Cambridgeshire County Council,03-Nov-23,51302093336,"23,465.55",Hinchingbrooke Park Pre-School,NURSERY,Nursery Schools,Early Years - Funded 3s/4s,Care & Ed Childcare Settings
Cambridgeshire County Council,03-Nov-23,51302093363,"23,539.95",LADYBIRDS DAY NURSERY,NURSERY,Nursery Schools,Early Years - Funded 3s/4s,Care & Ed Childcare Settings
Cambridgeshire County Council,03-Nov-23,51302057999,"23,667.84",SOFTCAT LTD,TRADE SUPPLIER,Data Centre Relocation,Data Centre - Network drive migration,IT Hardware
Cambridgeshire County Council,03-Nov-23,51302058000,"23,667.84",SOFTCAT LTD,TRADE SUPPLIER,Data Centre Relocation,Data Centre - Network drive migration,IT Hardware
Cambridgeshire County Council,03-Nov-23,51302093931,"23,781.43",Higher Hopes Ltd,CARE ESTABLISHMENT,LAC Placements,Placements - residential homes,Agency Placements - In County
Cambridgeshire County Council,03-Nov-23,51302093408,"24,314.32",MOTHER GOOSE CORNER NURSERY,NURSERY,Nursery Schools,Early Years - Funded 3s/4s,Care & Ed Childcare Settings
Cambridgeshire County Council,03-Nov-23,51302093472,"24,481.05",The Grove Nursery,NURSERY,Nursery Schools,Early Years - Funded 3s/4s,Care & Ed Childcare Settings
Cambridgeshire County Council,03-Nov-23,51302093244,"24,627.57",BRIGHT HORIZONS @ FULBOURN,NURSERY,Nursery Schools,Early Years - Funded 3s/4s,Care & Ed Childcare Settings
Cambridgeshire County Council,03-Nov-23,51302093951,"24,932.86",Childhood First,CARE ESTABLISHMENT,LAC Placements,Placements - residential homes,Agency Placements - Out of  County
Cambridgeshire County Council,03-Nov-23,51302093344,"24,963.00",JIGSAW PLAYGROUP,NURSERY,Nursery Schools,Early Years - Funded 3s/4s,Care & Ed Childcare Settings
Cambridgeshire County Council,03-Nov-23,51302093497,"25,035.48",WEST CAMBRIDGE DAY NURSERY,NURSERY,Nursery Schools,Early Years - Funded 3s/4s,Care & Ed Childcare Settings
Cambridgeshire County Council,03-Nov-23,51302093248,"25,047.89",BUCKDEN DAY NURSERY,NURSERY,Nursery Schools,Early Years - Funded 3s/4s,Care & Ed Childcare Settings
Cambridgeshire County Council,03-Nov-23,51302093357,"25,325.94",Kindred St.Ives,NURSERY,Nursery Schools,Early Years - Funded 3s/4s,Care & Ed Childcare Settings
Cambridgeshire County Council,03-Nov-23,51302093341,"25,942.30",JEAVONS WOOD PRE AND PRIMARY SCHOOL,EDUCATION,Nursery Schools,Early Years - Funded 3s/4s,Care & Ed Childcare Settings
Cambridgeshire County Council,03-Nov-23,51302093414,"25,992.72",NEW ROAD PLAYGROUP (WHITTLESEY),NURSERY,Nursery Schools,Early Years - Funded 3s/4s,Care & Ed Childcare Settings
Cambridgeshire County Council,03-Nov-23,51302093243,"26,437.03",BRIGHT HORIZONS @ ELY,NURSERY,Nursery Schools,Early Years - Funded 3s/4s,Care & Ed Childcare Settings
Cambridgeshire County Council,03-Nov-23,51302093451,"26,769.34",The Childcare Cooperation t/a Silks Farm Nursery School,COMPANY,Nursery Schools,Early Years - Funded 3s/4s,Care & Ed Childcare Settings
Cambridgeshire County Council,03-Nov-23,51302093229,"26,920.25",BASSINGBOURN PRE-SCHOOL,NURSERY,Nursery Schools,Early Years - Funded 3s/4s,Care & Ed Childcare Settings
Cambridgeshire County Council,03-Nov-23,51302093312,"27,005.61",Godmanchester Pre-School,NURSERY,Nursery Schools,Early Years - Funded 3s/4s,Care & Ed Childcare Settings
Cambridgeshire County Council,03-Nov-23,51302093494,"27,201.83",UNDER FIVES ROUNDABOUT,NURSERY,Nursery Schools,Early Years - Funded 3s/4s,Care & Ed Childcare Settings
Cambridgeshire County Council,03-Nov-23,51302093362,"27,345.17",LADYBIRD PRE-SCHOOL,NURSERY,Nursery Schools,Early Years - Funded 3s/4s,Care & Ed Childcare Settings
Cambridgeshire County Council,03-Nov-23,51302093437,"27,687.18",RAMSEY DAY NURSERY,NURSERY,Nursery Schools,Early Years - Funded 3s/4s,Care & Ed Childcare Settings
Cambridgeshire County Council,03-Nov-23,51302093443,"27,798.75",Sallowbush Preschool (Little Flames Childcare Ltd),NURSERY,Nursery Schools,Early Years - Funded 3s/4s,Care & Ed Childcare Settings
Cambridgeshire County Council,03-Nov-23,51302093485,"28,255.87",THE WILLOWS DAY NURSERY - MARCH,NURSERY,Nursery Schools,Early Years - Funded 3s/4s,Care & Ed Childcare Settings
Cambridgeshire County Council,03-Nov-23,51302093352,"28,567.91",Kindred Cambourne (Kindred Education Cambridgeshire Ltd),NURSERY,Nursery Schools,Early Years - Funded 3s/4s,Care & Ed Childcare Settings
Cambridgeshire County Council,03-Nov-23,51302093465,"28,701.12",STRETTON PRE SCHOOL AT FOURFIELDS,NURSERY,Nursery Schools,Early Years - Funded 3s/4s,Care & Ed Childcare Settings
Cambridgeshire County Council,03-Nov-23,51302093802,"28,758.92",Focus Care Agency,CARE ESTABLISHMENT,LAC Placements,Placements - supported accommodation,Agency Placements - In County
Cambridgeshire County Council,03-Nov-23,51302093370,"28,801.90",LITTLE ACORNS DAY NURSERY,NURSERY,Nursery Schools,Early Years - Funded 3s/4s,Care & Ed Childcare Settings
Cambridgeshire County Council,03-Nov-23,51302093425,"28,833.42",Peckover Nursery,NURSERY,Nursery Schools,Early Years - Funded 3s/4s,Care & Ed Childcare Settings
Cambridgeshire County Council,03-Nov-23,51302093391,"29,117.31",LONGSTANTON PRE-SCHOOL & OUT OF SCHOOL CLUBS,EDUCATION,Nursery Schools,Early Years - Funded 3s/4s,Care & Ed Childcare Settings
Cambridgeshire County Council,03-Nov-23,51302093226,"29,184.09",Buttercups Childcare Ltd,NURSERY,Nursery Schools,Early Years - Funded 3s/4s,Care & Ed Childcare Settings
Cambridgeshire County Council,03-Nov-23,51302093338,"29,290.94",HOUGHTON & WYTON PRE-SCHOOL PLAYGROUP,NURSERY,Nursery Schools,Early Years - Funded 3s/4s,Care & Ed Childcare Settings
